{"text_format":"1","workbook":"xlsx","n_sheets":12,"sheets":["VAT-REF","Tabela_E","Tabela_F","Przykład","Szafir","CenCert","ProCertum","Sigillum","EuroCert","G","UPO","A"],"not_rendered":{"charts":0,"images":51,"macros":1,"external_links":0,"defined_names":22,"comments":0,"pivot_tables":0},"unopened":[],"bounds":{"document_bytes":16777216,"sheet_cells":100000,"rows_first":2000,"rows_last":500,"rows_between":2000,"halvings":0,"cell_chars":16384,"cell_head_chars":4096},"cells_cut":0,"cells_raw":0,"read":"whole","date_system":"1900"}

{"sheet":"VAT-REF","index":0,"n_rows":468,"n_cols":63,"rows_kept":468,"cut":false,"hidden":false,"merged":[[0,1,0,28],[147,16,147,27],[153,7,153,15],[153,16,153,27],[151,7,151,15],[151,16,151,27],[148,7,148,15],[148,16,148,27],[149,16,149,27],[150,7,150,15],[144,16,144,27],[143,16,143,27],[141,16,141,27],[141,7,141,15],[143,7,143,15],[140,7,140,15],[140,16,140,27],[139,7,139,15],[139,16,139,27],[136,3,136,6],[136,7,136,15],[135,2,135,27],[132,3,132,7],[12,8,12,27],[78,2,78,27],[79,2,79,27],[43,3,43,12],[60,24,60,25],[60,26,60,27],[60,9,60,23],[18,2,18,4],[48,2,48,27],[451,5,451,27],[452,5,452,27],[146,16,146,27],[137,7,137,15],[145,16,145,27],[142,7,142,15],[142,16,142,27],[144,7,144,15],[105,25,105,27],[99,6,99,24],[99,25,99,27],[98,25,98,27],[103,6,103,24],[102,6,102,24],[124,2,124,27],[107,6,107,24],[110,25,110,27],[107,25,107,27],[109,3,109,5],[104,3,104,5],[104,6,104,24],[113,25,113,27],[107,3,107,5],[111,6,111,24],[125,2,125,27],[136,16,136,27],[131,3,131,7],[132,11,133,27],[131,8,133,10],[134,2,134,27],[98,6,98,24],[112,25,112,27],[64,10,64,27],[18,5,18,27],[75,2,75,27],[110,3,110,5],[81,25,81,27],[101,25,101,27],[106,3,106,5],[108,25,108,27],[103,25,103,27],[108,6,108,24],[81,6,81,24],[80,25,80,27],[109,6,109,24],[104,25,104,27],[65,2,65,27],[72,25,72,26],[117,3,117,19],[68,16,68,21],[73,2,73,27],[69,14,69,27],[70,14,70,27],[68,25,68,27],[101,3,101,5],[101,6,101,24],[109,25,109,27],[105,3,105,5],[102,25,102,27],[80,3,80,5],[81,3,81,5],[72,2,72,24],[102,3,102,5],[98,3,98,5],[80,6,80,24],[97,3,97,5],[97,6,97,24],[99,3,99,5],[116,20,116,27],[117,20,117,27],[106,25,106,27],[103,3,103,5],[106,6,106,24],[112,6,112,24],[113,3,113,5],[113,6,113,24],[105,6,105,24],[2,1,2,3],[2,4,2,26],[454,3,455,3],[454,5,454,27],[453,5,453,27],[448,5,448,27],[4,2,4,27],[55,22,55,24],[59,24,59,25],[45,3,45,9],[62,3,62,12],[62,13,62,17],[158,3,158,6],[157,7,157,15],[446,5,446,27],[441,5,441,9],[441,10,441,11],[441,12,441,18],[119,3,119,27],[1,1,1,28],[13,5,13,27],[15,2,15,4],[11,2,12,7],[10,8,10,27],[68,12,68,13],[68,3,68,11],[68,22,68,24],[13,2,13,4],[15,5,15,27],[61,13,61,17],[61,18,61,27],[20,2,20,4],[61,3,61,12],[52,3,52,16],[116,3,116,19],[110,6,110,24],[112,3,112,5],[115,2,115,27],[60,3,60,8],[108,3,108,5],[90,3,90,5],[90,6,90,24],[90,25,90,27],[86,25,86,27],[86,6,86,24],[86,3,86,5],[89,3,89,5],[89,6,89,24],[88,3,88,5],[88,6,88,24],[91,3,91,5],[114,2,114,27],[167,7,167,15],[154,7,154,15],[5,2,6,3],[446,3,447,3],[9,24,9,26],[459,4,459,27],[457,2,457,27],[458,2,458,27],[440,3,440,18],[456,4,456,27],[443,2,443,27],[440,19,440,27],[10,2,10,7],[8,24,8,26],[8,2,8,10],[9,3,9,10],[8,15,8,23],[9,11,9,23],[5,4,6,27],[11,8,11,27],[8,11,8,14],[46,3,46,9],[150,16,150,27],[152,16,152,27],[155,16,155,27],[156,16,156,27],[154,16,154,27],[455,4,455,27],[162,7,162,15],[157,16,157,27],[159,16,159,27],[160,16,160,27],[162,16,162,27],[165,3,165,6],[163,16,163,27],[158,7,158,15],[468,2,468,27],[467,2,467,24],[467,25,467,26],[441,3,441,4],[445,4,445,27],[444,4,444,27],[460,2,460,27],[441,19,441,27],[447,5,447,27],[161,3,161,6],[442,2,442,27],[466,2,466,27],[165,16,165,27],[170,16,170,27],[168,3,168,6],[168,7,168,15],[168,16,168,27],[169,3,169,6],[170,3,170,6],[170,7,170,15],[169,7,169,15],[169,16,169,27],[439,2,439,27],[449,5,449,27],[438,2,438,27],[450,5,450,27],[166,3,166,6],[155,3,155,6],[165,7,165,15],[162,3,162,6],[163,3,163,6],[145,7,145,15],[153,3,153,6],[148,3,148,6],[142,3,142,6],[143,3,143,6],[146,3,146,6],[150,3,150,6],[149,3,149,6],[151,3,151,6],[144,3,144,6],[145,3,145,6],[156,3,156,6],[156,7,156,15],[152,3,152,6],[152,7,152,15],[154,3,154,6],[147,3,147,6],[146,7,146,15],[149,7,149,15],[147,7,147,15],[155,7,155,15],[157,3,157,6],[161,7,161,15],[159,3,159,6],[160,3,160,6],[160,7,160,15],[133,3,133,7],[131,11,131,27],[95,6,95,24],[95,25,95,27],[96,3,96,5],[96,6,96,24],[96,25,96,27],[100,3,100,5],[100,6,100,24],[100,25,100,27],[137,16,137,27],[139,3,139,6],[141,3,141,6],[138,3,138,6],[138,7,138,15],[138,16,138,27],[140,3,140,6],[137,3,137,6],[111,3,111,5],[111,25,111,27],[122,2,122,27],[120,3,120,22],[120,23,120,27],[121,3,121,22],[118,3,118,27],[130,2,130,27],[127,4,128,27],[127,2,128,3],[123,25,123,26],[121,23,121,27],[123,2,123,24],[126,2,126,27],[91,6,91,24],[91,25,91,27],[92,3,92,5],[92,6,92,24],[92,25,92,27],[97,25,97,27],[93,3,93,5],[93,6,93,24],[93,25,93,27],[94,3,94,5],[94,6,94,24],[94,25,94,27],[95,3,95,5],[83,3,83,5],[82,25,82,27],[85,3,85,5],[87,3,87,5],[87,6,87,24],[84,3,84,5],[82,3,82,5],[84,25,84,27],[82,6,82,24],[89,25,89,27],[85,25,85,27],[83,25,83,27],[83,6,83,24],[87,25,87,27],[85,6,85,24],[84,6,84,24],[88,25,88,27],[62,18,62,27],[59,3,59,8],[55,4,55,5],[55,7,55,11],[45,10,45,27],[47,2,47,27],[46,10,46,27],[50,3,50,14],[57,21,57,27],[58,21,58,27],[74,2,74,27],[76,2,77,3],[76,4,77,27],[71,2,71,27],[51,3,51,14],[50,15,50,27],[51,15,51,27],[64,3,64,9],[63,3,63,9],[63,10,63,27],[69,3,69,13],[68,14,68,15],[66,2,66,27],[67,14,67,27],[67,3,67,13],[70,3,70,13],[59,26,59,27],[58,8,58,20],[59,9,59,23],[57,3,57,7],[58,3,58,7],[57,8,57,20],[40,8,40,20],[36,25,36,27],[35,3,35,24],[39,3,39,7],[39,21,39,27],[36,3,36,11],[38,2,38,27],[37,25,37,27],[36,19,36,24],[42,24,42,25],[44,3,44,12],[43,13,43,17],[44,13,44,17],[43,18,43,27],[44,18,44,27],[42,26,42,27],[42,3,42,8],[42,9,42,23],[37,19,37,24],[19,5,19,27],[27,3,27,27],[17,5,17,27],[19,2,19,4],[20,5,20,27],[23,3,23,27],[22,2,22,27],[24,3,24,27],[25,3,25,15],[26,4,26,8],[7,2,7,27],[28,11,28,21],[35,25,35,27],[25,16,25,27],[26,16,26,27],[21,2,21,27],[17,2,17,4],[16,2,16,4],[14,5,14,27],[14,2,14,4],[16,5,16,27],[34,25,34,27],[34,3,34,24],[49,2,49,27],[158,16,158,27],[161,16,161,27],[159,7,159,15],[54,3,54,27],[26,9,26,15],[28,22,28,27],[28,4,28,10],[33,11,33,17],[33,18,33,27],[32,3,32,27],[29,2,29,27],[30,2,30,27],[31,2,31,27],[33,4,33,10],[41,3,41,8],[56,2,56,27],[52,17,52,27],[53,17,53,27],[55,12,55,14],[55,15,55,21],[53,3,53,16],[55,25,55,27],[40,3,40,7],[41,9,41,23],[41,24,41,25],[41,26,41,27],[37,3,37,11],[37,12,37,18],[36,12,36,18],[39,8,39,20],[40,21,40,27],[166,16,166,27],[167,3,167,6],[167,16,167,27],[166,7,166,15],[164,3,164,6],[163,7,163,15],[164,7,164,15],[175,3,175,6],[175,7,175,15],[175,16,175,27],[176,3,176,6],[176,7,176,15],[176,16,176,27],[173,3,173,6],[173,7,173,15],[173,16,173,27],[174,3,174,6],[174,7,174,15],[174,16,174,27],[172,3,172,6],[172,7,172,15],[172,16,172,27],[171,3,171,6],[171,7,171,15],[171,16,171,27],[164,16,164,27],[181,3,181,6],[181,7,181,15],[181,16,181,27],[182,3,182,6],[182,7,182,15],[182,16,182,27],[179,3,179,6],[179,7,179,15],[179,16,179,27],[180,3,180,6],[180,7,180,15],[180,16,180,27],[177,3,177,6],[177,7,177,15],[177,16,177,27],[178,3,178,6],[178,7,178,15],[178,16,178,27],[187,3,187,6],[187,7,187,15],[187,16,187,27],[188,3,188,6],[188,7,188,15],[188,16,188,27],[185,3,185,6],[185,7,185,15],[185,16,185,27],[186,3,186,6],[186,7,186,15],[186,16,186,27],[183,3,183,6],[183,7,183,15],[183,16,183,27],[184,3,184,6],[184,7,184,15],[184,16,184,27],[193,3,193,6],[193,7,193,15],[193,16,193,27],[194,3,194,6],[194,7,194,15],[194,16,194,27],[191,3,191,6],[191,7,191,15],[191,16,191,27],[192,3,192,6],[192,7,192,15],[192,16,192,27],[189,3,189,6],[189,7,189,15],[189,16,189,27],[190,3,190,6],[190,7,190,15],[190,16,190,27],[199,3,199,6],[199,7,199,15],[199,16,199,27],[200,3,200,6],[200,7,200,15],[200,16,200,27],[197,3,197,6],[197,7,197,15],[197,16,197,27],[198,3,198,6],[198,7,198,15],[198,16,198,27],[195,3,195,6],[195,7,195,15],[195,16,195,27],[196,3,196,6],[196,7,196,15],[196,16,196,27],[205,3,205,6],[205,7,205,15],[205,16,205,27],[206,3,206,6],[206,7,206,15],[206,16,206,27],[203,3,203,6],[203,7,203,15],[203,16,203,27],[204,3,204,6],[204,7,204,15],[204,16,204,27],[201,3,201,6],[201,7,201,15],[201,16,201,27],[202,3,202,6],[202,7,202,15],[202,16,202,27],[211,3,211,6],[211,7,211,15],[211,16,211,27],[212,3,212,6],[212,7,212,15],[212,16,212,27],[209,3,209,6],[209,7,209,15],[209,16,209,27],[210,3,210,6],[210,7,210,15],[210,16,210,27],[207,3,207,6],[207,7,207,15],[207,16,207,27],[208,3,208,6],[208,7,208,15],[208,16,208,27],[217,3,217,6],[217,7,217,15],[217,16,217,27],[218,3,218,6],[218,7,218,15],[218,16,218,27],[215,3,215,6],[215,7,215,15],[215,16,215,27],[216,3,216,6],[216,7,216,15],[216,16,216,27],[213,3,213,6],[213,7,213,15],[213,16,213,27],[214,3,214,6],[214,7,214,15],[214,16,214,27],[223,3,223,6],[223,7,223,15],[223,16,223,27],[224,3,224,6],[224,7,224,15],[224,16,224,27],[221,3,221,6],[221,7,221,15],[221,16,221,27],[222,3,222,6],[222,7,222,15],[222,16,222,27],[219,3,219,6],[219,7,219,15],[219,16,219,27],[220,3,220,6],[220,7,220,15],[220,16,220,27],[229,3,229,6],[229,7,229,15],[229,16,229,27],[230,3,230,6],[230,7,230,15],[230,16,230,27],[227,3,227,6],[227,7,227,15],[227,16,227,27],[228,3,228,6],[228,7,228,15],[228,16,228,27],[225,3,225,6],[225,7,225,15],[225,16,225,27],[226,3,226,6],[226,7,226,15],[226,16,226,27],[235,3,235,6],[235,7,235,15],[235,16,235,27],[236,3,236,6],[236,7,236,15],[236,16,236,27],[233,3,233,6],[233,7,233,15],[233,16,233,27],[234,3,234,6],[234,7,234,15],[234,16,234,27],[231,3,231,6],[231,7,231,15],[231,16,231,27],[232,3,232,6],[232,7,232,15],[232,16,232,27],[241,3,241,6],[241,7,241,15],[241,16,241,27],[242,3,242,6],[242,7,242,15],[242,16,242,27],[239,3,239,6],[239,7,239,15],[239,16,239,27],[240,3,240,6],[240,7,240,15],[240,16,240,27],[237,3,237,6],[237,7,237,15],[237,16,237,27],[238,3,238,6],[238,7,238,15],[238,16,238,27],[247,3,247,6],[247,7,247,15],[247,16,247,27],[248,3,248,6],[248,7,248,15],[248,16,248,27],[245,3,245,6],[245,7,245,15],[245,16,245,27],[246,3,246,6],[246,7,246,15],[246,16,246,27],[243,3,243,6],[243,7,243,15],[243,16,243,27],[244,3,244,6],[244,7,244,15],[244,16,244,27],[253,3,253,6],[253,7,253,15],[253,16,253,27],[254,3,254,6],[254,7,254,15],[254,16,254,27],[251,3,251,6],[251,7,251,15],[251,16,251,27],[252,3,252,6],[252,7,252,15],[252,16,252,27],[249,3,249,6],[249,7,249,15],[249,16,249,27],[250,3,250,6],[250,7,250,15],[250,16,250,27],[259,3,259,6],[259,7,259,15],[259,16,259,27],[260,3,260,6],[260,7,260,15],[260,16,260,27],[257,3,257,6],[257,7,257,15],[257,16,257,27],[258,3,258,6],[258,7,258,15],[258,16,258,27],[255,3,255,6],[255,7,255,15],[255,16,255,27],[256,3,256,6],[256,7,256,15],[256,16,256,27],[265,3,265,6],[265,7,265,15],[265,16,265,27],[266,3,266,6],[266,7,266,15],[266,16,266,27],[263,3,263,6],[263,7,263,15],[263,16,263,27],[264,3,264,6],[264,7,264,15],[264,16,264,27],[261,3,261,6],[261,7,261,15],[261,16,261,27],[262,3,262,6],[262,7,262,15],[262,16,262,27],[271,3,271,6],[271,7,271,15],[271,16,271,27],[272,3,272,6],[272,7,272,15],[272,16,272,27],[269,3,269,6],[269,7,269,15],[269,16,269,27],[270,3,270,6],[270,7,270,15],[270,16,270,27],[267,3,267,6],[267,7,267,15],[267,16,267,27],[268,3,268,6],[268,7,268,15],[268,16,268,27],[277,3,277,6],[277,7,277,15],[277,16,277,27],[278,3,278,6],[278,7,278,15],[278,16,278,27],[275,3,275,6],[275,7,275,15],[275,16,275,27],[276,3,276,6],[276,7,276,15],[276,16,276,27],[273,3,273,6],[273,7,273,15],[273,16,273,27],[274,3,274,6],[274,7,274,15],[274,16,274,27],[283,3,283,6],[283,7,283,15],[283,16,283,27],[284,3,284,6],[284,7,284,15],[284,16,284,27],[281,3,281,6],[281,7,281,15],[281,16,281,27],[282,3,282,6],[282,7,282,15],[282,16,282,27],[279,3,279,6],[279,7,279,15],[279,16,279,27],[280,3,280,6],[280,7,280,15],[280,16,280,27],[289,3,289,6],[289,7,289,15],[289,16,289,27],[290,3,290,6],[290,7,290,15],[290,16,290,27],[287,3,287,6],[287,7,287,15],[287,16,287,27],[288,3,288,6],[288,7,288,15],[288,16,288,27],[285,3,285,6],[285,7,285,15],[285,16,285,27],[286,3,286,6],[286,7,286,15],[286,16,286,27],[295,3,295,6],[295,7,295,15],[295,16,295,27],[296,3,296,6],[296,7,296,15],[296,16,296,27],[293,3,293,6],[293,7,293,15],[293,16,293,27],[294,3,294,6],[294,7,294,15],[294,16,294,27],[291,3,291,6],[291,7,291,15],[291,16,291,27],[292,3,292,6],[292,7,292,15],[292,16,292,27],[301,3,301,6],[301,7,301,15],[301,16,301,27],[302,3,302,6],[302,7,302,15],[302,16,302,27],[299,3,299,6],[299,7,299,15],[299,16,299,27],[300,3,300,6],[300,7,300,15],[300,16,300,27],[297,3,297,6],[297,7,297,15],[297,16,297,27],[298,3,298,6],[298,7,298,15],[298,16,298,27],[307,3,307,6],[307,7,307,15],[307,16,307,27],[308,3,308,6],[308,7,308,15],[308,16,308,27],[305,3,305,6],[305,7,305,15],[305,16,305,27],[306,3,306,6],[306,7,306,15],[306,16,306,27],[303,3,303,6],[303,7,303,15],[303,16,303,27],[304,3,304,6],[304,7,304,15],[304,16,304,27],[313,3,313,6],[313,7,313,15],[313,16,313,27],[314,3,314,6],[314,7,314,15],[314,16,314,27],[311,3,311,6],[311,7,311,15],[311,16,311,27],[312,3,312,6],[312,7,312,15],[312,16,312,27],[309,3,309,6],[309,7,309,15],[309,16,309,27],[310,3,310,6],[310,7,310,15],[310,16,310,27],[319,3,319,6],[319,7,319,15],[319,16,319,27],[320,3,320,6],[320,7,320,15],[320,16,320,27],[317,3,317,6],[317,7,317,15],[317,16,317,27],[318,3,318,6],[318,7,318,15],[318,16,318,27],[315,3,315,6],[315,7,315,15],[315,16,315,27],[316,3,316,6],[316,7,316,15],[316,16,316,27],[325,3,325,6],[325,7,325,15],[325,16,325,27],[326,3,326,6],[326,7,326,15],[326,16,326,27],[323,3,323,6],[323,7,323,15],[323,16,323,27],[324,3,324,6],[324,7,324,15],[324,16,324,27],[321,3,321,6],[321,7,321,15],[321,16,321,27],[322,3,322,6],[322,7,322,15],[322,16,322,27],[331,3,331,6],[331,7,331,15],[331,16,331,27],[332,3,332,6],[332,7,332,15],[332,16,332,27],[329,3,329,6],[329,7,329,15],[329,16,329,27],[330,3,330,6],[330,7,330,15],[330,16,330,27],[327,3,327,6],[327,7,327,15],[327,16,327,27],[328,3,328,6],[328,7,328,15],[328,16,328,27],[337,3,337,6],[337,7,337,15],[337,16,337,27],[338,3,338,6],[338,7,338,15],[338,16,338,27],[335,3,335,6],[335,7,335,15],[335,16,335,27],[336,3,336,6],[336,7,336,15],[336,16,336,27],[333,3,333,6],[333,7,333,15],[333,16,333,27],[334,3,334,6],[334,7,334,15],[334,16,334,27],[343,3,343,6],[343,7,343,15],[343,16,343,27],[344,3,344,6],[344,7,344,15],[344,16,344,27],[341,3,341,6],[341,7,341,15],[341,16,341,27],[342,3,342,6],[342,7,342,15],[342,16,342,27],[339,3,339,6],[339,7,339,15],[339,16,339,27],[340,3,340,6],[340,7,340,15],[340,16,340,27],[349,3,349,6],[349,7,349,15],[349,16,349,27],[350,3,350,6],[350,7,350,15],[350,16,350,27],[347,3,347,6],[347,7,347,15],[347,16,347,27],[348,3,348,6],[348,7,348,15],[348,16,348,27],[345,3,345,6],[345,7,345,15],[345,16,345,27],[346,3,346,6],[346,7,346,15],[346,16,346,27],[355,3,355,6],[355,7,355,15],[355,16,355,27],[356,3,356,6],[356,7,356,15],[356,16,356,27],[353,3,353,6],[353,7,353,15],[353,16,353,27],[354,3,354,6],[354,7,354,15],[354,16,354,27],[351,3,351,6],[351,7,351,15],[351,16,351,27],[352,3,352,6],[352,7,352,15],[352,16,352,27],[361,3,361,6],[361,7,361,15],[361,16,361,27],[362,3,362,6],[362,7,362,15],[362,16,362,27],[359,3,359,6],[359,7,359,15],[359,16,359,27],[360,3,360,6],[360,7,360,15],[360,16,360,27]],"merged_total":1234,"flags":["merged_cut"]}
[null,"Strona programu VAT-REF www.iform.pl",null,null,null,null,null,null,null,null,null,null,null,null,null,null,null,null,null,null,null,null,null,null,null,null,null,null,null,null,1,null,"wnioskodawca","DOLNOŚLĄSKIE","PLN",null,null,null,null,null,null,null,null,null,null,null,null,null,null,null,null,null,null,null,null,null,null,null,null,null,null,null,"Pełnomocnik"]
[null,null,null,null,null,null,null,null,null,null,null,null,null,null,null,null,null,null,null,null,null,null,null,null,null,null,null,null,null,null,1,null,{"$f":"IF(AE4=1,\"reprezentant\",\"\")","v":""},"KUJAWSKO-POMORSKIE","EUR"]
[null,"Plik ZIP:",null,null,null,null,null,null,null,null,null,null,null,null,null,null,null,null,null,null,null,null,null,null,null,null,null,null,null,null,1,null,null,"LUBELSKIE","AED"]
[null,null,"Nie wypełniać żółtych pól",null,null,null,null,{"$f":"\"Program zapisuje do \"&A!PR2&\" faktur lub dokumentów celnych we wniosku VAT-REF\"","v":"Program zapisuje do 50 faktur lub dokumentów celnych we wniosku VAT-REF"},null,null,null,null,null,null,null,null,null,null,null,null,null,null,null,null,null,null,null,null,null,null,0,null,"<?xml version='1.0' encoding='UTF-8'?><soapenv:Envelope xmlns:soapenv=\"http://schemas.xmlsoap.org/soap/envelope/\"><soapenv:Body><ns:sendDocumentWithAttachmentResponse xmlns:ns=\"https://bramka.e-deklaracje.mf.gov.pl/xsd\"><ns:refId>9decd80136ae23e93e10790a4fd31900</ns:refId><ns:status>301</ns:status><ns:statusOpis>Dokument w trakcie przetwarzania, sprawdź wynik następnej weryfikacji dokumentu</ns:statusOpis></ns:sendDocumentWithAttachmentResponse></soapenv:Body></soapenv:Envelope>","LUBUSKIE","AFN"]
[null,null,null,null,null,null,null,null,null,null,null,null,null,null,null,null,null,null,null,null,null,null,null,null,null,null,null,null,null,null,1,null,null,"ŁÓDZKIE","ALL"]
[null,null," POLTAX",null," POLA JASNE WYPEŁNIA PODATNIK, POLA CIEMNE WYPEŁNIA URZĄD SKARBOWY. WYPEŁNIAĆ KOMPUTEROWO.",null,null,null,null,null,null,null,null,null,null,null,null,null,null,null,null,null,null,null,null,null,null,null,null,null,null,null,null,"MAŁOPOLSKIE","AMD"]
[null,null,null,null,null,null,null,null,null,null,null,null,null,null,null,null,null,null,null,null,null,null,null,null,null,null,null,null,null,null,null,null,null,"MAZOWIECKIE","ANG"]
[null,null,null,null,null,null,null,null,null,null,null,null,null,null,null,null,null,null,null,null,null,null,null,null,null,null,null,null,null,null,null,null,null,"OPOLSKIE","AOA"]
[null,null," 1. Identyfikator podatkowy NIP podatnika",null,null,null,null,null,null,null,null," 2. Nr dokumentu",null,null,null,null,null,null,null,null,null,null,null,null," 3. Status",null,null,null,null,null,null,null,null,"PODKARPACKIE","ARS"]
[null,null,"PL",null,null,null,null,null,null,null,null,null,null,null,null,null,null,null,null,null,null,null,null,null,null,null,null,null,null,null,null,null,null,"PODLASKIE","AUD"]
[null,null,"  VAT-REF",null,null,null,null,null,"  WNIOSEK O ZWROT PODATKU OD WARTOŚCI",null,null,null,null,null,null,null,null,null,null,null,null,null,null,null,null,null,null,null,null,null,null,null,null,"POMORSKIE","AWG"]
[null,null,null,null,null,null,null,null,"  DODANEJ (VAT) NALICZONEGO W INNYM",null,null,null,null,null,null,null,null,null,null,null,null,null,null,null,null,null,null,null,null,null,null,null,null,"ŚLĄSKIE","AZN"]
[null,null,null,null,null,null,null,null,"  PAŃSTWIE CZŁONKOWSKIM",null,null,null,null,null,null,null,null,null,null,null,null,null,null,null,null,null,null,null,null,null,null,null,null,"ŚWIĘTOKRZYSKIE","BAM"]
[null,null," Podstawa prawna:",null,null," Art. 89 ust. 1h ustawy z dnia 11 marca 2004 r. o podatku od towarów i usług (Dz. U. z 2021 r. poz. 685, z późn. zm.), zwanej dalej „ustawą”.",null,null,null,null,null,null,null,null,null,null,null,null,null,null,null,null,null,null,null,null,null,null,null,null,null,null,null,"WARMIŃSKO-MAZURSKIE","BBD"]
[null,null," Składający:",null,null," Podatnicy podatku od towarów i usług, o których mowa w art. 15 ustawy - ubiegający się o zwrot podatku od wartości dodanej.",null,null,null,null,null,null,null,null,null,null,null,null,null,null,null,null,null,null,null,null,null,null,null,null,null,null,null,"WIELKOPOLSKIE","BDT"]
[null,null," Termin składania:",null,null," Do dnia 30 września roku następującego po roku podatkowym, którego wniosek dotyczy.",null,null,null,null,null,null,null,null,null,null,null,null,null,null,null,null,null,null,null,null,null,null,null,null,null,null,null,"ZACHODNIOPOMORSKIE","BGN"]
[null,null," Miejsce składania:",null,null," Podatnicy, o których mowa w art. 15 ustawy ubiegający się o zwrot podatku od wartości dodanej, składają wniosek za pośrednictwem urzędu",null,null,null,null,null,null,null,null,null,null,null,null,null,null,null,null,null,null,null,null,null,null,null,null,null,null,null,null,"BHD"]
[null,null,null,null,null," skarbowego właściwego ze względu na miejsce wykonywania czynności podlegających opodatkowaniu podatkiem od towarów i usług, a jeżeli",null,null,null,null,null,null,null,null,null,null,null,null,null,null,null,null,null,null,null,null,null,null,null,null,null,null,null,null,"BIF"]
[null,null,null,null,null," czynności te wykonywane są na terenie dwóch lub więcej urzędów skarbowych, to osoby fizyczne składają wniosek za pośrednictwem urzędu",null,null,null,null,null,null,null,null,null,null,null,null,null,null,null,null,null,null,null,null,null,null,null,null,null,null,null,null,"BMD"]
[null,null,null,null,null," skarbowego właściwego ze względu na miejsce zamieszkania, a osoby prawne i jednostki organizacyjne niemające osobowości prawnej - ze",null,null,null,null,null,null,null,null,null,null,null,null,null,null,null,null,null,null,null,null,null,null,null,null,null,null,null,null,"BND"]
[null,null,null,null,null," względu na adres siedziby.",null,null,null,null,null,null,null,null,null,null,null,null,null,null,null,null,null,null,null,null,null,null,null,null,null,null,null,null,"BOB"]
[null,null,null,null,null,null,null,null,null,null,null,null,null,null,null,null,null,null,null,null,null,null,null,null,null,null,null,null,null,null,null,null,null,null,"BOV"]
[null,null," A. MIEJSCE I CEL SKŁADANIA WNIOSKU",null,null,null,null,null,null,null,null,null,null,null,null,null,null,null,null,null,null,null,null,null,null,null,null,null,null,null,null,null,null,null,"BRL"]
[null,null,null," 4. Urząd skarbowy, za pośrednictwem którego przekazywany jest wniosek",null,null,null,null,null,null,null,null,null,null,null,null,null,null,null,null,null,null,null,null,null,null,null,null,null,null,null,null,null,null,"BSD"]
[null,null,null,null,null,null,null,null,null,null,null,null,null,null,null,null,null,null,null,null,null,null,null,null,null,null,null,null,null,null,{"$f":"VLOOKUP(D25,US,2,FALSE)","v":{"$error":"#N/A"}},null,null,null,"BTN"]
[null,null,null," 5. Cel złożenia formularza (zaznaczyć właściwy kwadrat):",null,null,null,null,null,null,null,null,null,null,null,null," 6. Data wypełnienia:",null,null,null,null,null,null,null,null,null,null,null,null,null,null,null,null,null,"BWP"]
[null,null,null,null," 1. złożenie wniosku",null,null,null,null," 2. korekta wniosku",null,null,null,null,null,null,null,null,null,null,null,null,null,null,null,null,null,null,null,null,null,null,null,null,"BYR"]
[null,null,null," 7. Rodzaj składanego wniosku (zaznaczyć właściwy kwadrat):",null,null,null,null,null,null,null,null,null,null,null,null,null,null,null,null,null,null,null,null,null,null,null,null,null,null,null,null,null,null,"BZD"]
[null,null,null,null," 1. Wniosek o zwrot podatku VAT",null,null,null,null,null,null," 2. Wniosek o zwrot i zmiana proporcji",null,null,null,null,null,null,null,null,null,null," 3. Zmiana proporcji",null,null,null,null,null,null,null,null,null,null,null,"CAD"]
[null,null,null,null,null,null,null,null,null,null,null,null,null,null,null,null,null,null,null,null,null,null,null,null,null,null,null,null,null,null,null,null,null,null,"CDF"]
[null,null," B. DANE WNIOSKODAWCY",null,null,null,null,null,null,null,null,null,null,null,null,null,null,null,null,null,null,null,null,null,null,null,null,null,null,null,null,null,null,null,"CHF"]
[null,null," B.1. DANE IDENTYFIKACYJNE",null,null,null,null,null,null,null,null,null,null,null,null,null,null,null,null,null,null,null,null,null,null,null,null,null,null,null,null,null,null,null,"CLF"]
[null,null,null," 8. Rodzaj wnioskodawcy (zaznaczyć właściwy kwadrat):",null,null,null,null,null,null,null,null,null,null,null,null,null,null,null,null,null,null,null,null,null,null,null,null,null,null,null,null,null,null,"CLP"]
[null,null,null,null," 1. podmiot niebędący osobą fizyczną",null,null,null,null,null,null," 2. osoba fizyczna",null,null,null,null,null,null," Wnioskodawca posiada pełnomocnika (reprezentanta)",null,null,null,null,null,null,null,null,null,null,null,null,null,null,null,"CNY"]
[null,null,null," 9. Nazwa pełna",null,null,null,null,null,null,null,null,null,null,null,null,null,null,null,null,null,null,null,null,null,"REGON",null,null,null,null,null,null,null,null,"COP"]
[null,null,null,null,null,null,null,null,null,null,null,null,null,null,null,null,null,null,null,null,null,null,null,null,null,null,null,null,null,null,null,null,null,null,"COU"]
[null,null,null," 9. Nazwisko",null,null,null,null,null,null,null,null," Pierwsze imię",null,null,null,null,null,null," Data urodzenia",null,null,null,null,null,"Numer PESEL",null,null,null,null,null,null,null,null,"CRC"]
[null,null,null,null,null,null,null,null,null,null,null,null,null,null,null,null,null,null,null,null,null,null,null,null,null,null,null,null,null,null,null,null,null,null,"CUC"]
[null,null," B.2. ADRES SIEDZIBY",null,null,null,null,null,null,null,null,null,null,null,null,null,null,null,null,null,null,null,null,null,null,null,null,null,null,null,null,null,null,null,"CUP"]
[null,null,null," 10. Kraj",null,null,null,null," 11. Województwo",null,null,null,null,null,null,null,null,null,null,null,null," 12. Powiat",null,null,null,null,null,null,null,null,null,null,null,null,"CVE"]
[null,null,null,"POLSKA",null,null,null,null,null,null,null,null,null,null,null,null,null,null,null,null,null,null,null,null,null,null,null,null,null,null,{"$f":"VLOOKUP(D41,Kraje,2,FALSE)","v":"PL"},null,null,null,"CZK"]
[null,null,null," 13. Gmina",null,null,null,null,null," 14. Ulica",null,null,null,null,null,null,null,null,null,null,null,null,null,null," 15. Nr domu",null," 16. Nr lokalu",null,null,null,null,null,null,null,"DJF"]
[null,null,null,null,null,null,null,null,null,null,null,null,null,null,null,null,null,null,null,null,null,null,null,null,null,null,null,null,null,null,null,null,null,null,"DKK"]
[null,null,null," 17. Miejscowość",null,null,null,null,null,null,null,null,null," 18. Kod pocztowy",null,null,null,null," 19. Poczta",null,null,null,null,null,null,null,null,null,null,null,null,null,null,null,"DOP"]
[null,null,null,null,null,null,null,null,null,null,null,null,null,null,null,null,null,null,null,null,null,null,null,null,null,null,null,null,null,null,null,null,null,null,"DZD"]
[null,null,null," 20. Telefon kontaktowy",null,null,null,null,null,null," 21. Adres email",null,null,null,null,null,null,null,null,null,null,null,null,null,null,null,null,null,null,null,null,null,null,null,"EEK"]
[null,null,null,null,null,null,null,null,null,null,null,null,null,null,null,null,null,null,null,null,null,null,null,null,null,null,null,null,null,null,null,null,null,null,"EGP"]
[null,null,null,null,null,null,null,null,null,null,null,null,null,null,null,null,null,null,null,null,null,null,null,null,null,null,null,null,null,null,null,null,null,null,"ERN"]
[null,null," C. DANE OSOBY REPREZENTUJĄCEJ PODATNIKA",null,null,null,null,null,null,null,null,null,null,null,null,null,null,null,null,null,null,null,null,null,null,null,null,null,null,null,null,null,null,null,"ETB"]
[null,null," C.1. DANE IDENTYFIKACYJNE",null,null,null,null,null,null,null,null,null,null,null,null,null,null,null,null,null,null,null,null,null,null,null,null,null,null,null,null,null,null,null,"FJD"]
[null,null,null," 22. Identyfikator podatkowy NIP",null,null,null,null,null,null,null,null,null,null,null," 23. Numer PESEL",null,null,null,null,null,null,null,null,null,null,null,null,null,null,null,null,null,null,"FKP"]
[null,null,null,null,null,null,null,null,null,null,null,null,null,null,null,null,null,null,null,null,null,null,null,null,null,null,null,null,null,null,null,null,null,null,"GBP"]
[null,null,null," 24. Nazwisko",null,null,null,null,null,null,null,null,null,null,null,null,null," 25. Pierwsze imię",null,null,null,null,null,null,null,null,null,null,null,null,null,null,null,null,"GEL"]
[null,null,null,null,null,null,null,null,null,null,null,null,null,null,null,null,null,null,null,null,null,null,null,null,null,null,null,null,null,null,null,null,null,null,"GHS"]
[null,null,null," 26. Inny identyfikator reprezentanta (wypełnić w przypadku braku NIP)",null,null,null,null,null,null,null,null,null,null,null,null,null,null,null,null,null,null,null,null,null,null,null,null,null,null,null,null,null,null,"GIP"]
[null,null,null," Typ:",null,null," Kraj:",null,null,null,null,null," Kwalifikator:",null,null,null,null,null,null,null,null,null," Numer:",null,null,null,null,null,null,null,null,null,null,null,"GMD"]
[null,null," C.2. ADRES SIEDZIBY / ADRES ZAMIESZKANIA",null,null,null,null,null,null,null,null,null,null,null,null,null,null,null,null,null,null,null,null,null,null,null,null,null,null,null,null,null,null,null,"GNF"]
[null,null,null," 27. Kraj",null,null,null,null," 28. Województwo",null,null,null,null,null,null,null,null,null,null,null,null," 29. Powiat",null,null,null,null,null,null,null,null,null,null,null,null,"GTQ"]
[null,null,null,null,null,null,null,null,null,null,null,null,null,null,null,null,null,null,null,null,null,null,null,null,null,null,null,null,null,null,{"$f":"VLOOKUP(D59,Kraje,2,FALSE)","v":{"$error":"#N/A"}},null,null,null,"GWP"]
[null,null,null," 30. Gmina",null,null,null,null,null," 31. Ulica",null,null,null,null,null,null,null,null,null,null,null,null,null,null," 32. Nr domu",null," 33. Nr lokalu",null,null,null,null,null,null,null,"GYD"]
[null,null,null,null,null,null,null,null,null,null,null,null,null,null,null,null,null,null,null,null,null,null,null,null,null,null,null,null,null,null,null,null,null,null,"HKD"]
[null,null,null," 34. Miejscowość",null,null,null,null,null,null,null,null,null," 35. Kod pocztowy",null,null,null,null," 36. Poczta",null,null,null,null,null,null,null,null,null,null,null,null,null,null,null,"HNL"]
[null,null,null,null,null,null,null,null,null,null,null,null,null,null,null,null,null,null,null,null,null,null,null,null,null,null,null,null,null,null,null,null,null,null,"HRK"]
[null,null,null," 37. Telefon",null,null,null,null,null,null," 38. Adres email",null,null,null,null,null,null,null,null,null,null,null,null,null,null,null,null,null,null,null,null,null,null,null,"HTG"]
[null,null,null,null,null,null,null,null,null,null,null,null,null,null,null,null,null,null,null,null,null,null,null,null,null,null,null,null,null,null,null,null,null,null,"HUF"]
[null,null,null,null,null,null,null,null,null,null,null,null,null,null,null,null,null,null,null,null,null,null,null,null,null,null,null,null,null,null,null,null,null,null,"IDR"]
[null,null," D. DANE WNIOSKU O ZWROT PODATKU VAT",null,null,null,null,null,null,null,null,null,null,null,null,null,null,null,null,null,null,null,null,null,null,null,null,null,null,null,null,null,null,null,"ILS"]
[null,null,null," 39. Państwo członkowskie, do którego kierowany jest wniosek",null,null,null,null,null,null,null,null,null,null," 40. Okres, do którego odnosi się wniosek",null,null,null,null,null,null,null,null,null,null,null,null,null,null,null,null,null,null,null,"INR"]
[null,null,null,null,null,null,null,null,null,null,null,null,{"$f":"AE69","v":""},null," Data \"od\":",null,null,null,null,null,null,null," Data \"do\":",null,null,null,null,null,null,null,{"$f":"IF(D69=\"\",\"\",VLOOKUP(D69,A!I1:J31,2,FALSE))","v":""},null,null,null,"IQD"]
[null,null,null," 41. Numer wniosku, do którego odnosi się korekta",null,null,null,null,null,null,null,null,null,null," 42. Data wniosku, do którego odnosi się korekta (wersja):",null,null,null,null,null,null,null,null,null,null,null,null,null,null,null,null,null,null,null,"IRR"]
[null,null,null,null,null,null,null,null,null,null,null,null,null,null,null,null,null,null,null,null,null,null,null,null,null,null,null,null,null,null,null,null,null,null,"ISK"]
[null,null,null,null,null,null,null,null,null,null,null,null,null,null,null,null,null,null,null,null,null,null,null,null,null,null,null,null,null,null,null,null,null,null,"JMD"]
[null,null,null,null,null,null,null,null,null,null,null,null,null,null,null,null,null,null,null,null,null,null,null,null,null,"VAT-REF(6)",null,"1/3",null,null,null,null,null,null,"JOD"]
[null,null,null,null,null,null,null,null,null,null,null,null,null,null,null,null,null,null,null,null,null,null,null,null,null,null,null,null,null,null,null,null,null,null,"JPY"]
[null,null,null,null,null,null,null,null,null,null,null,null,null,null,null,null,null,null,null,null,null,null,null,null,null,null,null,null,null,null,null,null,null,null,"KES"]
[null,null,null,null,null,null,null,null,null,null,null,null,null,null,null,null,null,null,null,null,null,null,null,null,null,null,null,null,null,null,null,null,null,null,"KGS"]
[null,null," POLTAX",null," POLA JASNE WYPEŁNIA PODATNIK, POLA CIEMNE WYPEŁNIA URZĄD SKARBOWY. WYPEŁNIAĆ KOMPUTEROWO.",null,null,null,null,null,null,null,null,null,null,null,null,null,null,null,null,null,null,null,null,null,null,null,null,null,null,null,null,null,"KHR"]
[null,null,null,null,null,null,null,null,null,null,null,null,null,null,null,null,null,null,null,null,null,null,null,null,null,null,null,null,null,null,null,null,null,null,"KMF"]
[null,null,null,null,null,null,null,null,null,null,null,null,null,null,null,null,null,null,null,null,null,null,null,null,null,null,null,null,null,null,null,null,null,null,"KPW"]
[null,null," D. 1. RODZAJE PROWADZONEJ DZIAŁALNOŚCI",null,null,null,null,null,null,null,null,null,null,null,null,null,null,null,null,null,null,null,null,null,null,null,null,null,null,null,null,null,null,null,"KRW"]
[null,null,null," 43. Kod",null,null," 44. Opis prowadzonej działalności (tylko w przypadku gdy państwo członkowskie,",null,null,null,null,null,null,null,null,null,null,null,null,null,null,null,null,null,null," 45. Kod języka państwa",null,null,null,null,null,null,null,null,"KWD"]
[null,null,null,"     prowadzonej",null,null,"       do którego kierowany jest wniosek zezwala na opis tekstowy działalności)",null,null,null,null,null,null,null,null,null,null,null,null,null,null,null,null,null,null,"    członkowskiego, do którego",null,null,null,null,null,null,null,null,"KYD"]
[null,null,null,"    działalności",null,null,null,null,null,null,null,null,null,null,null,null,null,null,null,null,null,null,null,null,null,"    kierowany jest wniosek",null,null,null,null,null,null,null,null,"KZT"]
[null,null,null,"a",null,null,"b",null,null,null,null,null,null,null,null,null,null,null,null,null,null,null,null,null,null,"c",null,null,null,null,null,null,null,null,"LAK"]
[null,null,1,null,null,null,null,null,null,null,null,null,null,null,null,null,null,null,null,null,null,null,null,null,null,null,null,null,null,null,null,null,null,null,"LBP"]
[null,null,2,null,null,null,null,null,null,null,null,null,null,null,null,null,null,null,null,null,null,null,null,null,null,null,null,null,null,null,null,null,null,null,"LKR"]
[null,null,3,null,null,null,null,null,null,null,null,null,null,null,null,null,null,null,null,null,null,null,null,null,null,null,null,null,null,null,null,null,null,null,"LRD"]
[null,null,4,null,null,null,null,null,null,null,null,null,null,null,null,null,null,null,null,null,null,null,null,null,null,null,null,null,null,null,null,null,null,null,"LSL"]
[null,null,5,null,null,null,null,null,null,null,null,null,null,null,null,null,null,null,null,null,null,null,null,null,null,null,null,null,null,null,null,null,null,null,"LTL"]
[null,null,6,null,null,null,null,null,null,null,null,null,null,null,null,null,null,null,null,null,null,null,null,null,null,null,null,null,null,null,null,null,null,null,"LVL"]
[null,null,7,null,null,null,null,null,null,null,null,null,null,null,null,null,null,null,null,null,null,null,null,null,null,null,null,null,null,null,null,null,null,null,"LYD"]
[null,null,8,null,null,null,null,null,null,null,null,null,null,null,null,null,null,null,null,null,null,null,null,null,null,null,null,null,null,null,null,null,null,null,"MAD"]
[null,null,9,null,null,null,null,null,null,null,null,null,null,null,null,null,null,null,null,null,null,null,null,null,null,null,null,null,null,null,null,null,null,null,"MDL"]
[null,null,10,null,null,null,null,null,null,null,null,null,null,null,null,null,null,null,null,null,null,null,null,null,null,null,null,null,null,null,null,null,null,null,"MGA"]
[null,null,11,null,null,null,null,null,null,null,null,null,null,null,null,null,null,null,null,null,null,null,null,null,null,null,null,null,null,null,null,null,null,null,"MKD"]
[null,null,12,null,null,null,null,null,null,null,null,null,null,null,null,null,null,null,null,null,null,null,null,null,null,null,null,null,null,null,null,null,null,null,"MMK"]
[null,null,13,null,null,null,null,null,null,null,null,null,null,null,null,null,null,null,null,null,null,null,null,null,null,null,null,null,null,null,null,null,null,null,"MNT"]
[null,null,14,null,null,null,null,null,null,null,null,null,null,null,null,null,null,null,null,null,null,null,null,null,null,null,null,null,null,null,null,null,null,null,"MOP"]
[null,null,15,null,null,null,null,null,null,null,null,null,null,null,null,null,null,null,null,null,null,null,null,null,null,null,null,null,null,null,null,null,null,null,"MRO"]
[null,null,16,null,null,null,null,null,null,null,null,null,null,null,null,null,null,null,null,null,null,null,null,null,null,null,null,null,null,null,null,null,null,null,"MUR"]
[null,null,17,null,null,null,null,null,null,null,null,null,null,null,null,null,null,null,null,null,null,null,null,null,null,null,null,null,null,null,null,null,null,null,"MVR"]
[null,null,18,null,null,null,null,null,null,null,null,null,null,null,null,null,null,null,null,null,null,null,null,null,null,null,null,null,null,null,null,null,null,null,"MWK"]
[null,null,19,null,null,null,null,null,null,null,null,null,null,null,null,null,null,null,null,null,null,null,null,null,null,null,null,null,null,null,null,null,null,null,"MXN"]
[null,null,20,null,null,null,null,null,null,null,null,null,null,null,null,null,null,null,null,null,null,null,null,null,null,null,null,null,null,null,null,null,null,null,"MXV"]
[null,null,21,null,null,null,null,null,null,null,null,null,null,null,null,null,null,null,null,null,null,null,null,null,null,null,null,null,null,null,null,null,null,null,"MYR"]
[null,null,22,null,null,null,null,null,null,null,null,null,null,null,null,null,null,null,null,null,null,null,null,null,null,null,null,null,null,null,null,null,null,null,"MZN"]
[null,null,23,null,null,null,null,null,null,null,null,null,null,null,null,null,null,null,null,null,null,null,null,null,null,null,null,null,null,null,null,null,null,null,"NAD"]
[null,null,24,null,null,null,null,null,null,null,null,null,null,null,null,null,null,null,null,null,null,null,null,null,null,null,null,null,null,null,null,null,null,null,"NGN"]
[null,null,25,null,null,null,null,null,null,null,null,null,null,null,null,null,null,null,null,null,null,null,null,null,null,null,null,null,null,null,null,null,null,null,"NIO"]
[null,null,26,null,null,null,null,null,null,null,null,null,null,null,null,null,null,null,null,null,null,null,null,null,null,null,null,null,null,null,null,null,null,null,"NOK"]
[null,null,27,null,null,null,null,null,null,null,null,null,null,null,null,null,null,null,null,null,null,null,null,null,null,null,null,null,null,null,null,null,null,null,"NPR"]
[null,null,28,null,null,null,null,null,null,null,null,null,null,null,null,null,null,null,null,null,null,null,null,null,null,null,null,null,null,null,null,null,null,null,"NZD"]
[null,null,29,null,null,null,null,null,null,null,null,null,null,null,null,null,null,null,null,null,null,null,null,null,null,null,null,null,null,null,null,null,null,null,"OMR"]
[null,null,30,null,null,null,null,null,null,null,null,null,null,null,null,null,null,null,null,null,null,null,null,null,null,null,null,null,null,null,null,null,null,null,"PAB"]
[null,null,null,null,null,null,null,null,null,null,null,null,null,null,null,null,null,null,null,null,null,null,null,null,null,null,null,null,null,null,null,null,null,null,"PEN"]
[null,null," D. 2. SZCZEGÓŁY DOTYCZĄCE RACHUNKU BANKOWEGO, NA KTÓRY MA BYĆ DOKONANY ZWROT PODATKU",null,null,null,null,null,null,null,null,null,null,null,null,null,null,null,null,null,null,null,null,null,null,null,null,null,null,null,null,null,null,null,"PGK"]
[null,null,null," 46. Nazwa właściciela rachunku",null,null,null,null,null,null,null,null,null,null,null,null,null,null,null,null," 47. Rodzaj właściciela rachunku",null,null,null,null,null,null,null,null,null,null,null,null,null,"PHP"]
[null,null,null,null,null,null,null,null,null,null,null,null,null,null,null,null,null,null,null,null,null,null,null,null,null,null,null,null,null,null,null,null,null,null,"PKR"]
[null,null,null," 48. Nr IBAN",null,null,null,null,null,null,null,null,null,null,null,null,null,null,null,null,null,null,null,null,null,null,null,null,null,null,null,null,null,null,"PYG"]
[null,null,null,null,null,null,null,null,null,null,null,null,null,null,null,null,null,null,null,null,null,null,null,null,null,null,null,null,null,null,null,null,null,null,"QAR"]
[null,null,null," 49. Kod BIC",null,null,null,null,null,null,null,null,null,null,null,null,null,null,null,null,null,null,null," 50. Kod waluty rachunku",null,null,null,null,null,null,null,null,null,null,"RON"]
[null,null,null,null,null,null,null,null,null,null,null,null,null,null,null,null,null,null,null,null,null,null,null,null,null,null,null,null,null,null,null,null,null,null,"RSD"]
[null,null,null,null,null,null,null,null,null,null,null,null,null,null,null,null,null,null,null,null,null,null,null,null,null,null,null,null,null,null,null,null,null,null,"RUB"]
[null,null,null,null,null,null,null,null,null,null,null,null,null,null,null,null,null,null,null,null,null,null,null,null,null,"VAT-REF(6)",null,"2/3",null,null,null,null,null,null,"RWF"]
[null,null,null,null,null,null,null,null,null,null,null,null,null,null,null,null,null,null,null,null,null,null,null,null,null,null,null,null,null,null,null,null,null,null,"SAR"]
[null,null,null,null,null,null,null,null,null,null,null,null,null,null,null,null,null,null,null,null,null,null,null,null,null,null,null,null,null,null,null,null,null,null,"SBD"]
[null,null,null,null,null,null,null,null,null,null,null,null,null,null,null,null,null,null,null,null,null,null,null,null,null,null,null,null,null,null,null,null,null,null,"SCR"]
[null,null," POLTAX",null," POLA JASNE WYPEŁNIA PODATNIK, POLA CIEMNE WYPEŁNIA URZĄD SKARBOWY. WYPEŁNIAĆ KOMPUTEROWO.",null,null,null,null,null,null,null,null,null,null,null,null,null,null,null,null,null,null,null,null,null,null,null,null,null,null,null,null,null,"SDG"]
[null,null,null,null,null,null,null,null,null,null,null,null,null,null,null,null,null,null,null,null,null,null,null,null,null,null,null,null,null,null,null,null,null,null,"SEK"]
[null,null,null,null,null,null,null,null,null,null,null,null,null,null,null,null,null,null,null,null,null,null,null,null,null,null,null,null,null,null,null,null,null,null,"SGD"]
[null,null," G. PODSUMOWANIE",null,null,null,null,null,null,null,null,null,null,null,null,null,null,null,null,null,null,null,null,null,null,null,null,null,null,null,null,null,null,null,"SHP"]
[null,null,null," 87. Waluta państwa",null,null,null,null,{"$f":"IF(D69=\"\",\"\",VLOOKUP(D69,A!I1:K31,3))","v":""},null,null," 88. Kwota żądanego zwrotu ogółem",null,null,null,null,null,null,null,null,null,null,null,null,null,null,null,null,null,null,null,null,null,null,"SLL"]
[null,null,null," członkowskiego, do którego",null,null,null,null,null,null,null,{"$f":"SUM(Tabela_E!Q3:Q65537)+SUM(Tabela_F!T3:T65345)","v":0},null,null,null,null,null,null,null,null,null,null,null,null,null,null,null,null,null,null,null,null,null,null,"SOS"]
[null,null,null," kierowany jest wniosek",null,null,null,null,null,null,null,null,null,null,null,null,null,null,null,null,null,null,null,null,null,null,null,null,null,null,null,null,null,null,"SRD"]
[null,null,null,null,null,null,null,null,null,null,null,null,null,null,null,null,null,null,null,null,null,null,null,null,null,null,null,null,null,null,null,null,null,null,"STD"]
[null,null," H. INFORMACJE O ZAŁĄCZONYCH KOPIACH DOKUMENTÓW",null,null,null,null,null,null,null,null,null,null,null,null,null,null,null,null,null,null,null,null,null,null,null,null,null,null,null,null,null,null,null,"SVC"]
[null,null,null," 89. Typ pliku",null,null,null," 90. Nazwa pliku (bez ścieżki)",null,null,null,null,null,null,null,null," 91. Opis pliku",null,null,null,null,null,null,null,null,null,null,null,null,null,null,null,null,null,"SYP"]
[null,null,null,"a",null,null,null,"b",null,null,null,null,null,null,null,null,"c",null,null,null,null,null,null,null,null,null,null,null,null,null,null,null,null,null,"SZL"]
[null,null,1,null,null,null,null,null,null,null,null,null,null,null,null,null,null,null,null,null,null,null,null,null,null,null,null,null,null,null,null,null,null,null,"THB"]
[null,null,2,null,null,null,null,null,null,null,null,null,null,null,null,null,null,null,null,null,null,null,null,null,null,null,null,null,null,null,null,null,null,null,"TJS"]
[null,null,3,null,null,null,null,null,null,null,null,null,null,null,null,null,null,null,null,null,null,null,null,null,null,null,null,null,null,null,null,null,null,null,"TMT"]
[null,null,4,null,null,null,null,null,null,null,null,null,null,null,null,null,null,null,null,null,null,null,null,null,null,null,null,null,null,null,null,null,null,null,"TND"]
[null,null,5,null,null,null,null,null,null,null,null,null,null,null,null,null,null,null,null,null,null,null,null,null,null,null,null,null,null,null,null,null,null,null,"TOP"]
[null,null,6,null,null,null,null,null,null,null,null,null,null,null,null,null,null,null,null,null,null,null,null,null,null,null,null,null,null,null,null,null,null,null,"TRY"]
[null,null,7,null,null,null,null,null,null,null,null,null,null,null,null,null,null,null,null,null,null,null,null,null,null,null,null,null,null,null,null,null,null,null,"TTD"]
[null,null,8,null,null,null,null,null,null,null,null,null,null,null,null,null,null,null,null,null,null,null,null,null,null,null,null,null,null,null,null,null,null,null,"TVD"]
[null,null,9,null,null,null,null,null,null,null,null,null,null,null,null,null,null,null,null,null,null,null,null,null,null,null,null,null,null,null,null,null,null,null,"TWD"]
[null,null,10,null,null,null,null,null,null,null,null,null,null,null,null,null,null,null,null,null,null,null,null,null,null,null,null,null,null,null,null,null,null,null,"TZS"]
[null,null,11,null,null,null,null,null,null,null,null,null,null,null,null,null,null,null,null,null,null,null,null,null,null,null,null,null,null,null,null,null,null,null,"UAH"]
[null,null,12,null,null,null,null,null,null,null,null,null,null,null,null,null,null,null,null,null,null,null,null,null,null,null,null,null,null,null,null,null,null,null,"UGX"]
[null,null,13,null,null,null,null,null,null,null,null,null,null,null,null,null,null,null,null,null,null,null,null,null,null,null,null,null,null,null,null,null,null,null,"USD"]
[null,null,14,null,null,null,null,null,null,null,null,null,null,null,null,null,null,null,null,null,null,null,null,null,null,null,null,null,null,null,null,null,null,null,"UYU"]
[null,null,15,null,null,null,null,null,null,null,null,null,null,null,null,null,null,null,null,null,null,null,null,null,null,null,null,null,null,null,null,null,null,null,"UZS"]
[null,null,16,null,null,null,null,null,null,null,null,null,null,null,null,null,null,null,null,null,null,null,null,null,null,null,null,null,null,null,null,null,null,null,"VEF"]
[null,null,17,null,null,null,null,null,null,null,null,null,null,null,null,null,null,null,null,null,null,null,null,null,null,null,null,null,null,null,null,null,null,null,"VND"]
[null,null,18,null,null,null,null,null,null,null,null,null,null,null,null,null,null,null,null,null,null,null,null,null,null,null,null,null,null,null,null,null,null,null,"VUV"]
[null,null,19,null,null,null,null,null,null,null,null,null,null,null,null,null,null,null,null,null,null,null,null,null,null,null,null,null,null,null,null,null,null,null,"WST"]
[null,null,20,null,null,null,null,null,null,null,null,null,null,null,null,null,null,null,null,null,null,null,null,null,null,null,null,null,null,null,null,null,null,null,"XAF"]
[null,null,21,null,null,null,null,null,null,null,null,null,null,null,null,null,null,null,null,null,null,null,null,null,null,null,null,null,null,null,null,null,null,null,"XCD"]
[null,null,22,null,null,null,null,null,null,null,null,null,null,null,null,null,null,null,null,null,null,null,null,null,null,null,null,null,null,null,null,null,null,null,"XOF"]
[null,null,23,null,null,null,null,null,null,null,null,null,null,null,null,null,null,null,null,null,null,null,null,null,null,null,null,null,null,null,null,null,null,null,"XPD"]
[null,null,24,null,null,null,null,null,null,null,null,null,null,null,null,null,null,null,null,null,null,null,null,null,null,null,null,null,null,null,null,null,null,null,"XPF"]
[null,null,25,null,null,null,null,null,null,null,null,null,null,null,null,null,null,null,null,null,null,null,null,null,null,null,null,null,null,null,null,null,null,null,"YER"]
[null,null,26,null,null,null,null,null,null,null,null,null,null,null,null,null,null,null,null,null,null,null,null,null,null,null,null,null,null,null,null,null,null,null,"ZAR"]
[null,null,27,null,null,null,null,null,null,null,null,null,null,null,null,null,null,null,null,null,null,null,null,null,null,null,null,null,null,null,null,null,null,null,"ZMK"]
[null,null,28,null,null,null,null,null,null,null,null,null,null,null,null,null,null,null,null,null,null,null,null,null,null,null,null,null,null,null,null,null,null,null,"ZWL"]
[null,null,29,null,null,null,null,null,null,null,null,null,null,null,null,null,null,null,null,null,null,null,null,null,null,null,null,null,null,null,null,null,null,null,"BGN"]
[null,null,30,null,null,null,null,null,null,null,null,null,null,null,null,null,null,null,null,null,null,null,null,null,null,null,null,null,null,null,null,null,null,null,"CZK"]
[null,null,31,null,null,null,null,null,null,null,null,null,null,null,null,null,null,null,null,null,null,null,null,null,null,null,null,null,null,null,null,null,null,null,"DKK"]
[null,null,32,null,null,null,null,null,null,null,null,null,null,null,null,null,null,null,null,null,null,null,null,null,null,null,null,null,null,null,null,null,null,null,"EEK"]
[null,null,33,null,null,null,null,null,null,null,null,null,null,null,null,null,null,null,null,null,null,null,null,null,null,null,null,null,null,null,null,null,null,null,"EUR"]
[null,null,34,null,null,null,null,null,null,null,null,null,null,null,null,null,null,null,null,null,null,null,null,null,null,null,null,null,null,null,null,null,null,null,"GBP"]
[null,null,35,null,null,null,null,null,null,null,null,null,null,null,null,null,null,null,null,null,null,null,null,null,null,null,null,null,null,null,null,null,null,null,"HRK"]
[null,null,36,null,null,null,null,null,null,null,null,null,null,null,null,null,null,null,null,null,null,null,null,null,null,null,null,null,null,null,null,null,null,null,"HUF"]
[null,null,37,null,null,null,null,null,null,null,null,null,null,null,null,null,null,null,null,null,null,null,null,null,null,null,null,null,null,null,null,null,null,null,"LTL"]
[null,null,38,null,null,null,null,null,null,null,null,null,null,null,null,null,null,null,null,null,null,null,null,null,null,null,null,null,null,null,null,null,null,null,"LVL"]
[null,null,39,null,null,null,null,null,null,null,null,null,null,null,null,null,null,null,null,null,null,null,null,null,null,null,null,null,null,null,null,null,null,null,"PLN"]
[null,null,40,null,null,null,null,null,null,null,null,null,null,null,null,null,null,null,null,null,null,null,null,null,null,null,null,null,null,null,null,null,null,null,"RON"]
[null,null,41,null,null,null,null,null,null,null,null,null,null,null,null,null,null,null,null,null,null,null,null,null,null,null,null,null,null,null,null,null,null,null,"SEK"]
[null,null,42,null,null,null,null,null,null,null,null,null,null,null,null,null,null,null,null,null,null,null,null,null,null,null,null,null,null,null,null,null,null,null,"BGN"]
[null,null,43,null,null,null,null,null,null,null,null,null,null,null,null,null,null,null,null,null,null,null,null,null,null,null,null,null,null,null,null,null,null,null,"CZK"]
[null,null,44,null,null,null,null,null,null,null,null,null,null,null,null,null,null,null,null,null,null,null,null,null,null,null,null,null,null,null,null,null,null,null,"DKK"]
[null,null,45,null,null,null,null,null,null,null,null,null,null,null,null,null,null,null,null,null,null,null,null,null,null,null,null,null,null,null,null,null,null,null,"EEK"]
[null,null,46,null,null,null,null,null,null,null,null,null,null,null,null,null,null,null,null,null,null,null,null,null,null,null,null,null,null,null,null,null,null,null,"EUR"]
[null,null,47,null,null,null,null,null,null,null,null,null,null,null,null,null,null,null,null,null,null,null,null,null,null,null,null,null,null,null,null,null,null,null,"GBP"]
[null,null,48,null,null,null,null,null,null,null,null,null,null,null,null,null,null,null,null,null,null,null,null,null,null,null,null,null,null,null,null,null,null,null,"HRK"]
[null,null,49,null,null,null,null,null,null,null,null,null,null,null,null,null,null,null,null,null,null,null,null,null,null,null,null,null,null,null,null,null,null,null,"HUF"]
[null,null,50,null,null,null,null,null,null,null,null,null,null,null,null,null,null,null,null,null,null,null,null,null,null,null,null,null,null,null,null,null,null,null,"LTL"]
[null,null,51,null,null,null,null,null,null,null,null,null,null,null,null,null,null,null,null,null,null,null,null,null,null,null,null,null,null,null,null,null,null,null,"LVL"]
[null,null,52,null,null,null,null,null,null,null,null,null,null,null,null,null,null,null,null,null,null,null,null,null,null,null,null,null,null,null,null,null,null,null,"RON"]
[null,null,53,null,null,null,null,null,null,null,null,null,null,null,null,null,null,null,null,null,null,null,null,null,null,null,null,null,null,null,null,null,null,null,"SEK"]
[null,null,54]
[null,null,55]
[null,null,56]
[null,null,57]
[null,null,58]
[null,null,59]
[null,null,60]
[null,null,61]
[null,null,62]
[null,null,63]
[null,null,64]
[null,null,65]
[null,null,66]
[null,null,67]
[null,null,68]
[null,null,69]
[null,null,70]
[null,null,71]
[null,null,72]
[null,null,73]
[null,null,74]
[null,null,75]
[null,null,76]
[null,null,77]
[null,null,78]
[null,null,79]
[null,null,80]
[null,null,81]
[null,null,82]
[null,null,83]
[null,null,84]
[null,null,85]
[null,null,86]
[null,null,87]
[null,null,88]
[null,null,89]
[null,null,90]
[null,null,91]
[null,null,92]
[null,null,93]
[null,null,94]
[null,null,95]
[null,null,96]
[null,null,97]
[null,null,98]
[null,null,99]
[null,null,100]
[null,null,101]
[null,null,102]
[null,null,103]
[null,null,104]
[null,null,105]
[null,null,106]
[null,null,107]
[null,null,108]
[null,null,109]
[null,null,110]
[null,null,111]
[null,null,112]
[null,null,113]
[null,null,114]
[null,null,115]
[null,null,116]
[null,null,117]
[null,null,118]
[null,null,119]
[null,null,120]
[null,null,121]
[null,null,122]
[null,null,123]
[null,null,124]
[null,null,125]
[null,null,126]
[null,null,127]
[null,null,128]
[null,null,129]
[null,null,130]
[null,null,131]
[null,null,132]
[null,null,133]
[null,null,134]
[null,null,135]
[null,null,136]
[null,null,137]
[null,null,138]
[null,null,139]
[null,null,140]
[null,null,141]
[null,null,142]
[null,null,143]
[null,null,144]
[null,null,145]
[null,null,146]
[null,null,147]
[null,null,148]
[null,null,149]
[null,null,150]
[null,null,151]
[null,null,152]
[null,null,153]
[null,null,154]
[null,null,155]
[null,null,156]
[null,null,157]
[null,null,158]
[null,null,159]
[null,null,160]
[null,null,161]
[null,null,162]
[null,null,163]
[null,null,164]
[null,null,165]
[null,null,166]
[null,null,167]
[null,null,168]
[null,null,169]
[null,null,170]
[null,null,171]
[null,null,172]
[null,null,173]
[null,null,174]
[null,null,175]
[null,null,176]
[null,null,177]
[null,null,178]
[null,null,179]
[null,null,180]
[null,null,181]
[null,null,182]
[null,null,183]
[null,null,184]
[null,null,185]
[null,null,186]
[null,null,187]
[null,null,188]
[null,null,189]
[null,null,190]
[null,null,191]
[null,null,192]
[null,null,193]
[null,null,194]
[null,null,195]
[null,null,196]
[null,null,197]
[null,null,198]
[null,null,199]
[null,null,200]
[null,null,201]
[null,null,202]
[null,null,203]
[null,null,204]
[null,null,205]
[null,null,206]
[null,null,207]
[null,null,208]
[null,null,209]
[null,null,210]
[null,null,211]
[null,null,212]
[null,null,213]
[null,null,214]
[null,null,215]
[null,null,216]
[null,null,217]
[null,null,218]
[null,null,219]
[null,null,220]
[null,null,221]
[null,null,222]
[null,null,223]
[null,null,224]
[null,null,225]
[null,null,226]
[null,null,227]
[null,null,228]
[null,null,229]
[null,null,230]
[null,null,231]
[null,null,232]
[null,null,233]
[null,null,234]
[null,null,235]
[null,null,236]
[null,null,237]
[null,null,238]
[null,null,239]
[null,null,240]
[null,null,241]
[null,null,242]
[null,null,243]
[null,null,244]
[null,null,245]
[null,null,246]
[null,null,247]
[null,null,248]
[null,null,249]
[null,null,250]
[null,null,251]
[null,null,252]
[null,null,253]
[null,null,254]
[null,null,255]
[null,null,256]
[null,null,257]
[null,null,258]
[null,null,259]
[null,null,260]
[null,null,261]
[null,null,262]
[null,null,263]
[null,null,264]
[null,null,265]
[null,null,266]
[null,null,267]
[null,null,268]
[null,null,269]
[null,null,270]
[null,null,271]
[null,null,272]
[null,null,273]
[null,null,274]
[null,null,275]
[null,null,276]
[null,null,277]
[null,null,278]
[null,null,279]
[null,null,280]
[null,null,281]
[null,null,282]
[null,null,283]
[null,null,284]
[null,null,285]
[null,null,286]
[null,null,287]
[null,null,288]
[null,null,289]
[null,null,290]
[null,null,291]
[null,null,292]
[null,null,293]
[null,null,294]
[null,null,295]
[null,null,296]
[null,null,297]
[null,null,298]
[null,null,299]
[null,null,300]
[]
[null,null," I. ZMIANA PROPORCJI, O KTÓREJ MOWA W ART. 89 UST. 1L) USTAWY."]
[null,null,null," 92. Okres do którego odnosi się zmiana",null,null,null,null,null,null,null,null,null,null,null,null,null,null,null," 93. Wysokość proporcji po zmianie (w %)"]
[null,null,null," Data od:",null,null,null,null,null,null,"Data do:"]
[]
[null,null," J. OŚWIADCZENIA"]
[null,null,null,null,"94. Oświadczam, że w państwie członkowskim, do którego kierowany jest wniosek w okresie, do którego odnosi się wniosek - "]
[null,null,null,null,"       nie dokonywałem dostaw towarów lub świadczenia usług, z wyjątkiem:"]
[null,null,null,"T","a)","usług transportu i usług pomocniczych do takich usług, zwolnionych zgodnie z przepisami państwa członkowskiego zwrotu "]
[null,null,null,null,null,"implementującymi przepisy art. 144, 146, 148, 149, 151, 153, 159 lub 160 dyrektywy 2006/112/WE;"]
[null,null,null,null,"b)","usług, wewnątrzwspólnotowej sprzedaży towarów na odległość i dostaw towarów dokonywanych przez podatnika ułatwiającego "]
[null,null,null,null,null,"takie dostawy zgodnie z art. 14a ust. 2 dyrektywy 2006/112/WE, rozliczanych według procedury szczególnej określonej w tytule "]
[null,null,null,null,null,"XII w rozdziale 6 w sekcji 3 tej dyrektywy;"]
[null,null,null,null,"c)","sprzedaży na odległość towarów importowanych rozliczanej według procedury szczególnej określonej w tytule XII w rozdziale 6 "]
[null,null,null,null,null,"w sekcji 4 dyrektywy 2006/112/WE;"]
[null,null,null,null,"d)","dostaw towarów lub świadczenia usług na rzecz osoby zobowiązanej do zapłaty podatku od wartości dodanej zgodnie z przepisami"]
[null,null,null,"T",null,"państwa członkowskiego zwrotu implementującymi przepisy art. 194 – 197 i art. 199 dyrektywy 2006/112/WE."]
[null,null,null,null,"95. Wyrażam zgodę na otrzymywanie pism (informacji) w sprawie wniosku o zwrot podatku od wartości dodanej za pomocą środków "]
[null,null,null,null,"       komunikacji elektronicznej, na podany we wniosku adres poczty elektronicznej."]
[]
[null,null," K. POUCZENIE"]
[null,null,null,"T","96. Za podanie nieprawdy lub zatajenie prawdy grozi odpowiedzialność przewidziana w Kodeksie karnym skarbowym."]
[]
[]
[]
[]
[]
[]
[]
[null,null,null,null,null,null,null,null,null,null,null,null,null,null,null,null,null,null,null,null,null,null,null,null,null,"VAT-REF(6)",null,"3/3"]

{"sheet":"Tabela_E","index":1,"n_rows":3,"n_cols":17,"rows_kept":3,"cut":false,"hidden":false,"merged":[]}
[null,"                              E.1. DANE PODSTAWOWE DOTYCZĄCE IMPORTOWANYCH TOWARÓW",null,null,null,"E.2. SZCZEGÓŁY DOTYCZĄCE SPRZEDAWCY TOWARÓW",null,null,null,null,"E.3. RODZAJE TOWARÓW      ",null,null,null,"E.4. SZCZEGÓŁY DOTYCZĄCE ROZLICZENIA TRANSAKCJI"]
["Unikalny ","Numer dokumentu celnego (elektroniczny dokument SAD)","Numer dokumentu celnego (papierowy dokument SAD)","Data dokumentu celnego","Imię i nazwisko / nazwa sprzedawcy","Adres sprzedawcy","Numer telefonu kontaktowego sprzedawcy","Kraj sprzedawcy towarów i usług","Kod towaru","Pod-kod\ntowaru","Dodatkowy opis w przypadku kodu 10, jeśli brak jest określonego pod-kodu","Kod języka państwa\nczłonkows\nkiego, do którego\nkierowany jest wniosek","Waluta","Podstawa opodatkowania","Podatek VAT","Wysokość proporcji","Kwota podatku VAT do zwrotu"]
["UnikNr","NrSAD","NrSADPap","Data","Nazwa","Adres","Telefon","Kraj","KodTow","Podkod","Opis","Jezyk","Waluta","Podstawa","VAT","Proporcja","VATZwrot"]

{"sheet":"Tabela_F","index":2,"n_rows":3,"n_cols":20,"rows_kept":3,"cut":false,"hidden":false,"merged":[[1,8,1,9]]}
[null,"                             F.1. DANE PODSTAWOWE DOTYCZĄCE NABYTYCH TOWARÓW I USŁUG",null,null,null,null,"F.2. SZCZEGÓŁY DOTYCZĄCE DOSTAWCY TOWARÓW LUB USŁUG",null,null,null,null,null,null,"F.3. RODZAJE TOWARÓW I USŁUG          ",null,null,null,"F.4. SZCZEGÓŁY DOTYCZĄCE ROZLICZENIA TRANSAKCJI"]
["Unikalny","Numer faktury","Faktura uproszczona","Data Faktury","Imię i nazwisko / nazwa dostawcy","Adres dostawcy","Numer telefonu kontaktowego dostawcy","Kraj dostawcy towarów i usług","Numer rejestracyjny VAT dostawcy \ni kod kraju wydawcy numeru",null,"Numer rejestracji podatkowej - możliwy w przypadku Niemiec","Kod towaru","Pod-kod\ntowaru","Dodatkowy opis w przypadku kodu 10, jeśli brak jest określonego pod-kodu","Kod języka państwa\nczłonkows\nkiego, do którego\nkierowany jest wniosek","Waluta","Podstawa opodatkowania","Podatek VAT","Wysokość proporcji","Kwota podatku VAT do zwrotu"]
["UnikNr","NrFaktury","FakturaUpr","Data","Nazwa","Adres","Telefon","Kraj","NrVAT","KodKr","NrNiemcy","KodTow","Podkod","Opis","Jezyk","Waluta","Podstawa","VAT","Proporcja","VATZwrot"]

{"sheet":"Przykład","index":3,"n_rows":8,"n_cols":5,"rows_kept":8,"cut":false,"hidden":false,"merged":[]}
[]
[null,"Przykład wpisania faktury zawierającej 3 rodzaje towarów (np. Kody towartu 1, 4 i 10)"]
["","W wierszu 4 wpisano wszystkie dane zawarte na fakturze w pozycjach VAT-REF od poz. 68 do 86 w tym Kod i Podkod towaru "]
[null,"W wierszu 5 wypelniono tylko Kod i Podkod drugiego rodzaju towaru w pozycjach VAT-REF 78 i 79 "]
[null,"W wierszu 6 wypelniono również tylko Kod i Podkod trzeciego rodzaju towaru w pozycjach VAT-REF 78 - 81"]
[null,null,null,null," pól zaznaczonych na czerwono nie wypełnia się"]
[null,"W wierszu 7 wpisano kolejną fakturę zawierającą tylko jeden rodzaj Kodu towaru."]
[null,"Taka sama zasada dotyczy wypełniania Tabeli E z dokumentami celnymi."]

{"sheet":"Szafir","index":4,"n_rows":35,"n_cols":1,"rows_kept":35,"cut":false,"hidden":false,"merged":[[0,0,0,13],[1,0,1,13],[34,0,34,13]]}
["1. \"SZAFIR\"  - ustaw swój program jak w poniższym wzorcu, wskazanym przez MF"]
["Podpis błędnie skonfigurowanym programem zwraca kod 408, 409"]
[]
[]
[]
[]
[]
[]
[]
[]
[]
[]
[]
[]
[]
[]
[]
[]
[]
[]
[]
[]
[]
[]
[]
[]
[]
[]
[]
[]
[]
[]
[]
[]
["2. konfiguracja formatu podpisu"]

{"sheet":"CenCert","index":5,"n_rows":37,"n_cols":1,"rows_kept":37,"cut":false,"hidden":false,"merged":[[1,0,1,13],[2,0,2,13],[36,0,36,13],[0,0,0,19]]}
["1. CenCert - \"PEM-HEART Signature\"  - ustaw swój program jak w poniższym wzorcu, wskazanym przez MF"]
["Podpis błędnie skonfigurowanym programem zwraca kod 408, 409"]
["a. instalacja certyfikatu w systemie"]
[]
[]
[]
[]
[]
[]
[]
[]
[]
[]
[]
[]
[]
[]
[]
[]
[]
[]
[]
[]
[]
[]
[]
[]
[]
[]
[]
[]
[]
[]
[]
[]
[]
["b. konfiguracja formatu podpisu"]

{"sheet":"ProCertum","index":6,"n_rows":33,"n_cols":1,"rows_kept":33,"cut":false,"hidden":false,"merged":[[1,0,1,13],[32,0,32,13],[0,0,0,16]]}
["1. \"proCertum CardManager\"  - ustaw swój program jak w poniższym wzorcu, wskazanym przez MF"]
["Podpis błędnie skonfigurowanym programem zwraca kod 408, 409"]
[]
[]
[]
[]
[]
[]
[]
[]
[]
[]
[]
[]
[]
[]
[]
[]
[]
[]
[]
[]
[]
[]
[]
[]
[]
[]
[]
[]
[]
[]
["2. \"proCertum SmartSign\" - konfiguracja formatu podpisu"]

{"sheet":"Sigillum","index":7,"n_rows":2,"n_cols":1,"rows_kept":2,"cut":false,"hidden":false,"merged":[[1,0,1,13],[0,0,0,16]]}
["1. \"Sigillum Sign\"  - ustaw swój program jak w poniższym wzorcu, wskazanym przez MF"]
["Podpis błędnie skonfigurowanym programem zwraca kod 408, 409"]

{"sheet":"EuroCert","index":8,"n_rows":2,"n_cols":1,"rows_kept":2,"cut":false,"hidden":false,"merged":[[1,0,1,13],[0,0,0,19]]}
["1. \"EuroCert SecureDoc\" - ustaw swój program jak w poniższym wzorcu, wskazanym przez MF"]
["Podpis błędnie skonfigurowanym programem zwraca kod 408, 409"]

{"sheet":"G","index":9,"n_rows":2478,"n_cols":10,"rows_kept":2478,"cut":false,"hidden":true,"merged":[]}
["kod","symb","nazwa","Nr","Powiat","kod","DOLNOŚLĄSKIE","02"]
["0201","BOLESŁAWIEC-MIEJSKA","0201011","02","BOLESŁAWIECKI","0201","KUJAWSKO-POMORSKIE","04"]
["0201","BOLESŁAWIEC-WIEJSKA","0201022","02","DZIERŻONIOWSKI","0202","LUBELSKIE","06"]
["0201","GROMADKA","0201032","02","GŁOGOWSKI","0203","LUBUSKIE","08"]
["0201","NOWOGRODZIEC","0201043","02","GÓROWSKI","0204","ŁÓDZKIE","10"]
["0201","OSIECZNICA","0201052","02","JAWORSKI","0205","MAŁOPOLSKIE","12"]
["0201","WARTA BOLESŁAWIECKA","0201062","02","JELENIOGÓRSKI","0206","MAZOWIECKIE","14"]
["0202","BIELAWA","0202011","02","KAMIENNOGÓRSKI","0207","OPOLSKIE","16","pow","=PRZESUNIĘCIE(G!$D$1;PODAJ.POZYCJĘ(WYSZUKAJ.PIONOWO(i41;G!G$1:H$16;2);G!$D:$D;0)-1;1;LICZ.JEŻELI(G!$D:$D;WYSZUKAJ.PIONOWO(i41;G!G$1:H$16;2));1)"]
["0202","DZIERŻONIÓW-MIEJSKA","0202021","02","KŁODZKI","0208","PODKARPACKIE","18","gmi","=PRZESUNIĘCIE(G!$A$1;PODAJ.POZYCJĘ(WYSZUKAJ.PIONOWO(v41;G!E$2:F$380;2;FAŁSZ);G!$A:$A;0)-1;1;LICZ.JEŻELI(G!$A:$A;WYSZUKAJ.PIONOWO(v41;G!E$2:F$380;2;FAŁSZ));1)"]
["0202","PIESZYCE","0202033","02","LEGNICKI","0209","PODLASKIE","20"]
["0202","PIŁAWA GÓRNA","0202041","02","LUBAŃSKI","0210","POMORSKIE","22"]
["0202","DZIERŻONIÓW-WIEJSKA","0202052","02","LUBIŃSKI","0211","ŚLĄSKIE","24"]
["0202","ŁAGIEWNIKI","0202062","02","LWÓWECKI","0212","ŚWIĘTOKRZYSKIE","26"]
["0202","NIEMCZA","0202073","02","MILICKI","0213","WARMIŃSKO-MAZURSKIE","28"]
["0203","GŁOGÓW-MIEJSKA","0203011","02","OLEŚNICKI","0214","WIELKOPOLSKIE","30"]
["0203","GŁOGÓW-WIEJSKA","0203022","02","OŁAWSKI","0215","ZACHODNIOPOMORSKIE","32"]
["0203","JERZMANOWA","0203032","02","POLKOWICKI","0216"]
["0203","KOTLA","0203042","02","STRZELIŃSKI","0217"]
["0203","PĘCŁAW","0203052","02","ŚREDZKI ","0218"]
["0203","ŻUKOWICE","0203062","02","ŚWIDNICKI ","0219"]
["0204","GÓRA","0204013","02","TRZEBNICKI","0220"]
["0204","JEMIELNO","0204022","02","WAŁBRZYSKI","0221"]
["0204","NIECHLÓW","0204032","02","WOŁOWSKI","0222"]
["0204","WĄSOSZ","0204043","02","WROCŁAWSKI","0223"]
["0205","JAWOR","0205011","02","ZĄBKOWICKI","0224"]
["0205","BOLKÓW","0205023","02","ZGORZELECKI","0225"]
["0205","MĘCINKA","0205032","02","ZŁOTORYJSKI","0226"]
["0205","MŚCIWOJÓW","0205042","02","M.JELENIA GÓRA","0261"]
["0205","PASZOWICE","0205052","02","M.LEGNICA","0262"]
["0205","WĄDROŻE WIELKIE","0205062","02","M.WROCŁAW","0264"]
["0206","KARPACZ","0206011","04","ALEKSANDROWSKI","0401"]
["0206","KOWARY","0206021","04","BRODNICKI","0402"]
["0206","PIECHOWICE","0206031","04","BYDGOSKI","0403"]
["0206","SZKLARSKA PORĘBA","0206041","04","CHEŁMIŃSKI","0404"]
["0206","JANOWICE WIELKIE","0206052","04","GOLUBSKO-DOBRZYŃSKI","0405"]
["0206","JEŻÓW SUDECKI","0206062","04","GRUDZIĄDZKI","0406"]
["0206","MYSŁAKOWICE","0206072","04","INOWROCŁAWSKI","0407"]
["0206","PODGÓRZYN","0206082","04","LIPNOWSKI","0408"]
["0206","STARA KAMIENICA","0206092","04","MOGILEŃSKI","0409"]
["0207","KAMIENNA GÓRA-MIEJSKA","0207011","04","NAKIELSKI","0410"]
["0207","KAMIENNA GÓRA-WIEJSKA","0207022","04","RADZIEJOWSKI","0411"]
["0207","LUBAWKA","0207033","04","RYPIŃSKI","0412"]
["0207","MARCISZÓW","0207042","04","SĘPOLEŃSKI","0413"]
["0208","DUSZNIKI-ZDRÓJ","0208011","04","ŚWIECKI","0414"]
["0208","KŁODZKO-MIEJSKA","0208021","04","TORUŃSKI","0415"]
["0208","KUDOWA-ZDRÓJ","0208031","04","TUCHOLSKI","0416"]
["0208","NOWA RUDA-MIEJSKA","0208041","04","WĄBRZESKI","0417"]
["0208","POLANICA-ZDRÓJ","0208051","04","WŁOCŁAWSKI","0418"]
["0208","BYSTRZYCA KŁODZKA","0208063","04","ŻNIŃSKI","0419"]
["0208","KŁODZKO-WIEJSKA","0208072","04","M.BYDGOSZCZ","0461"]
["0208","LĄDEK-ZDRÓJ","0208083","04","M.GRUDZIĄDZ","0462"]
["0208","LEWIN KŁODZKI","0208092","04","M.TORUŃ","0463"]
["0208","MIĘDZYLESIE","0208103","04","M.WŁOCŁAWEK","0464"]
["0208","NOWA RUDA-WIEJSKA","0208112","06","BIALSKI","0601"]
["0208","RADKÓW","0208123","06","BIŁGORAJSKI","0602"]
["0208","STRONIE ŚLĄSKIE","0208133","06","CHEŁMSKI","0603"]
["0208","SZCZYTNA","0208143","06","HRUBIESZOWSKI","0604"]
["0209","CHOJNÓW-MIEJSKA","0209011","06","JANOWSKI","0605"]
["0209","CHOJNÓW-WIEJSKA","0209022","06","KRASNOSTAWSKI","0606"]
["0209","KROTOSZYCE","0209032","06","KRAŚNICKI","0607"]
["0209","KUNICE","0209042","06","LUBARTOWSKI","0608"]
["0209","LEGNICKIE POLE","0209052","06","LUBELSKI","0609"]
["0209","MIŁKOWICE","0209062","06","ŁĘCZYŃSKI","0610"]
["0209","PROCHOWICE","0209073","06","ŁUKOWSKI","0611"]
["0209","RUJA","0209082","06","OPOLSKI ","0612"]
["0210","LUBAŃ-MIEJSKA","0210011","06","PARCZEWSKI","0613"]
["0210","ŚWIERADÓW-ZDRÓJ","0210021","06","PUŁAWSKI","0614"]
["0210","LEŚNA","0210033","06","RADZYŃSKI","0615"]
["0210","LUBAŃ-WIEJSKA","0210042","06","RYCKI","0616"]
["0210","OLSZYNA","0210053","06","ŚWIDNICKI","0617"]
["0210","PLATERÓWKA","0210062","06","TOMASZOWSKI ","0618"]
["0210","SIEKIERCZYN","0210072","06","WŁODAWSKI","0619"]
["0211","LUBIN-MIEJSKA","0211011","06","ZAMOJSKI","0620"]
["0211","LUBIN-WIEJSKA","0211022","06","M.BIAŁA PODLASKA","0661"]
["0211","RUDNA","0211032","06","M.CHEŁM","0662"]
["0211","ŚCINAWA","0211043","06","M.LUBLIN","0663"]
["0212","GRYFÓW ŚLĄSKI","0212013","06","M.ZAMOŚĆ","0664"]
["0212","LUBOMIERZ","0212023","08","GORZOWSKI","0801"]
["0212","LWÓWEK ŚLĄSKI","0212033","08","KROŚNIEŃSKI ","0802"]
["0212","MIRSK","0212043","08","MIĘDZYRZECKI","0803"]
["0212","WLEŃ","0212053","08","NOWOSOLSKI","0804"]
["0213","CIESZKÓW","0213012","08","SŁUBICKI","0805"]
["0213","KROŚNICE","0213022","08","STRZELECKO-DREZDENECKI","0806"]
["0213","MILICZ","0213033","08","SULĘCIŃSKI","0807"]
["0214","OLEŚNICA","0214011","08","ŚWIEBODZIŃSKI","0808"]
["0214","BIERUTÓW","0214023","08","ZIELONOGÓRSKI","0809"]
["0214","DOBROSZYCE","0214032","08","ŻAGAŃSKI","0810"]
["0214","DZIADOWA KŁODA","0214042","08","ŻARSKI","0811"]
["0214","MIĘDZYBÓRZ","0214053","08","WSCHOWSKI","0812"]
["0214","OLEŚNICA-MIEJSKA","0214062","08","M.GORZÓW WIELKOPOLSKI","0861"]
["0214","SYCÓW","0214073","08","M.ZIELONA GÓRA","0862"]
["0214","TWARDOGÓRA","0214083","10","BEŁCHATOWSKI","1001"]
["0215","OŁAWA-MIEJSKA","0215011","10","KUTNOWSKI","1002"]
["0215","DOMANIÓW","0215022","10","ŁASKI","1003"]
["0215","JELCZ-LASKOWICE","0215033","10","ŁĘCZYCKI","1004"]
["0215","OŁAWA-WIEJSKA","0215042","10","ŁOWICKI","1005"]
["0216","CHOCIANÓW","0216013","10","ŁÓDZKI WSCHODNI","1006"]
["0216","GAWORZYCE","0216022","10","OPOCZYŃSKI","1007"]
["0216","GRĘBOCICE","0216032","10","PABIANICKI","1008"]
["0216","POLKOWICE","0216043","10","PAJĘCZAŃSKI","1009"]
["0216","PRZEMKÓW","0216053","10","PIOTRKOWSKI","1010"]
["0216","RADWANICE","0216062","10","PODDĘBICKI","1011"]
["0217","BORÓW","0217012","10","RADOMSZCZAŃSKI","1012"]
["0217","KONDRATOWICE","0217022","10","RAWSKI","1013"]
["0217","PRZEWORNO","0217032","10","SIERADZKI","1014"]
["0217","STRZELIN","0217043","10","SKIERNIEWICKI","1015"]
["0217","WIĄZÓW","0217053","10","TOMASZOWSKI","1016"]
["0218","KOSTOMŁOTY","0218012","10","WIELUŃSKI","1017"]
["0218","MALCZYCE","0218022","10","WIERUSZOWSKI","1018"]
["0218","MIĘKINIA","0218032","10","ZDUŃSKOWOLSKI","1019"]
["0218","ŚRODA ŚLĄSKA","0218043","10","ZGIERSKI","1020"]
["0218","UDANIN","0218052","10","BRZEZIŃSKI","1021"]
["0219","ŚWIDNICA-MIEJSKA","0219011","10","M.ŁÓDŹ","1061"]
["0219","ŚWIEBODZICE","0219021","10","M.PIOTRKÓW TRYBUNALSKI","1062"]
["0219","DOBROMIERZ","0219032","10","M.SKIERNIEWICE","1063"]
["0219","JAWORZYNA ŚLĄSKA","0219043","12","BOCHEŃSKI","1201"]
["0219","MARCINOWICE","0219052","12","BRZESKI ","1202"]
["0219","STRZEGOM","0219063","12","CHRZANOWSKI","1203"]
["0219","ŚWIDNICA-WIEJSKA","0219072","12","DĄBROWSKI","1204"]
["0219","ŻARÓW","0219083","12","GORLICKI","1205"]
["0220","OBORNIKI ŚLĄSKIE","0220013","12","KRAKOWSKI","1206"]
["0220","PRUSICE","0220023","12","LIMANOWSKI","1207"]
["0220","TRZEBNICA","0220033","12","MIECHOWSKI","1208"]
["0220","WISZNIA MAŁA","0220042","12","MYŚLENICKI","1209"]
["0220","ZAWONIA","0220052","12","NOWOSĄDECKI","1210"]
["0220","ŻMIGRÓD","0220063","12","NOWOTARSKI","1211"]
["0221","BOGUSZÓW-GORCE","0221011","12","OLKUSKI","1212"]
["0221","JEDLINA-ZDRÓJ","0221021","12","OŚWIĘCIMSKI","1213"]
["0221","SZCZAWNO-ZDRÓJ","0221031","12","PROSZOWICKI","1214"]
["0221","CZARNY BÓR","0221042","12","SUSKI","1215"]
["0221","GŁUSZYCA","0221053","12","TARNOWSKI","1216"]
["0221","MIEROSZÓW","0221063","12","TATRZAŃSKI","1217"]
["0221","STARE BOGACZOWICE","0221072","12","WADOWICKI","1218"]
["0221","WALIM","0221082","12","WIELICKI","1219"]
["0222","BRZEG DOLNY","0222013","12","M.KRAKÓW","1261"]
["0222","WIŃSKO","0222022","12","M.NOWY SĄCZ","1262"]
["0222","WOŁÓW","0222033","12","M.TARNÓW","1263"]
["0223","CZERNICA","0223012","14","BIAŁOBRZESKI","1401"]
["0223","DŁUGOŁĘKA","0223022","14","CIECHANOWSKI","1402"]
["0223","JORDANÓW ŚLĄSKI","0223032","14","GARWOLIŃSKI","1403"]
["0223","KĄTY WROCŁAWSKIE","0223043","14","GOSTYNIŃSKI","1404"]
["0223","KOBIERZYCE","0223052","14","GRODZISKI ","1405"]
["0223","MIETKÓW","0223062","14","GRÓJECKI","1406"]
["0223","SOBÓTKA","0223073","14","KOZIENICKI","1407"]
["0223","SIECHNICE","0223083","14","LEGIONOWSKI","1408"]
["0223","ŻÓRAWINA","0223092","14","LIPSKI","1409"]
["0224","BARDO","0224013","14","ŁOSICKI","1410"]
["0224","CIEPŁOWODY","0224022","14","MAKOWSKI","1411"]
["0224","KAMIENIEC ZĄBKOWICKI","0224033","14","MIŃSKI","1412"]
["0224","STOSZOWICE","0224042","14","MŁAWSKI","1413"]
["0224","ZĄBKOWICE ŚLĄSKIE","0224053","14","NOWODWORSKI ","1414"]
["0224","ZIĘBICE","0224063","14","OSTROŁĘCKI","1415"]
["0224","ZŁOTY STOK","0224073","14","OSTROWSKI ","1416"]
["0225","ZAWIDÓW","0225011","14","OTWOCKI","1417"]
["0225","ZGORZELEC-MIEJSKA","0225021","14","PIASECZYŃSKI","1418"]
["0225","BOGATYNIA","0225033","14","PŁOCKI","1419"]
["0225","PIEŃSK","0225043","14","PŁOŃSKI","1420"]
["0225","SULIKÓW","0225052","14","PRUSZKOWSKI","1421"]
["0225","WĘGLINIEC","0225063","14","PRZASNYSKI","1422"]
["0225","ZGORZELEC-WIEJSKA","0225072","14","PRZYSUSKI","1423"]
["0226","WOJCIESZÓW","0226011","14","PUŁTUSKI","1424"]
["0226","ZŁOTORYJA-MIEJSKA","0226021","14","RADOMSKI","1425"]
["0226","PIELGRZYMKA","0226032","14","SIEDLECKI","1426"]
["0226","ŚWIERZAWA","0226043","14","SIERPECKI","1427"]
["0226","ZAGRODNO","0226052","14","SOCHACZEWSKI","1428"]
["0226","ZŁOTORYJA-WIEJSKA","0226062","14","SOKOŁOWSKI","1429"]
["0261","M.JELENIA GÓRA","0261011","14","SZYDŁOWIECKI","1430"]
["0262","M.LEGNICA","0262011","14","WARSZAWSKI ZACHODNI","1432"]
["0264","M.WROCŁAW","0264011","14","WĘGROWSKI","1433"]
["0265","WAŁBRZYCH","0265011","14","WOŁOMIŃSKI","1434"]
["0401","ALEKSANDRÓW KUJAWSKI-MIEJSKA","0401011","14","WYSZKOWSKI","1435"]
["0401","CIECHOCINEK","0401021","14","ZWOLEŃSKI","1436"]
["0401","NIESZAWA","0401031","14","ŻUROMIŃSKI","1437"]
["0401","ALEKSANDRÓW KUJAWSKI-WIEJSKA","0401042","14","ŻYRARDOWSKI","1438"]
["0401","BĄDKOWO","0401052","14","M.OSTROŁĘKA","1461"]
["0401","KONECK","0401062","14","M.PŁOCK","1462"]
["0401","RACIĄŻEK","0401072","14","M.RADOM","1463"]
["0401","WAGANIEC","0401082","14","M.SIEDLCE","1464"]
["0401","ZAKRZEWO","0401092","14","M.ST.WARSZAWA","1465"]
["0402","BRODNICA","0402011","16","BRZESKI","1601"]
["0402","BOBROWO","0402022","16","GŁUBCZYCKI","1602"]
["0402","BRODNICA-MIEJSKA","0402032","16","KĘDZIERZYŃSKO-KOZIELSKI","1603"]
["0402","BRZOZIE","0402042","16","KLUCZBORSKI","1604"]
["0402","GÓRZNO","0402053","16","KRAPKOWICKI","1605"]
["0402","BARTNICZKA","0402062","16","NAMYSŁOWSKI","1606"]
["0402","JABŁONOWO POMORSKIE","0402073","16","NYSKI","1607"]
["0402","OSIEK","0402082","16","OLESKI","1608"]
["0402","ŚWIEDZIEBNIA","0402092","16","OPOLSKI","1609"]
["0402","ZBICZNO","0402102","16","PRUDNICKI","1610"]
["0403","BIAŁE BŁOTA","0403012","16","STRZELECKI","1611"]
["0403","DĄBROWA CHEŁMIŃSKA","0403022","16","M.OPOLE","1661"]
["0403","DOBRCZ","0403032","18","BIESZCZADZKI","1801"]
["0403","KORONOWO","0403043","18","BRZOZOWSKI","1802"]
["0403","NOWA WIEŚ WIELKA","0403052","18","DĘBICKI","1803"]
["0403","OSIELSKO","0403062","18","JAROSŁAWSKI","1804"]
["0403","SICIENKO","0403072","18","JASIELSKI","1805"]
["0403","SOLEC KUJAWSKI","0403083","18","KOLBUSZOWSKI","1806"]
["0404","CHEŁMNO-MIEJSKA","0404011","18","KROŚNIEŃSKI","1807"]
["0404","CHEŁMNO-WIEJSKA","0404022","18","LEŻAJSKI","1808"]
["0404","KIJEWO KRÓLEWSKIE","0404032","18","LUBACZOWSKI","1809"]
["0404","LISEWO","0404042","18","ŁAŃCUCKI","1810"]
["0404","PAPOWO BISKUPIE","0404052","18","MIELECKI","1811"]
["0404","STOLNO","0404062","18","NIŻAŃSKI","1812"]
["0404","UNISŁAW","0404072","18","PRZEMYSKI","1813"]
["0405","GOLUB-DOBRZYŃ-MIEJSKA","0405011","18","PRZEWORSKI","1814"]
["0405","CIECHOCIN","0405022","18","ROPCZYCKO-SĘDZISZOWSKI","1815"]
["0405","GOLUB-DOBRZYŃ-WIEJSKA","0405032","18","RZESZOWSKI","1816"]
["0405","KOWALEWO POMORSKIE","0405043","18","SANOCKI","1817"]
["0405","RADOMIN","0405052","18","STALOWOWOLSKI","1818"]
["0405","ZBÓJNO","0405062","18","STRZYŻOWSKI","1819"]
["0406","GRUDZIĄDZ","0406012","18","TARNOBRZESKI","1820"]
["0406","GRUTA","0406022","18","LESKI","1821"]
["0406","ŁASIN","0406033","18","M.KROSNO","1861"]
["0406","RADZYŃ CHEŁMIŃSKI","0406043","18","M.PRZEMYŚL","1862"]
["0406","ROGÓŹNO","0406052","18","M.RZESZÓW","1863"]
["0406","ŚWIECIE NAD OSĄ","0406062","18","M.TARNOBRZEG","1864"]
["0407","INOWROCŁAW-MIEJSKA","0407011","20","AUGUSTOWSKI","2001"]
["0407","DĄBROWA BISKUPIA","0407022","20","BIAŁOSTOCKI","2002"]
["0407","GNIEWKOWO","0407033","20","BIELSKI ","2003"]
["0407","INOWROCŁAW-WIEJSKA","0407042","20","GRAJEWSKI","2004"]
["0407","JANIKOWO","0407053","20","HAJNOWSKI","2005"]
["0407","KRUSZWICA","0407063","20","KOLNEŃSKI","2006"]
["0407","PAKOŚĆ","0407073","20","ŁOMŻYŃSKI","2007"]
["0407","ROJEWO","0407082","20","MONIECKI","2008"]
["0407","ZŁOTNIKI KUJAWSKIE","0407092","20","SEJNEŃSKI","2009"]
["0408","LIPNO-MIEJSKA","0408011","20","SIEMIATYCKI","2010"]
["0408","BOBROWNIKI","0408022","20","SOKÓLSKI","2011"]
["0408","CHROSTKOWO","0408032","20","SUWALSKI","2012"]
["0408","DOBRZYŃ NAD WISŁĄ","0408043","20","WYSOKOMAZOWIECKI","2013"]
["0408","KIKÓŁ","0408052","20","ZAMBROWSKI","2014"]
["0408","LIPNO-WIEJSKA","0408062","20","M.BIAŁYSTOK","2061"]
["0408","SKĘPE","0408073","20","M.ŁOMŻA","2062"]
["0408","TŁUCHOWO","0408082","20","M.SUWAŁKI","2063"]
["0408","WIELGIE","0408092","22","BYTOWSKI","2201"]
["0409","DĄBROWA","0409012","22","CHOJNICKI","2202"]
["0409","JEZIORA WIELKIE","0409022","22","CZŁUCHOWSKI","2203"]
["0409","MOGILNO","0409033","22","GDAŃSKI","2204"]
["0409","STRZELNO","0409043","22","KARTUSKI","2205"]
["0410","KCYNIA","0410013","22","KOŚCIERSKI","2206"]
["0410","MROCZA","0410023","22","KWIDZYŃSKI","2207"]
["0410","NAKŁO NAD NOTECIĄ","0410033","22","LĘBORSKI","2208"]
["0410","SADKI","0410042","22","MALBORSKI","2209"]
["0410","SZUBIN","0410053","22","NOWODWORSKI","2210"]
["0411","RADZIEJÓW-MIEJSKA","0411011","22","PUCKI","2211"]
["0411","BYTOŃ","0411022","22","SŁUPSKI","2212"]
["0411","DOBRE","0411032","22","STAROGARDZKI","2213"]
["0411","OSIĘCINY","0411042","22","TCZEWSKI","2214"]
["0411","PIOTRKÓW KUJAWSKI","0411053","22","WEJHEROWSKI","2215"]
["0411","RADZIEJÓW-WIEJSKA","0411062","22","SZTUMSKI","2216"]
["0411","TOPÓLKA","0411072","22","M.GDAŃSK","2261"]
["0412","RYPIN-MIEJSKA","0412011","22","M.GDYNIA","2262"]
["0412","BRZUZE","0412022","22","M.SŁUPSK","2263"]
["0412","ROGOWO","0412032","22","M.SOPOT","2264"]
["0412","RYPIN-WIEJSKA","0412042","24","BĘDZIŃSKI","2401"]
["0412","SKRWILNO","0412052","24","BIELSKI","2402"]
["0412","WĄPIELSK","0412062","24","CIESZYŃSKI","2403"]
["0413","KAMIEŃ KRAJEŃSKI","0413013","24","CZĘSTOCHOWSKI","2404"]
["0413","SĘPÓLNO KRAJEŃSKIE","0413023","24","GLIWICKI","2405"]
["0413","SOŚNO","0413032","24","KŁOBUCKI","2406"]
["0413","WIĘCBORK","0413043","24","LUBLINIECKI","2407"]
["0414","BUKOWIEC","0414012","24","MIKOŁOWSKI","2408"]
["0414","DRAGACZ","0414022","24","MYSZKOWSKI","2409"]
["0414","DRZYCIM","0414032","24","PSZCZYŃSKI","2410"]
["0414","JEŻEWO","0414042","24","RACIBORSKI","2411"]
["0414","LNIANO","0414052","24","RYBNICKI","2412"]
["0414","NOWE","0414063","24","TARNOGÓRSKI","2413"]
["0414","OSIE","0414072","24","BIERUŃSKO-LĘDZIŃSKI","2414"]
["0414","PRUSZCZ","0414082","24","WODZISŁAWSKI","2415"]
["0414","ŚWIECIE","0414093","24","ZAWIERCIAŃSKI","2416"]
["0414","ŚWIEKATOWO","0414102","24","ŻYWIECKI","2417"]
["0414","WARLUBIE","0414112","24","M.BIELSKO-BIAŁA","2461"]
["0415","CHEŁMŻA-MIEJSKA","0415011","24","M.BYTOM","2462"]
["0415","CHEŁMŻA-WIEJSKA","0415022","24","M.CHORZÓW","2463"]
["0415","CZERNIKOWO","0415032","24","M.CZĘSTOCHOWA","2464"]
["0415","LUBICZ","0415042","24","M.DĄBROWA GÓRNICZA","2465"]
["0415","ŁUBIANKA","0415052","24","M.GLIWICE","2466"]
["0415","ŁYSOMICE","0415062","24","M.JASTRZĘBIE-ZDRÓJ","2467"]
["0415","OBROWO","0415072","24","M.JAWORZNO","2468"]
["0415","WIELKA NIESZAWKA","0415082","24","M.KATOWICE","2469"]
["0415","ZŁAWIEŚ WIELKA","0415092","24","M.MYSŁOWICE","2470"]
["0416","CEKCYN","0416012","24","M.PIEKARY ŚLĄSKIE","2471"]
["0416","GOSTYCYN","0416022","24","M.RUDA ŚLĄSKA","2472"]
["0416","KĘSOWO","0416032","24","M.RYBNIK","2473"]
["0416","LUBIEWO","0416042","24","M.SIEMIANOWICE ŚLĄSKIE","2474"]
["0416","ŚLIWICE","0416052","24","M.SOSNOWIEC","2475"]
["0416","TUCHOLA","0416063","24","M.ŚWIĘTOCHŁOWICE","2476"]
["0417","WĄBRZEŹNO-MIEJSKA","0417011","24","M.TYCHY","2477"]
["0417","DĘBOWA ŁĄKA","0417022","24","M.ZABRZE","2478"]
["0417","KSIĄŻKI","0417032","24","M.ŻORY","2479"]
["0417","PŁUŻNICA","0417042","26","BUSKI","2601"]
["0417","WĄBRZEŹNO-WIEJSKA","0417052","26","JĘDRZEJOWSKI","2602"]
["0418","KOWAL-MIEJSKA","0418011","26","KAZIMIERSKI","2603"]
["0418","BARUCHOWO","0418022","26","KIELECKI","2604"]
["0418","BONIEWO","0418032","26","KONECKI","2605"]
["0418","BRZEŚĆ KUJAWSKI","0418043","26","OPATOWSKI","2606"]
["0418","CHOCEŃ","0418052","26","OSTROWIECKI","2607"]
["0418","CHODECZ","0418063","26","PIŃCZOWSKI","2608"]
["0418","FABIANKI","0418072","26","SANDOMIERSKI","2609"]
["0418","IZBICA KUJAWSKA","0418083","26","SKARŻYSKI","2610"]
["0418","KOWAL-WIEJSKA","0418092","26","STARACHOWICKI","2611"]
["0418","LUBANIE","0418102","26","STASZOWSKI","2612"]
["0418","LUBIEŃ KUJAWSKI","0418113","26","WŁOSZCZOWSKI","2613"]
["0418","LUBRANIEC","0418123","26","M.KIELCE","2661"]
["0418","WŁOCŁAWEK","0418132","28","BARTOSZYCKI","2801"]
["0419","BARCIN","0419013","28","BRANIEWSKI","2802"]
["0419","GĄSAWA","0419022","28","DZIAŁDOWSKI","2803"]
["0419","JANOWIEC WIELKOPOLSKI","0419033","28","ELBLĄSKI","2804"]
["0419","ŁABISZYN","0419043","28","EŁCKI","2805"]
["0419","ROGOWO","0419052","28","GIŻYCKI","2806"]
["0419","ŻNIN","0419063","28","IŁAWSKI","2807"]
["0461","M.BYDGOSZCZ","0461011","28","KĘTRZYŃSKI","2808"]
["0462","M.GRUDZIĄDZ","0462011","28","LIDZBARSKI","2809"]
["0463","M.TORUŃ","0463011","28","MRĄGOWSKI","2810"]
["0464","M.WŁOCŁAWEK","0464011","28","NIDZICKI","2811"]
["0601","MIĘDZYRZEC PODLASKI-MIEJSKA","0601011","28","NOWOMIEJSKI","2812"]
["0601","TERESPOL-MIEJSKA","0601021","28","OLECKI","2813"]
["0601","BIAŁA PODLASKA","0601032","28","OLSZTYŃSKI","2814"]
["0601","DRELÓW","0601042","28","OSTRÓDZKI","2815"]
["0601","JANÓW PODLASKI","0601052","28","PISKI","2816"]
["0601","KODEŃ","0601062","28","SZCZYCIEŃSKI","2817"]
["0601","KONSTANTYNÓW","0601072","28","GOŁDAPSKI","2818"]
["0601","LEŚNA PODLASKA","0601082","28","WĘGORZEWSKI","2819"]
["0601","ŁOMAZY","0601092","28","M.ELBLĄG","2861"]
["0601","MIĘDZYRZEC PODLASKI-WIEJSKA","0601102","28","M.OLSZTYN","2862"]
["0601","PISZCZAC","0601112","30","CHODZIESKI","3001"]
["0601","ROKITNO","0601122","30","CZARNKOWSKO-TRZCIANECKI","3002"]
["0601","ROSSOSZ","0601132","30","GNIEŹNIEŃSKI","3003"]
["0601","SŁAWATYCZE","0601142","30","GOSTYŃSKI","3004"]
["0601","SOSNÓWKA","0601152","30","GRODZISKI","3005"]
["0601","TERESPOL-WIEJSKA","0601162","30","JAROCIŃSKI","3006"]
["0601","TUCZNA","0601172","30","KALISKI","3007"]
["0601","WISZNICE","0601182","30","KĘPIŃSKI","3008"]
["0601","ZALESIE","0601192","30","KOLSKI","3009"]
["0602","BIŁGORAJ-MIEJSKA","0602011","30","KONIŃSKI","3010"]
["0602","ALEKSANDRÓW","0602022","30","KOŚCIAŃSKI","3011"]
["0602","BIŁGORAJ-WIEJSKA","0602032","30","KROTOSZYŃSKI","3012"]
["0602","BISZCZA","0602042","30","LESZCZYŃSKI","3013"]
["0602","FRAMPOL","0602053","30","MIĘDZYCHODZKI","3014"]
["0602","GORAJ","0602063","30","NOWOTOMYSKI","3015"]
["0602","JÓZEFÓW","0602073","30","OBORNICKI","3016"]
["0602","KSIĘŻPOL","0602082","30","OSTROWSKI","3017"]
["0602","ŁUKOWA","0602092","30","OSTRZESZOWSKI","3018"]
["0602","OBSZA","0602102","30","PILSKI","3019"]
["0602","POTOK GÓRNY","0602112","30","PLESZEWSKI","3020"]
["0602","TARNOGRÓD","0602123","30","POZNAŃSKI","3021"]
["0602","TERESZPOL","0602132","30","RAWICKI","3022"]
["0602","TUROBIN","0602142","30","SŁUPECKI","3023"]
["0603","REJOWIEC FABRYCZNY-MIEJSKA","0603011","30","SZAMOTULSKI","3024"]
["0603","BIAŁOPOLE","0603022","30","ŚREDZKI","3025"]
["0603","CHEŁM","0603032","30","ŚREMSKI","3026"]
["0603","DOROHUSK","0603042","30","TURECKI","3027"]
["0603","DUBIENKA","0603052","30","WĄGROWIECKI","3028"]
["0603","KAMIEŃ","0603062","30","WOLSZTYŃSKI","3029"]
["0603","LEŚNIOWICE","0603072","30","WRZESIŃSKI","3030"]
["0603","REJOWIEC FABRYCZNY-WIEJSKA","0603082","30","ZŁOTOWSKI","3031"]
["0603","RUDA-HUTA","0603092","30","M.KALISZ","3061"]
["0603","SAWIN","0603102","30","M.KONIN","3062"]
["0603","SIEDLISZCZE","0603113","30","M.LESZNO","3063"]
["0603","WIERZBICA","0603122","30","M.POZNAŃ","3064"]
["0603","WOJSŁAWICE","0603132","32","BIAŁOGARDZKI","3201"]
["0603","ŻMUDŹ","0603142","32","CHOSZCZEŃSKI","3202"]
["0603","REJOWIEC","0603153","32","DRAWSKI","3203"]
["0604","HRUBIESZÓW-MIEJSKA","0604011","32","GOLENIOWSKI","3204"]
["0604","DOŁHOBYCZÓW","0604022","32","GRYFICKI","3205"]
["0604","HORODŁO","0604032","32","GRYFIŃSKI","3206"]
["0604","HRUBIESZÓW-WIEJSKA","0604042","32","KAMIEŃSKI","3207"]
["0604","MIRCZE","0604052","32","KOŁOBRZESKI","3208"]
["0604","TRZESZCZANY","0604062","32","KOSZALIŃSKI","3209"]
["0604","UCHANIE","0604072","32","MYŚLIBORSKI","3210"]
["0604","WERBKOWICE","0604082","32","POLICKI","3211"]
["0605","BATORZ","0605012","32","PYRZYCKI","3212"]
["0605","CHRZANÓW","0605022","32","SŁAWIEŃSKI","3213"]
["0605","DZWOLA","0605032","32","STARGARDZKI","3214"]
["0605","GODZISZÓW","0605042","32","SZCZECINECKI","3215"]
["0605","JANÓW LUBELSKI","0605053","32","ŚWIDWIŃSKI","3216"]
["0605","MODLIBORZYCE","0605063","32","WAŁECKI","3217"]
["0605","POTOK WIELKI","0605072","32","ŁOBESKI","3218"]
["0606","KRASNYSTAW-MIEJSKA","0606011","32","M.KOSZALIN","3261"]
["0606","FAJSŁAWICE","0606022","32","M.SZCZECIN","3262"]
["0606","GORZKÓW","0606032","32","M.ŚWINOUJŚCIE","3263"]
["0606","IZBICA","0606042"]
["0606","KRASNYSTAW-WIEJSKA","0606052"]
["0606","KRAŚNICZYN","0606062"]
["0606","ŁOPIENNIK GÓRNY","0606072"]
["0606","RUDNIK","0606092"]
["0606","SIENNICA RÓŻANA","0606102"]
["0606","ŻÓŁKIEWKA","0606112"]
["0607","KRAŚNIK-MIEJSKA","0607011"]
["0607","ANNOPOL","0607023"]
["0607","DZIERZKOWICE","0607032"]
["0607","GOŚCIERADÓW","0607042"]
["0607","KRAŚNIK-WIEJSKA","0607052"]
["0607","SZASTARKA","0607062"]
["0607","TRZYDNIK DUŻY","0607072"]
["0607","URZĘDÓW","0607083"]
["0607","WILKOŁAZ","0607092"]
["0607","ZAKRZÓWEK","0607102"]
["0608","LUBARTÓW-MIEJSKA","0608011"]
["0608","ABRAMÓW","0608022"]
["0608","FIRLEJ","0608032"]
["0608","JEZIORZANY","0608042"]
["0608","KAMIONKA","0608053"]
["0608","KOCK","0608063"]
["0608","LUBARTÓW-WIEJSKA","0608072"]
["0608","MICHÓW","0608082"]
["0608","NIEDŹWIADA","0608092"]
["0608","OSTRÓW LUBELSKI","0608103"]
["0608","OSTRÓWEK","0608112"]
["0608","SERNIKI","0608122"]
["0608","UŚCIMÓW","0608132"]
["0609","BEŁŻYCE","0609013"]
["0609","BORZECHÓW","0609022"]
["0609","BYCHAWA","0609033"]
["0609","GARBÓW","0609042"]
["0609","GŁUSK","0609052"]
["0609","JABŁONNA","0609062"]
["0609","JASTKÓW","0609072"]
["0609","KONOPNICA","0609082"]
["0609","KRZCZONÓW","0609092"]
["0609","NIEDRZWICA DUŻA","0609102"]
["0609","NIEMCE","0609112"]
["0609","STRZYŻEWICE","0609122"]
["0609","WOJCIECHÓW","0609132"]
["0609","WÓLKA","0609142"]
["0609","WYSOKIE","0609152"]
["0609","ZAKRZEW","0609162"]
["0610","CYCÓW","0610012"]
["0610","LUDWIN","0610022"]
["0610","ŁĘCZNA","0610033"]
["0610","MILEJÓW","0610042"]
["0610","PUCHACZÓW","0610052"]
["0610","SPICZYN","0610062"]
["0611","ŁUKÓW-MIEJSKA","0611011"]
["0611","STOCZEK ŁUKOWSKI-MIEJSKA","0611021"]
["0611","ADAMÓW","0611032"]
["0611","KRZYWDA","0611042"]
["0611","ŁUKÓW-WIEJSKA","0611052"]
["0611","SEROKOMLA","0611062"]
["0611","STANIN","0611072"]
["0611","STOCZEK ŁUKOWSKI-WIEJSKA","0611082"]
["0611","TRZEBIESZÓW","0611092"]
["0611","WOJCIESZKÓW","0611102"]
["0611","WOLA MYSŁOWSKA","0611112"]
["0612","CHODEL","0612012"]
["0612","JÓZEFÓW NAD WISŁĄ","0612023"]
["0612","KARCZMISKA","0612032"]
["0612","ŁAZISKA","0612042"]
["0612","OPOLE LUBELSKIE","0612053"]
["0612","PONIATOWA","0612063"]
["0612","WILKÓW","0612072"]
["0613","DĘBOWA KŁODA","0613012"]
["0613","JABŁOŃ","0613022"]
["0613","MILANÓW","0613032"]
["0613","PARCZEW","0613043"]
["0613","PODEDWÓRZE","0613052"]
["0613","SIEMIEŃ","0613062"]
["0613","SOSNOWICA","0613072"]
["0614","PUŁAWY-MIEJSKA","0614011"]
["0614","BARANÓW","0614022"]
["0614","JANOWIEC","0614032"]
["0614","KAZIMIERZ DOLNY","0614043"]
["0614","KOŃSKOWOLA","0614052"]
["0614","KURÓW","0614062"]
["0614","MARKUSZÓW","0614072"]
["0614","NAŁĘCZÓW","0614083"]
["0614","PUŁAWY-WIEJSKA","0614092"]
["0614","WĄWOLNICA","0614102"]
["0614","ŻYRZYN","0614112"]
["0615","RADZYŃ PODLASKI-MIEJSKA","0615011"]
["0615","BORKI","0615022"]
["0615","CZEMIERNIKI","0615032"]
["0615","KĄKOLEWNICA","0615042"]
["0615","KOMARÓWKA PODLASKA","0615052"]
["0615","RADZYŃ PODLASKI-WIEJSKA","0615062"]
["0615","ULAN-MAJORAT","0615072"]
["0615","WOHYŃ","0615082"]
["0616","DĘBLIN","0616011"]
["0616","KŁOCZEW","0616022"]
["0616","NOWODWÓR","0616032"]
["0616","RYKI","0616043"]
["0616","STĘŻYCA","0616052"]
["0616","UŁĘŻ","0616062"]
["0617","ŚWIDNIK","0617011"]
["0617","MEŁGIEW","0617022"]
["0617","PIASKI","0617033"]
["0617","RYBCZEWICE","0617042"]
["0617","TRAWNIKI","0617052"]
["0618","TOMASZÓW LUBELSKI-MIEJSKA","0618011"]
["0618","BEŁŻEC","0618022"]
["0618","JARCZÓW","0618032"]
["0618","KRYNICE","0618042"]
["0618","LUBYCZA KRÓLEWSKA","0618053"]
["0618","ŁASZCZÓW","0618063"]
["0618","RACHANIE","0618072"]
["0618","SUSIEC","0618082"]
["0618","TARNAWATKA","0618092"]
["0618","TELATYN","0618102"]
["0618","TOMASZÓW LUBELSKI-WIEJSKA","0618112"]
["0618","TYSZOWCE","0618123"]
["0618","ULHÓWEK","0618132"]
["0619","WŁODAWA-MIEJSKA","0619011"]
["0619","HANNA","0619022"]
["0619","HAŃSK","0619032"]
["0619","STARY BRUS","0619042"]
["0619","URSZULIN","0619052"]
["0619","WŁODAWA-WIEJSKA","0619062"]
["0619","WOLA UHRUSKA","0619072"]
["0619","WYRYKI","0619082"]
["0620","ADAMÓW","0620012"]
["0620","GRABOWIEC","0620022"]
["0620","KOMARÓW-OSADA","0620032"]
["0620","KRASNOBRÓD","0620043"]
["0620","ŁABUNIE","0620052"]
["0620","MIĄCZYN","0620062"]
["0620","NIELISZ","0620072"]
["0620","RADECZNICA","0620082"]
["0620","SITNO","0620092"]
["0620","SKIERBIESZÓW","0620102"]
["0620","STARY ZAMOŚĆ","0620112"]
["0620","SUŁÓW","0620122"]
["0620","SZCZEBRZESZYN","0620133"]
["0620","ZAMOŚĆ","0620142"]
["0620","ZWIERZYNIEC","0620153"]
["0661","M.BIAŁA PODLASKA","0661011"]
["0662","M.CHEŁM","0662011"]
["0663","M.LUBLIN","0663011"]
["0664","M.ZAMOŚĆ","0664011"]
["0801","KOSTRZYN NAD ODRĄ","0801011"]
["0801","BOGDANIEC","0801022"]
["0801","DESZCZNO","0801032"]
["0801","KŁODAWA","0801042"]
["0801","LUBISZYN","0801052"]
["0801","SANTOK","0801062"]
["0801","WITNICA","0801073"]
["0802","GUBIN-MIEJSKA","0802011"]
["0802","BOBROWICE","0802022"]
["0802","BYTNICA","0802032"]
["0802","DĄBIE","0802042"]
["0802","GUBIN-WIEJSKA","0802052"]
["0802","KROSNO ODRZAŃSKIE","0802063"]
["0802","MASZEWO","0802072"]
["0803","BLEDZEW","0803012"]
["0803","MIĘDZYRZECZ","0803023"]
["0803","PRZYTOCZNA","0803032"]
["0803","PSZCZEW","0803042"]
["0803","SKWIERZYNA","0803053"]
["0803","TRZCIEL","0803063"]
["0804","NOWA SÓL-MIEJSKA","0804011"]
["0804","BYTOM ODRZAŃSKI","0804023"]
["0804","KOLSKO","0804032"]
["0804","KOŻUCHÓW","0804043"]
["0804","NOWA SÓL-WIEJSKA","0804052"]
["0804","NOWE MIASTECZKO","0804063"]
["0804","OTYŃ","0804073"]
["0804","SIEDLISKO","0804082"]
["0805","CYBINKA","0805013"]
["0805","GÓRZYCA","0805022"]
["0805","OŚNO LUBUSKIE","0805033"]
["0805","RZEPIN","0805043"]
["0805","SŁUBICE","0805053"]
["0806","DOBIEGNIEW","0806013"]
["0806","DREZDENKO","0806023"]
["0806","STARE KUROWO","0806032"]
["0806","STRZELCE KRAJEŃSKIE","0806043"]
["0806","ZWIERZYN","0806052"]
["0807","KRZESZYCE","0807012"]
["0807","LUBNIEWICE","0807023"]
["0807","SŁOŃSK","0807032"]
["0807","SULĘCIN","0807043"]
["0807","TORZYM","0807053"]
["0808","LUBRZA","0808012"]
["0808","ŁAGÓW","0808022"]
["0808","SKĄPE","0808032"]
["0808","SZCZANIEC","0808042"]
["0808","ŚWIEBODZIN","0808053"]
["0808","ZBĄSZYNEK","0808063"]
["0809","BABIMOST","0809013"]
["0809","BOJADŁA","0809022"]
["0809","CZERWIEŃSK","0809033"]
["0809","KARGOWA","0809043"]
["0809","NOWOGRÓD BOBRZAŃSKI","0809053"]
["0809","SULECHÓW","0809063"]
["0809","ŚWIDNICA","0809072"]
["0809","TRZEBIECHÓW","0809082"]
["0809","ZABÓR","0809092"]
["0810","GOZDNICA","0810011"]
["0810","ŻAGAŃ-MIEJSKA","0810021"]
["0810","BRZEŹNICA","0810032"]
["0810","IŁOWA","0810043"]
["0810","MAŁOMICE","0810053"]
["0810","NIEGOSŁAWICE","0810062"]
["0810","SZPROTAWA","0810073"]
["0810","WYMIARKI","0810082"]
["0810","ŻAGAŃ-WIEJSKA","0810092"]
["0811","ŁĘKNICA","0811011"]
["0811","ŻARY-MIEJSKA","0811021"]
["0811","BRODY","0811032"]
["0811","JASIEŃ","0811043"]
["0811","LIPINKI ŁUŻYCKIE","0811052"]
["0811","LUBSKO","0811063"]
["0811","PRZEWÓZ","0811072"]
["0811","TRZEBIEL","0811082"]
["0811","TUPLICE","0811092"]
["0811","ŻARY-WIEJSKA","0811102"]
["0812","SŁAWA","0812013"]
["0812","SZLICHTYNGOWA","0812023"]
["0812","WSCHOWA","0812033"]
["0861","M.GORZÓW WIELKOPOLSKI","0861011"]
["0862","M.ZIELONA GÓRA","0862011"]
["1001","BEŁCHATÓW-MIEJSKA","1001011"]
["1001","BEŁCHATÓW-WIEJSKA","1001022"]
["1001","DRUŻBICE","1001032"]
["1001","KLESZCZÓW","1001042"]
["1001","KLUKI","1001052"]
["1001","RUSIEC","1001062"]
["1001","SZCZERCÓW","1001072"]
["1001","ZELÓW","1001083"]
["1002","KUTNO-MIEJSKA","1002011"]
["1002","BEDLNO","1002022"]
["1002","DĄBROWICE","1002032"]
["1002","KROŚNIEWICE","1002043"]
["1002","KRZYŻANÓW","1002052"]
["1002","KUTNO-WIEJSKA","1002062"]
["1002","ŁANIĘTA","1002072"]
["1002","NOWE OSTROWY","1002082"]
["1002","OPORÓW","1002092"]
["1002","STRZELCE","1002102"]
["1002","ŻYCHLIN","1002113"]
["1003","BUCZEK","1003012"]
["1003","ŁASK","1003023"]
["1003","SĘDZIEJOWICE","1003032"]
["1003","WIDAWA","1003042"]
["1003","WODZIERADY","1003052"]
["1004","ŁĘCZYCA-MIEJSKA","1004011"]
["1004","DASZYNA","1004022"]
["1004","GÓRA ŚWIĘTEJ MAŁGORZATY","1004032"]
["1004","GRABÓW","1004042"]
["1004","ŁĘCZYCA-WIEJSKA","1004052"]
["1004","PIĄTEK","1004063"]
["1004","ŚWINICE WARCKIE","1004072"]
["1004","WITONIA","1004082"]
["1005","ŁOWICZ-MIEJSKA","1005011"]
["1005","BIELAWY","1005022"]
["1005","CHĄŚNO","1005032"]
["1005","DOMANIEWICE","1005042"]
["1005","KIERNOZIA","1005052"]
["1005","KOCIERZEW POŁUDNIOWY","1005062"]
["1005","ŁOWICZ-WIEJSKA","1005072"]
["1005","ŁYSZKOWICE","1005082"]
["1005","NIEBORÓW","1005092"]
["1005","ZDUNY","1005102"]
["1006","ANDRESPOL","1006022"]
["1006","BRÓJCE","1006032"]
["1006","KOLUSZKI","1006073"]
["1006","NOWOSOLNA","1006082"]
["1006","RZGÓW","1006103"]
["1006","TUSZYN","1006113"]
["1007","BIAŁACZÓW","1007012"]
["1007","DRZEWICA","1007023"]
["1007","MNISZKÓW","1007032"]
["1007","OPOCZNO","1007043"]
["1007","PARADYŻ","1007052"]
["1007","POŚWIĘTNE","1007062"]
["1007","SŁAWNO","1007072"]
["1007","ŻARNÓW","1007082"]
["1008","KONSTANTYNÓW ŁÓDZKI","1008011"]
["1008","PABIANICE-MIEJSKA","1008021"]
["1008","DŁUTÓW","1008032"]
["1008","DOBROŃ","1008042"]
["1008","KSAWERÓW","1008052"]
["1008","LUTOMIERSK","1008062"]
["1008","PABIANICE-WIEJSKA","1008072"]
["1009","DZIAŁOSZYN","1009013"]
["1009","KIEŁCZYGŁÓW","1009022"]
["1009","NOWA BRZEŹNICA","1009032"]
["1009","PAJĘCZNO","1009043"]
["1009","RZĄŚNIA","1009052"]
["1009","SIEMKOWICE","1009062"]
["1009","STRZELCE WIELKIE","1009072"]
["1009","SULMIERZYCE","1009082"]
["1010","ALEKSANDRÓW","1010012"]
["1010","CZARNOCIN","1010022"]
["1010","GORZKOWICE","1010032"]
["1010","GRABICA","1010042"]
["1010","ŁĘKI SZLACHECKIE","1010052"]
["1010","MOSZCZENICA","1010062"]
["1010","RĘCZNO","1010072"]
["1010","ROZPRZA","1010082"]
["1010","SULEJÓW","1010093"]
["1010","WOLA KRZYSZTOPORSKA","1010102"]
["1010","WOLBÓRZ","1010113"]
["1011","DALIKÓW","1011012"]
["1011","PĘCZNIEW","1011022"]
["1011","PODDĘBICE","1011033"]
["1011","UNIEJÓW","1011043"]
["1011","WARTKOWICE","1011052"]
["1011","ZADZIM","1011062"]
["1012","RADOMSKO-MIEJSKA","1012011"]
["1012","DOBRYSZYCE","1012022"]
["1012","GIDLE","1012032"]
["1012","GOMUNICE","1012042"]
["1012","KAMIEŃSK","1012053"]
["1012","KOBIELE WIELKIE","1012062"]
["1012","KODRĄB","1012072"]
["1012","LGOTA WIELKA","1012082"]
["1012","ŁADZICE","1012092"]
["1012","MASŁOWICE","1012102"]
["1012","PRZEDBÓRZ","1012113"]
["1012","RADOMSKO-WIEJSKA","1012122"]
["1012","WIELGOMŁYNY","1012132"]
["1012","ŻYTNO","1012142"]
["1013","RAWA MAZOWIECKA-MIEJSKA","1013011"]
["1013","BIAŁA RAWSKA","1013023"]
["1013","CIELĄDZ","1013032"]
["1013","RAWA MAZOWIECKA-WIEJSKA","1013042"]
["1013","REGNÓW","1013052"]
["1013","SADKOWICE","1013062"]
["1014","SIERADZ-MIEJSKA","1014011"]
["1014","BŁASZKI","1014023"]
["1014","BRĄSZEWICE","1014032"]
["1014","BRZEŹNIO","1014042"]
["1014","BURZENIN","1014052"]
["1014","GOSZCZANÓW","1014062"]
["1014","KLONOWA","1014072"]
["1014","SIERADZ-WIEJSKA","1014082"]
["1014","WARTA","1014093"]
["1014","WRÓBLEW","1014102"]
["1014","ZŁOCZEW","1014113"]
["1015","BOLIMÓW","1015012"]
["1015","GŁUCHÓW","1015022"]
["1015","GODZIANÓW","1015032"]
["1015","KOWIESY","1015042"]
["1015","LIPCE REYMONTOWSKIE","1015052"]
["1015","MAKÓW","1015062"]
["1015","NOWY KAWĘCZYN","1015072"]
["1015","SKIERNIEWICE","1015082"]
["1015","SŁUPIA","1015092"]
["1016","TOMASZÓW MAZOWIECKI-MIEJSKA","1016011"]
["1016","BĘDKÓW","1016022"]
["1016","BUDZISZEWICE","1016032"]
["1016","CZERNIEWICE","1016042"]
["1016","INOWŁÓDZ","1016052"]
["1016","LUBOCHNIA","1016062"]
["1016","ROKICINY","1016072"]
["1016","RZECZYCA","1016082"]
["1016","TOMASZÓW MAZOWIECKI-WIEJSKA","1016092"]
["1016","UJAZD","1016102"]
["1016","ŻELECHLINEK","1016112"]
["1017","BIAŁA","1017012"]
["1017","CZARNOŻYŁY","1017022"]
["1017","KONOPNICA","1017032"]
["1017","MOKRSKO","1017042"]
["1017","OSJAKÓW","1017052"]
["1017","OSTRÓWEK","1017062"]
["1017","PĄTNÓW","1017072"]
["1017","SKOMLIN","1017082"]
["1017","WIELUŃ","1017093"]
["1017","WIERZCHLAS","1017102"]
["1018","BOLESŁAWIEC","1018012"]
["1018","CZASTARY","1018022"]
["1018","GALEWICE","1018032"]
["1018","LUTUTÓW","1018043"]
["1018","ŁUBNICE","1018052"]
["1018","SOKOLNIKI","1018062"]
["1018","WIERUSZÓW","1018073"]
["1019","ZDUŃSKA WOLA-MIEJSKA","1019011"]
["1019","SZADEK","1019023"]
["1019","ZAPOLICE","1019032"]
["1019","ZDUŃSKA WOLA-WIEJSKA","1019042"]
["1020","GŁOWNO-MIEJSKA","1020011"]
["1020","OZORKÓW-MIEJSKA","1020021"]
["1020","ZGIERZ-MIEJSKA","1020031"]
["1020","ALEKSANDRÓW ŁÓDZKI","1020043"]
["1020","GŁOWNO-WIEJSKA","1020052"]
["1020","OZORKÓW-WIEJSKA","1020062"]
["1020","PARZĘCZEW","1020072"]
["1020","STRYKÓW","1020083"]
["1020","ZGIERZ-WIEJSKA","1020092"]
["1021","BRZEZINY-MIEJSKA","1021011"]
["1021","BRZEZINY-WIEJSKA","1021022"]
["1021","DMOSIN","1021032"]
["1021","JEŻÓW","1021042"]
["1021","ROGÓW","1021052"]
["1061","M.ŁÓDŹ","1061011"]
["1062","M.PIOTRKÓW TRYBUNALSKI","1062011"]
["1063","M.SKIERNIEWICE","1063011"]
["1201","BOCHNIA-MIEJSKA","1201011"]
["1201","BOCHNIA-WIEJSKA","1201022"]
["1201","DRWINIA","1201032"]
["1201","LIPNICA MUROWANA","1201042"]
["1201","ŁAPANÓW","1201052"]
["1201","NOWY WIŚNICZ","1201063"]
["1201","RZEZAWA","1201072"]
["1201","TRZCIANA","1201082"]
["1201","ŻEGOCINA","1201092"]
["1202","BORZĘCIN","1202012"]
["1202","BRZESKO","1202023"]
["1202","CZCHÓW","1202033"]
["1202","DĘBNO","1202042"]
["1202","GNOJNIK","1202052"]
["1202","IWKOWA","1202062"]
["1202","SZCZUROWA","1202072"]
["1203","ALWERNIA","1203013"]
["1203","BABICE","1203022"]
["1203","CHRZANÓW","1203033"]
["1203","LIBIĄŻ","1203043"]
["1203","TRZEBINIA","1203053"]
["1204","BOLESŁAW","1204012"]
["1204","DĄBROWA TARNOWSKA","1204023"]
["1204","GRĘBOSZÓW","1204032"]
["1204","MĘDRZECHÓW","1204042"]
["1204","OLESNO","1204052"]
["1204","RADGOSZCZ","1204062"]
["1204","SZCZUCIN","1204073"]
["1205","GORLICE-MIEJSKA","1205011"]
["1205","BIECZ","1205023"]
["1205","BOBOWA","1205033"]
["1205","GORLICE-WIEJSKA","1205042"]
["1205","LIPINKI","1205052"]
["1205","ŁUŻNA","1205062"]
["1205","MOSZCZENICA","1205072"]
["1205","ROPA","1205082"]
["1205","SĘKOWA","1205092"]
["1205","UŚCIE GORLICKIE","1205102"]
["1206","CZERNICHÓW","1206012"]
["1206","IGOŁOMIA-WAWRZEŃCZYCE","1206022"]
["1206","IWANOWICE","1206032"]
["1206","JERZMANOWICE-PRZEGINIA","1206042"]
["1206","KOCMYRZÓW-LUBORZYCA","1206052"]
["1206","KRZESZOWICE","1206063"]
["1206","LISZKI","1206072"]
["1206","MICHAŁOWICE","1206082"]
["1206","MOGILANY","1206092"]
["1206","SKAŁA","1206103"]
["1206","SKAWINA","1206113"]
["1206","SŁOMNIKI","1206123"]
["1206","SUŁOSZOWA","1206132"]
["1206","ŚWIĄTNIKI GÓRNE","1206143"]
["1206","WIELKA WIEŚ","1206152"]
["1206","ZABIERZÓW","1206162"]
["1206","ZIELONKI","1206172"]
["1207","LIMANOWA-MIEJSKA","1207011"]
["1207","MSZANA DOLNA-MIEJSKA","1207021"]
["1207","DOBRA","1207032"]
["1207","JODŁOWNIK","1207042"]
["1207","KAMIENICA","1207052"]
["1207","LASKOWA","1207062"]
["1207","LIMANOWA-WIEJSKA","1207072"]
["1207","ŁUKOWICA","1207082"]
["1207","MSZANA DOLNA-WIEJSKA","1207092"]
["1207","NIEDŹWIEDŹ","1207102"]
["1207","SŁOPNICE","1207112"]
["1207","TYMBARK","1207122"]
["1208","CHARSZNICA","1208012"]
["1208","GOŁCZA","1208022"]
["1208","KOZŁÓW","1208032"]
["1208","KSIĄŻ WIELKI","1208042"]
["1208","MIECHÓW","1208053"]
["1208","RACŁAWICE","1208062"]
["1208","SŁABOSZÓW","1208072"]
["1209","DOBCZYCE","1209013"]
["1209","LUBIEŃ","1209022"]
["1209","MYŚLENICE","1209033"]
["1209","PCIM","1209042"]
["1209","RACIECHOWICE","1209052"]
["1209","SIEPRAW","1209062"]
["1209","SUŁKOWICE","1209073"]
["1209","TOKARNIA","1209082"]
["1209","WIŚNIOWA","1209092"]
["1210","GRYBÓW-MIEJSKA","1210011"]
["1210","CHEŁMIEC","1210022"]
["1210","GRÓDEK NAD DUNAJCEM","1210032"]
["1210","GRYBÓW-WIEJSKA","1210042"]
["1210","KAMIONKA WIELKA","1210052"]
["1210","KORZENNA","1210062"]
["1210","KRYNICA-ZDRÓJ","1210073"]
["1210","ŁABOWA","1210082"]
["1210","ŁĄCKO","1210092"]
["1210","ŁOSOSINA DOLNA","1210102"]
["1210","MUSZYNA","1210113"]
["1210","NAWOJOWA","1210122"]
["1210","PIWNICZNA-ZDRÓJ","1210133"]
["1210","PODEGRODZIE","1210142"]
["1210","RYTRO","1210152"]
["1210","STARY SĄCZ","1210163"]
["1211","NOWY TARG-MIEJSKA","1211011"]
["1211","SZCZAWNICA","1211023"]
["1211","CZARNY DUNAJEC","1211032"]
["1211","CZORSZTYN","1211042"]
["1211","JABŁONKA","1211052"]
["1211","KROŚCIENKO NAD DUNAJCEM","1211062"]
["1211","LIPNICA WIELKA","1211072"]
["1211","ŁAPSZE NIŻNE","1211082"]
["1211","NOWY TARG-WIEJSKA","1211092"]
["1211","OCHOTNICA DOLNA","1211102"]
["1211","RABA WYŻNA","1211112"]
["1211","RABKA-ZDRÓJ","1211123"]
["1211","SPYTKOWICE","1211132"]
["1211","SZAFLARY","1211142"]
["1212","BUKOWNO","1212011"]
["1212","BOLESŁAW","1212032"]
["1212","KLUCZE","1212042"]
["1212","OLKUSZ","1212053"]
["1212","TRZYCIĄŻ","1212062"]
["1212","WOLBROM","1212073"]
["1213","OŚWIĘCIM-MIEJSKA","1213011"]
["1213","BRZESZCZE","1213023"]
["1213","CHEŁMEK","1213033"]
["1213","KĘTY","1213043"]
["1213","OSIEK","1213052"]
["1213","OŚWIĘCIM-WIEJSKA","1213062"]
["1213","POLANKA WIELKA","1213072"]
["1213","PRZECISZÓW","1213082"]
["1213","ZATOR","1213093"]
["1214","KONIUSZA","1214012"]
["1214","KOSZYCE","1214023"]
["1214","NOWE BRZESKO","1214033"]
["1214","PAŁECZNICA","1214042"]
["1214","PROSZOWICE","1214053"]
["1214","RADZIEMICE","1214062"]
["1215","JORDANÓW-MIEJSKA","1215011"]
["1215","SUCHA BESKIDZKA","1215021"]
["1215","BUDZÓW","1215032"]
["1215","BYSTRA-SIDZINA","1215042"]
["1215","JORDANÓW-WIEJSKA","1215052"]
["1215","MAKÓW PODHALAŃSKI","1215063"]
["1215","STRYSZAWA","1215072"]
["1215","ZAWOJA","1215082"]
["1215","ZEMBRZYCE","1215092"]
["1216","CIĘŻKOWICE","1216013"]
["1216","GROMNIK","1216022"]
["1216","LISIA GÓRA","1216032"]
["1216","PLEŚNA","1216042"]
["1216","RADŁÓW","1216053"]
["1216","RYGLICE","1216063"]
["1216","RZEPIENNIK STRZYŻEWSKI","1216072"]
["1216","SKRZYSZÓW","1216082"]
["1216","TARNÓW","1216092"]
["1216","TUCHÓW","1216103"]
["1216","WIERZCHOSŁAWICE","1216112"]
["1216","WIETRZYCHOWICE","1216122"]
["1216","WOJNICZ","1216133"]
["1216","ZAKLICZYN","1216143"]
["1216","ŻABNO","1216153"]
["1216","SZERZYNY","1216162"]
["1217","ZAKOPANE","1217011"]
["1217","BIAŁY DUNAJEC","1217022"]
["1217","BUKOWINA TATRZAŃSKA","1217032"]
["1217","KOŚCIELISKO","1217042"]
["1217","PORONIN","1217052"]
["1218","ANDRYCHÓW","1218013"]
["1218","BRZEŹNICA","1218022"]
["1218","KALWARIA ZEBRZYDOWSKA","1218033"]
["1218","LANCKORONA","1218042"]
["1218","MUCHARZ","1218052"]
["1218","SPYTKOWICE","1218062"]
["1218","STRYSZÓW","1218072"]
["1218","TOMICE","1218082"]
["1218","WADOWICE","1218093"]
["1218","WIEPRZ","1218102"]
["1219","BISKUPICE","1219012"]
["1219","GDÓW","1219022"]
["1219","KŁAJ","1219032"]
["1219","NIEPOŁOMICE","1219043"]
["1219","WIELICZKA","1219053"]
["1261","M.KRAKÓW","1261011"]
["1262","M.NOWY SĄCZ","1262011"]
["1263","M.TARNÓW","1263011"]
["1401","BIAŁOBRZEGI","1401013"]
["1401","PROMNA","1401022"]
["1401","RADZANÓW","1401032"]
["1401","STARA BŁOTNICA","1401042"]
["1401","STROMIEC","1401052"]
["1401","WYŚMIERZYCE","1401063"]
["1402","CIECHANÓW-MIEJSKA","1402011"]
["1402","CIECHANÓW-WIEJSKA","1402022"]
["1402","GLINOJECK","1402033"]
["1402","GOŁYMIN-OŚRODEK","1402042"]
["1402","GRUDUSK","1402052"]
["1402","OJRZEŃ","1402062"]
["1402","OPINOGÓRA GÓRNA","1402072"]
["1402","REGIMIN","1402082"]
["1402","SOŃSK","1402092"]
["1403","GARWOLIN-MIEJSKA","1403011"]
["1403","ŁASKARZEW-MIEJSKA","1403021"]
["1403","BOROWIE","1403032"]
["1403","GARWOLIN-WIEJSKA","1403042"]
["1403","GÓRZNO","1403052"]
["1403","ŁASKARZEW-WIEJSKA","1403062"]
["1403","MACIEJOWICE","1403072"]
["1403","MIASTKÓW KOŚCIELNY","1403082"]
["1403","PARYSÓW","1403092"]
["1403","PILAWA","1403103"]
["1403","SOBOLEW","1403112"]
["1403","TROJANÓW","1403122"]
["1403","WILGA","1403132"]
["1403","ŻELECHÓW","1403143"]
["1404","GOSTYNIN-MIEJSKA","1404011"]
["1404","GOSTYNIN-WIEJSKA","1404022"]
["1404","PACYNA","1404032"]
["1404","SANNIKI","1404043"]
["1404","SZCZAWIN KOŚCIELNY","1404052"]
["1405","MILANÓWEK","1405011"]
["1405","PODKOWA LEŚNA","1405021"]
["1405","BARANÓW","1405032"]
["1405","GRODZISK MAZOWIECKI","1405043"]
["1405","JAKTORÓW","1405052"]
["1405","ŻABIA WOLA","1405062"]
["1406","BELSK DUŻY","1406012"]
["1406","BŁĘDÓW","1406022"]
["1406","CHYNÓW","1406032"]
["1406","GOSZCZYN","1406042"]
["1406","GRÓJEC","1406053"]
["1406","JASIENIEC","1406062"]
["1406","MOGIELNICA","1406073"]
["1406","NOWE MIASTO NAD PILICĄ","1406083"]
["1406","PNIEWY","1406092"]
["1406","WARKA","1406113"]
["1407","GARBATKA-LETNISKO","1407012"]
["1407","GŁOWACZÓW","1407022"]
["1407","GNIEWOSZÓW","1407032"]
["1407","GRABÓW NAD PILICĄ","1407042"]
["1407","KOZIENICE","1407053"]
["1407","MAGNUSZEW","1407062"]
["1407","SIECIECHÓW","1407072"]
["1408","LEGIONOWO","1408011"]
["1408","JABŁONNA","1408022"]
["1408","NIEPORĘT","1408032"]
["1408","SEROCK","1408043"]
["1408","WIELISZEW","1408052"]
["1409","CHOTCZA","1409012"]
["1409","CIEPIELÓW","1409022"]
["1409","LIPSKO","1409033"]
["1409","RZECZNIÓW","1409042"]
["1409","SIENNO","1409052"]
["1409","SOLEC NAD WISŁĄ","1409063"]
["1410","HUSZLEW","1410012"]
["1410","ŁOSICE","1410023"]
["1410","OLSZANKA","1410032"]
["1410","PLATERÓW","1410042"]
["1410","SARNAKI","1410052"]
["1410","STARA KORNICA","1410062"]
["1411","MAKÓW MAZOWIECKI","1411011"]
["1411","CZERWONKA","1411022"]
["1411","KARNIEWO","1411032"]
["1411","KRASNOSIELC","1411042"]
["1411","MŁYNARZE","1411052"]
["1411","PŁONIAWY-BRAMURA","1411062"]
["1411","RÓŻAN","1411073"]
["1411","RZEWNIE","1411082"]
["1411","SYPNIEWO","1411092"]
["1411","SZELKÓW","1411102"]
["1412","MIŃSK MAZOWIECKI-MIEJSKA","1412011"]
["1412","CEGŁÓW","1412042"]
["1412","DĘBE WIELKIE","1412052"]
["1412","DOBRE","1412062"]
["1412","HALINÓW","1412073"]
["1412","JAKUBÓW","1412082"]
["1412","KAŁUSZYN","1412093"]
["1412","LATOWICZ","1412102"]
["1412","MIŃSK MAZOWIECKI-WIEJSKA","1412112"]
["1412","MROZY","1412123"]
["1412","SIENNICA","1412132"]
["1412","STANISŁAWÓW","1412142"]
["1412","SULEJÓWEK","1412151"]
["1413","MŁAWA","1413011"]
["1413","DZIERZGOWO","1413022"]
["1413","LIPOWIEC KOŚCIELNY","1413032"]
["1413","RADZANÓW","1413042"]
["1413","STRZEGOWO","1413052"]
["1413","STUPSK","1413062"]
["1413","SZREŃSK","1413072"]
["1413","SZYDŁOWO","1413082"]
["1413","WIECZFNIA KOŚCIELNA","1413092"]
["1413","WIŚNIEWO","1413102"]
["1414","NOWY DWÓR MAZOWIECKI","1414011"]
["1414","CZOSNÓW","1414022"]
["1414","LEONCIN","1414032"]
["1414","NASIELSK","1414043"]
["1414","POMIECHÓWEK","1414052"]
["1414","ZAKROCZYM","1414063"]
["1415","BARANOWO","1415012"]
["1415","CZARNIA","1415022"]
["1415","CZERWIN","1415032"]
["1415","GOWOROWO","1415042"]
["1415","KADZIDŁO","1415052"]
["1415","LELIS","1415062"]
["1415","ŁYSE","1415072"]
["1415","MYSZYNIEC","1415083"]
["1415","OLSZEWO-BORKI","1415092"]
["1415","RZEKUŃ","1415102"]
["1415","TROSZYN","1415112"]
["1416","OSTRÓW MAZOWIECKA-MIEJSKA","1416011"]
["1416","ANDRZEJEWO","1416022"]
["1416","BOGUTY-PIANKI","1416032"]
["1416","BROK","1416043"]
["1416","MAŁKINIA GÓRNA","1416052"]
["1416","NUR","1416062"]
["1416","OSTRÓW MAZOWIECKA-WIEJSKA","1416072"]
["1416","STARY LUBOTYŃ","1416082"]
["1416","SZULBORZE WIELKIE","1416092"]
["1416","WĄSEWO","1416102"]
["1416","ZARĘBY KOŚCIELNE","1416112"]
["1417","JÓZEFÓW","1417011"]
["1417","OTWOCK","1417021"]
["1417","CELESTYNÓW","1417032"]
["1417","KARCZEW","1417043"]
["1417","KOŁBIEL","1417052"]
["1417","OSIECK","1417062"]
["1417","SOBIENIE-JEZIORY","1417072"]
["1417","WIĄZOWNA","1417082"]
["1418","GÓRA KALWARIA","1418013"]
["1418","KONSTANCIN-JEZIORNA","1418023"]
["1418","LESZNOWOLA","1418032"]
["1418","PIASECZNO","1418043"]
["1418","PRAŻMÓW","1418052"]
["1418","TARCZYN","1418063"]
["1419","BIELSK","1419012"]
["1419","BODZANÓW","1419022"]
["1419","BRUDZEŃ DUŻY","1419032"]
["1419","BULKOWO","1419042"]
["1419","DROBIN","1419053"]
["1419","GĄBIN","1419063"]
["1419","ŁĄCK","1419072"]
["1419","MAŁA WIEŚ","1419082"]
["1419","NOWY DUNINÓW","1419092"]
["1419","RADZANOWO","1419102"]
["1419","SŁUBICE","1419112"]
["1419","SŁUPNO","1419122"]
["1419","STARA BIAŁA","1419132"]
["1419","STAROŹREBY","1419142"]
["1419","WYSZOGRÓD","1419153"]
["1420","PŁOŃSK-MIEJSKA","1420011"]
["1420","RACIĄŻ-MIEJSKA","1420021"]
["1420","BABOSZEWO","1420032"]
["1420","CZERWIŃSK NAD WISŁĄ","1420043"]
["1420","DZIERZĄŻNIA","1420052"]
["1420","JONIEC","1420062"]
["1420","NARUSZEWO","1420072"]
["1420","NOWE MIASTO","1420082"]
["1420","PŁOŃSK-WIEJSKA","1420092"]
["1420","RACIĄŻ-WIEJSKA","1420102"]
["1420","SOCHOCIN","1420113"]
["1420","ZAŁUSKI","1420122"]
["1421","PIASTÓW","1421011"]
["1421","PRUSZKÓW","1421021"]
["1421","BRWINÓW","1421033"]
["1421","MICHAŁOWICE","1421042"]
["1421","NADARZYN","1421052"]
["1421","RASZYN","1421062"]
["1422","PRZASNYSZ-MIEJSKA","1422011"]
["1422","CHORZELE","1422023"]
["1422","CZERNICE BOROWE","1422032"]
["1422","JEDNOROŻEC","1422042"]
["1422","KRASNE","1422052"]
["1422","KRZYNOWŁOGA MAŁA","1422062"]
["1422","PRZASNYSZ-WIEJSKA","1422072"]
["1423","BORKOWICE","1423012"]
["1423","GIELNIÓW","1423022"]
["1423","KLWÓW","1423032"]
["1423","ODRZYWÓŁ","1423042"]
["1423","POTWORÓW","1423052"]
["1423","PRZYSUCHA","1423063"]
["1423","RUSINÓW","1423072"]
["1423","WIENIAWA","1423082"]
["1424","GZY","1424012"]
["1424","OBRYTE","1424022"]
["1424","POKRZYWNICA","1424032"]
["1424","PUŁTUSK","1424043"]
["1424","ŚWIERCZE","1424052"]
["1424","WINNICA","1424062"]
["1424","ZATORY","1424072"]
["1425","PIONKI-MIEJSKA","1425011"]
["1425","GÓZD","1425022"]
["1425","IŁŻA","1425033"]
["1425","JASTRZĘBIA","1425042"]
["1425","JEDLIŃSK","1425052"]
["1425","JEDLNIA-LETNISKO","1425062"]
["1425","KOWALA","1425072"]
["1425","PIONKI-WIEJSKA","1425082"]
["1425","PRZYTYK","1425092"]
["1425","SKARYSZEW","1425103"]
["1425","WIERZBICA","1425112"]
["1425","WOLANÓW","1425122"]
["1425","ZAKRZEW","1425132"]
["1426","DOMANICE","1426012"]
["1426","KORCZEW","1426022"]
["1426","KOTUŃ","1426032"]
["1426","MOKOBODY","1426042"]
["1426","MORDY","1426053"]
["1426","PAPROTNIA","1426062"]
["1426","PRZESMYKI","1426072"]
["1426","SIEDLCE","1426082"]
["1426","SKÓRZEC","1426092"]
["1426","SUCHOŻEBRY","1426102"]
["1426","WIŚNIEW","1426112"]
["1426","WODYNIE","1426122"]
["1426","ZBUCZYN","1426132"]
["1427","SIERPC-MIEJSKA","1427011"]
["1427","GOZDOWO","1427022"]
["1427","MOCHOWO","1427032"]
["1427","ROŚCISZEWO","1427042"]
["1427","SIERPC-WIEJSKA","1427052"]
["1427","SZCZUTOWO","1427062"]
["1427","ZAWIDZ","1427072"]
["1428","SOCHACZEW-MIEJSKA","1428011"]
["1428","BROCHÓW","1428022"]
["1428","IŁÓW","1428032"]
["1428","MŁODZIESZYN","1428042"]
["1428","NOWA SUCHA","1428052"]
["1428","RYBNO","1428062"]
["1428","SOCHACZEW-WIEJSKA","1428072"]
["1428","TERESIN","1428082"]
["1429","SOKOŁÓW PODLASKI-MIEJSKA","1429011"]
["1429","BIELANY","1429022"]
["1429","CERANÓW","1429032"]
["1429","JABŁONNA LACKA","1429042"]
["1429","KOSÓW LACKI","1429053"]
["1429","REPKI","1429062"]
["1429","SABNIE","1429072"]
["1429","SOKOŁÓW PODLASKI-WIEJSKA","1429082"]
["1429","STERDYŃ","1429092"]
["1430","CHLEWISKA","1430012"]
["1430","JASTRZĄB","1430022"]
["1430","MIRÓW","1430032"]
["1430","OROŃSKO","1430042"]
["1430","SZYDŁOWIEC","1430053"]
["1432","BŁONIE","1432013"]
["1432","IZABELIN","1432022"]
["1432","KAMPINOS","1432032"]
["1432","LESZNO","1432042"]
["1432","ŁOMIANKI","1432053"]
["1432","OŻARÓW MAZOWIECKI","1432063"]
["1432","STARE BABICE","1432072"]
["1433","WĘGRÓW","1433011"]
["1433","GRĘBKÓW","1433022"]
["1433","KORYTNICA","1433032"]
["1433","LIW","1433042"]
["1433","ŁOCHÓW","1433053"]
["1433","MIEDZNA","1433062"]
["1433","SADOWNE","1433072"]
["1433","STOCZEK","1433082"]
["1433","WIERZBNO","1433092"]
["1434","KOBYŁKA","1434011"]
["1434","MARKI","1434021"]
["1434","ZĄBKI","1434031"]
["1434","ZIELONKA","1434041"]
["1434","DĄBRÓWKA","1434052"]
["1434","JADÓW","1434062"]
["1434","KLEMBÓW","1434072"]
["1434","POŚWIĘTNE","1434082"]
["1434","RADZYMIN","1434093"]
["1434","STRACHÓWKA","1434102"]
["1434","TŁUSZCZ","1434113"]
["1434","WOŁOMIN","1434123"]
["1435","BRAŃSZCZYK","1435012"]
["1435","DŁUGOSIODŁO","1435022"]
["1435","RZĄŚNIK","1435032"]
["1435","SOMIANKA","1435042"]
["1435","WYSZKÓW","1435053"]
["1435","ZABRODZIE","1435062"]
["1436","KAZANÓW","1436012"]
["1436","POLICZNA","1436022"]
["1436","PRZYŁĘK","1436032"]
["1436","TCZÓW","1436042"]
["1436","ZWOLEŃ","1436053"]
["1437","BIEŻUŃ","1437013"]
["1437","KUCZBORK-OSADA","1437022"]
["1437","LUBOWIDZ","1437033"]
["1437","LUTOCIN","1437042"]
["1437","SIEMIĄTKOWO","1437052"]
["1437","ŻUROMIN","1437063"]
["1438","ŻYRARDÓW","1438011"]
["1438","MSZCZONÓW","1438023"]
["1438","PUSZCZA MARIAŃSKA","1438032"]
["1438","RADZIEJOWICE","1438042"]
["1438","WISKITKI","1438053"]
["1461","M.OSTROŁĘKA","1461011"]
["1462","M.PŁOCK","1462011"]
["1463","M.RADOM","1463011"]
["1464","M.SIEDLCE","1464011"]
["1465","M.ST.WARSZAWA","1465011"]
["1601","BRZEG","1601011"]
["1601","SKARBIMIERZ","1601022"]
["1601","GRODKÓW","1601033"]
["1601","LEWIN BRZESKI","1601043"]
["1601","LUBSZA","1601052"]
["1601","OLSZANKA","1601062"]
["1602","BABORÓW","1602013"]
["1602","BRANICE","1602022"]
["1602","GŁUBCZYCE","1602033"]
["1602","KIETRZ","1602043"]
["1603","KĘDZIERZYN-KOŹLE","1603011"]
["1603","BIERAWA","1603022"]
["1603","CISEK","1603032"]
["1603","PAWŁOWICZKI","1603042"]
["1603","POLSKA CEREKIEW","1603052"]
["1603","REŃSKA WIEŚ","1603062"]
["1604","BYCZYNA","1604013"]
["1604","KLUCZBORK","1604023"]
["1604","LASOWICE WIELKIE","1604032"]
["1604","WOŁCZYN","1604043"]
["1605","GOGOLIN","1605013"]
["1605","KRAPKOWICE","1605023"]
["1605","STRZELECZKI","1605032"]
["1605","WALCE","1605042"]
["1605","ZDZIESZOWICE","1605053"]
["1606","DOMASZOWICE","1606012"]
["1606","NAMYSŁÓW","1606023"]
["1606","POKÓJ","1606032"]
["1606","ŚWIERCZÓW","1606042"]
["1606","WILKÓW","1606052"]
["1607","GŁUCHOŁAZY","1607013"]
["1607","KAMIENNIK","1607022"]
["1607","KORFANTÓW","1607033"]
["1607","ŁAMBINOWICE","1607042"]
["1607","NYSA","1607053"]
["1607","OTMUCHÓW","1607063"]
["1607","PACZKÓW","1607073"]
["1607","PAKOSŁAWICE","1607082"]
["1607","SKOROSZYCE","1607092"]
["1608","DOBRODZIEŃ","1608013"]
["1608","GORZÓW ŚLĄSKI","1608023"]
["1608","OLESNO","1608033"]
["1608","PRASZKA","1608043"]
["1608","RADŁÓW","1608052"]
["1608","RUDNIKI","1608062"]
["1608","ZĘBOWICE","1608072"]
["1609","CHRZĄSTOWICE","1609012"]
["1609","DĄBROWA","1609022"]
["1609","DOBRZEŃ WIELKI","1609032"]
["1609","KOMPRACHCICE","1609042"]
["1609","ŁUBNIANY","1609052"]
["1609","MURÓW","1609062"]
["1609","NIEMODLIN","1609073"]
["1609","OZIMEK","1609083"]
["1609","POPIELÓW","1609092"]
["1609","PRÓSZKÓW","1609103"]
["1609","TARNÓW OPOLSKI","1609112"]
["1609","TUŁOWICE","1609123"]
["1609","TURAWA","1609132"]
["1610","BIAŁA","1610013"]
["1610","GŁOGÓWEK","1610023"]
["1610","LUBRZA","1610032"]
["1610","PRUDNIK","1610043"]
["1611","IZBICKO","1611012"]
["1611","JEMIELNICA","1611022"]
["1611","KOLONOWSKIE","1611033"]
["1611","LEŚNICA","1611043"]
["1611","STRZELCE OPOLSKIE","1611053"]
["1611","UJAZD","1611063"]
["1611","ZAWADZKIE","1611073"]
["1661","M.OPOLE","1661011"]
["1801","CZARNA","1801032"]
["1801","LUTOWISKA","1801052"]
["1801","USTRZYKI DOLNE","1801083"]
["1802","BRZOZÓW","1802013"]
["1802","DOMARADZ","1802022"]
["1802","DYDNIA","1802032"]
["1802","HACZÓW","1802042"]
["1802","JASIENICA ROSIELNA","1802052"]
["1802","NOZDRZEC","1802062"]
["1803","DĘBICA-MIEJSKA","1803011"]
["1803","BRZOSTEK","1803023"]
["1803","CZARNA","1803032"]
["1803","DĘBICA-WIEJSKA","1803042"]
["1803","JODŁOWA","1803052"]
["1803","PILZNO","1803063"]
["1803","ŻYRAKÓW","1803072"]
["1804","JAROSŁAW-MIEJSKA","1804011"]
["1804","RADYMNO-MIEJSKA","1804021"]
["1804","CHŁOPICE","1804032"]
["1804","JAROSŁAW-WIEJSKA","1804042"]
["1804","LASZKI","1804052"]
["1804","PAWŁOSIÓW","1804062"]
["1804","PRUCHNIK","1804073"]
["1804","RADYMNO-WIEJSKA","1804082"]
["1804","ROKIETNICA","1804092"]
["1804","ROŹWIENICA","1804102"]
["1804","WIĄZOWNICA","1804112"]
["1805","JASŁO-MIEJSKA","1805011"]
["1805","BRZYSKA","1805022"]
["1805","DĘBOWIEC","1805032"]
["1805","JASŁO-WIEJSKA","1805042"]
["1805","KOŁACZYCE","1805053"]
["1805","KREMPNA","1805062"]
["1805","NOWY ŻMIGRÓD","1805072"]
["1805","OSIEK JASIELSKI","1805082"]
["1805","SKOŁYSZYN","1805092"]
["1805","TARNOWIEC","1805112"]
["1806","CMOLAS","1806012"]
["1806","KOLBUSZOWA","1806023"]
["1806","MAJDAN KRÓLEWSKI","1806032"]
["1806","NIWISKA","1806042"]
["1806","RANIŻÓW","1806052"]
["1806","DZIKOWIEC","1806062"]
["1807","CHORKÓWKA","1807012"]
["1807","DUKLA","1807023"]
["1807","IWONICZ-ZDRÓJ","1807033"]
["1807","JEDLICZE","1807043"]
["1807","KORCZYNA","1807052"]
["1807","KROŚCIENKO WYŻNE","1807062"]
["1807","MIEJSCE PIASTOWE","1807072"]
["1807","RYMANÓW","1807083"]
["1807","WOJASZÓWKA","1807092"]
["1807","JAŚLISKA","1807102"]
["1808","LEŻAJSK-MIEJSKA","1808011"]
["1808","GRODZISKO DOLNE","1808022"]
["1808","KURYŁÓWKA","1808032"]
["1808","LEŻAJSK-WIEJSKA","1808042"]
["1808","NOWA SARZYNA","1808053"]
["1809","LUBACZÓW-MIEJSKA","1809011"]
["1809","CIESZANÓW","1809023"]
["1809","HORYNIEC-ZDRÓJ","1809032"]
["1809","LUBACZÓW-WIEJSKA","1809042"]
["1809","NAROL","1809053"]
["1809","OLESZYCE","1809063"]
["1809","STARY DZIKÓW","1809072"]
["1809","WIELKIE OCZY","1809082"]
["1810","ŁAŃCUT-MIEJSKA","1810011"]
["1810","BIAŁOBRZEGI","1810022"]
["1810","CZARNA","1810032"]
["1810","ŁAŃCUT-WIEJSKA","1810042"]
["1810","MARKOWA","1810052"]
["1810","RAKSZAWA","1810062"]
["1810","ŻOŁYNIA","1810072"]
["1811","MIELEC-MIEJSKA","1811011"]
["1811","BOROWA","1811022"]
["1811","CZERMIN","1811032"]
["1811","GAWŁUSZOWICE","1811042"]
["1811","MIELEC-WIEJSKA","1811052"]
["1811","PADEW NARODOWA","1811062"]
["1811","PRZECŁAW","1811073"]
["1811","RADOMYŚL WIELKI","1811083"]
["1811","TUSZÓW NARODOWY","1811092"]
["1811","WADOWICE GÓRNE","1811102"]
["1812","HARASIUKI","1812012"]
["1812","JAROCIN","1812022"]
["1812","JEŻOWE","1812032"]
["1812","KRZESZÓW","1812042"]
["1812","NISKO","1812053"]
["1812","RUDNIK NAD SANEM","1812063"]
["1812","ULANÓW","1812073"]
["1813","BIRCZA","1813012"]
["1813","DUBIECKO","1813023"]
["1813","FREDROPOL","1813032"]
["1813","KRASICZYN","1813042"]
["1813","KRZYWCZA","1813052"]
["1813","MEDYKA","1813062"]
["1813","ORŁY","1813072"]
["1813","PRZEMYŚL","1813082"]
["1813","STUBNO","1813092"]
["1813","ŻURAWICA","1813102"]
["1814","PRZEWORSK-MIEJSKA","1814011"]
["1814","ADAMÓWKA","1814022"]
["1814","GAĆ","1814032"]
["1814","JAWORNIK POLSKI","1814042"]
["1814","KAŃCZUGA","1814053"]
["1814","PRZEWORSK-WIEJSKA","1814062"]
["1814","SIENIAWA","1814073"]
["1814","TRYŃCZA","1814082"]
["1814","ZARZECZE","1814092"]
["1815","IWIERZYCE","1815012"]
["1815","OSTRÓW","1815022"]
["1815","ROPCZYCE","1815033"]
["1815","SĘDZISZÓW MAŁOPOLSKI","1815043"]
["1815","WIELOPOLE SKRZYŃSKIE","1815052"]
["1816","DYNÓW-MIEJSKA","1816011"]
["1816","BŁAŻOWA","1816023"]
["1816","BOGUCHWAŁA","1816033"]
["1816","CHMIELNIK","1816042"]
["1816","DYNÓW-WIEJSKA","1816052"]
["1816","GŁOGÓW MAŁOPOLSKI","1816063"]
["1816","HYŻNE","1816072"]
["1816","KAMIEŃ","1816082"]
["1816","KRASNE","1816092"]
["1816","LUBENIA","1816102"]
["1816","SOKOŁÓW MAŁOPOLSKI","1816113"]
["1816","ŚWILCZA","1816122"]
["1816","TRZEBOWNISKO","1816132"]
["1816","TYCZYN","1816143"]
["1817","SANOK-MIEJSKA","1817011"]
["1817","BESKO","1817022"]
["1817","BUKOWSKO","1817032"]
["1817","KOMAŃCZA","1817042"]
["1817","SANOK-WIEJSKA","1817052"]
["1817","TYRAWA WOŁOSKA","1817062"]
["1817","ZAGÓRZ","1817073"]
["1817","ZARSZYN","1817082"]
["1818","STALOWA WOLA","1818011"]
["1818","BOJANÓW","1818022"]
["1818","PYSZNICA","1818032"]
["1818","RADOMYŚL NAD SANEM","1818042"]
["1818","ZAKLIKÓW","1818053"]
["1818","ZALESZANY","1818062"]
["1819","CZUDEC","1819012"]
["1819","FRYSZTAK","1819022"]
["1819","NIEBYLEC","1819032"]
["1819","STRZYŻÓW","1819043"]
["1819","WIŚNIOWA","1819052"]
["1820","BARANÓW SANDOMIERSKI","1820013"]
["1820","GORZYCE","1820022"]
["1820","GRĘBÓW","1820032"]
["1820","NOWA DĘBA","1820043"]
["1821","BALIGRÓD","1821012"]
["1821","CISNA","1821022"]
["1821","LESKO","1821033"]
["1821","OLSZANICA","1821042"]
["1821","SOLINA","1821052"]
["1861","M.KROSNO","1861011"]
["1862","M.PRZEMYŚL","1862011"]
["1863","M.RZESZÓW","1863011"]
["1864","M.TARNOBRZEG","1864011"]
["2001","AUGUSTÓW-MIEJSKA","2001011"]
["2001","AUGUSTÓW-WIEJSKA","2001022"]
["2001","BARGŁÓW KOŚCIELNY","2001032"]
["2001","LIPSK","2001043"]
["2001","NOWINKA","2001052"]
["2001","PŁASKA","2001062"]
["2001","SZTABIN","2001072"]
["2002","CHOROSZCZ","2002013"]
["2002","CZARNA BIAŁOSTOCKA","2002023"]
["2002","DOBRZYNIEWO DUŻE","2002032"]
["2002","GRÓDEK","2002042"]
["2002","JUCHNOWIEC KOŚCIELNY","2002052"]
["2002","ŁAPY","2002063"]
["2002","MICHAŁOWO","2002073"]
["2002","POŚWIĘTNE","2002082"]
["2002","SUPRAŚL","2002093"]
["2002","SURAŻ","2002103"]
["2002","TUROŚŃ KOŚCIELNA","2002112"]
["2002","TYKOCIN","2002123"]
["2002","WASILKÓW","2002133"]
["2002","ZABŁUDÓW","2002143"]
["2002","ZAWADY","2002152"]
["2003","BIELSK PODLASKI-MIEJSKA","2003011"]
["2003","BRAŃSK-MIEJSKA","2003021"]
["2003","BIELSK PODLASKI-WIEJSKA","2003032"]
["2003","BOĆKI","2003042"]
["2003","BRAŃSK-WIEJSKA","2003052"]
["2003","ORLA","2003062"]
["2003","RUDKA","2003072"]
["2003","WYSZKI","2003082"]
["2004","GRAJEWO-MIEJSKA","2004011"]
["2004","GRAJEWO-WIEJSKA","2004022"]
["2004","RADZIŁÓW","2004032"]
["2004","RAJGRÓD","2004043"]
["2004","SZCZUCZYN","2004053"]
["2004","WĄSOSZ","2004062"]
["2005","HAJNÓWKA-MIEJSKA","2005011"]
["2005","BIAŁOWIEŻA","2005022"]
["2005","CZEREMCHA","2005032"]
["2005","CZYŻE","2005042"]
["2005","DUBICZE CERKIEWNE","2005052"]
["2005","HAJNÓWKA-WIEJSKA","2005062"]
["2005","KLESZCZELE","2005073"]
["2005","NAREW","2005082"]
["2005","NAREWKA","2005092"]
["2006","KOLNO","2006011"]
["2006","GRABOWO","2006022"]
["2006","KOLNO-MIEJSKA","2006032"]
["2006","MAŁY PŁOCK","2006042"]
["2006","STAWISKI","2006053"]
["2006","TUROŚL","2006062"]
["2007","JEDWABNE","2007013"]
["2007","ŁOMŻA","2007022"]
["2007","MIASTKOWO","2007032"]
["2007","NOWOGRÓD","2007043"]
["2007","PIĄTNICA","2007052"]
["2007","PRZYTUŁY","2007062"]
["2007","ŚNIADOWO","2007072"]
["2007","WIZNA","2007082"]
["2007","ZBÓJNA","2007092"]
["2008","GONIĄDZ","2008013"]
["2008","JASIONÓWKA","2008022"]
["2008","JAŚWIŁY","2008032"]
["2008","KNYSZYN","2008043"]
["2008","KRYPNO","2008052"]
["2008","MOŃKI","2008063"]
["2008","TRZCIANNE","2008072"]
["2009","SEJNY-MIEJSKA","2009011"]
["2009","GIBY","2009022"]
["2009","KRASNOPOL","2009032"]
["2009","PUŃSK","2009042"]
["2009","SEJNY-WIEJSKA","2009052"]
["2010","SIEMIATYCZE-MIEJSKA","2010011"]
["2010","DROHICZYN","2010023"]
["2010","DZIADKOWICE","2010032"]
["2010","GRODZISK","2010042"]
["2010","MIELNIK","2010052"]
["2010","MILEJCZYCE","2010062"]
["2010","NURZEC-STACJA","2010072"]
["2010","PERLEJEWO","2010082"]
["2010","SIEMIATYCZE-WIEJSKA","2010092"]
["2011","DĄBROWA BIAŁOSTOCKA","2011013"]
["2011","JANÓW","2011022"]
["2011","KORYCIN","2011032"]
["2011","KRYNKI","2011043"]
["2011","KUŹNICA","2011052"]
["2011","NOWY DWÓR","2011062"]
["2011","SIDRA","2011072"]
["2011","SOKÓŁKA","2011083"]
["2011","SUCHOWOLA","2011093"]
["2011","SZUDZIAŁOWO","2011102"]
["2012","BAKAŁARZEWO","2012012"]
["2012","FILIPÓW","2012022"]
["2012","JELENIEWO","2012032"]
["2012","PRZEROŚL","2012042"]
["2012","RACZKI","2012052"]
["2012","RUTKA-TARTAK","2012062"]
["2012","SUWAŁKI","2012072"]
["2012","SZYPLISZKI","2012082"]
["2012","WIŻAJNY","2012092"]
["2013","WYSOKIE MAZOWIECKIE-MIEJSKA","2013011"]
["2013","CIECHANOWIEC","2013023"]
["2013","CZYŻEW","2013033"]
["2013","KLUKOWO","2013042"]
["2013","KOBYLIN-BORZYMY","2013052"]
["2013","KULESZE KOŚCIELNE","2013062"]
["2013","NOWE PIEKUTY","2013072"]
["2013","SOKOŁY","2013082"]
["2013","SZEPIETOWO","2013093"]
["2013","WYSOKIE MAZOWIECKIE-WIEJSKA","2013102"]
["2014","ZAMBRÓW-MIEJSKA","2014011"]
["2014","KOŁAKI KOŚCIELNE","2014022"]
["2014","RUTKI","2014032"]
["2014","SZUMOWO","2014042"]
["2014","ZAMBRÓW-WIEJSKA","2014052"]
["2061","M.BIAŁYSTOK","2061011"]
["2062","M.ŁOMŻA","2062011"]
["2063","M.SUWAŁKI","2063011"]
["2201","BORZYTUCHOM","2201012"]
["2201","BYTÓW","2201023"]
["2201","CZARNA DĄBRÓWKA","2201032"]
["2201","KOŁCZYGŁOWY","2201042"]
["2201","LIPNICA","2201052"]
["2201","MIASTKO","2201063"]
["2201","PARCHOWO","2201072"]
["2201","STUDZIENICE","2201082"]
["2201","TRZEBIELINO","2201092"]
["2201","TUCHOMIE","2201102"]
["2202","CHOJNICE-MIEJSKA","2202011"]
["2202","BRUSY","2202023"]
["2202","CHOJNICE-WIEJSKA","2202032"]
["2202","CZERSK","2202043"]
["2202","KONARZYNY","2202052"]
["2203","CZŁUCHÓW-MIEJSKA","2203011"]
["2203","CZARNE","2203023"]
["2203","CZŁUCHÓW-WIEJSKA","2203032"]
["2203","DEBRZNO","2203043"]
["2203","KOCZAŁA","2203052"]
["2203","PRZECHLEWO","2203062"]
["2203","RZECZENICA","2203072"]
["2204","PRUSZCZ GDAŃSKI-MIEJSKA","2204011"]
["2204","CEDRY WIELKIE","2204022"]
["2204","KOLBUDY","2204032"]
["2204","PRUSZCZ GDAŃSKI-WIEJSKA","2204042"]
["2204","PRZYWIDZ","2204052"]
["2204","PSZCZÓŁKI","2204062"]
["2204","SUCHY DĄB","2204072"]
["2204","TRĄBKI WIELKIE","2204082"]
["2205","CHMIELNO","2205012"]
["2205","KARTUZY","2205023"]
["2205","PRZODKOWO","2205032"]
["2205","SIERAKOWICE","2205042"]
["2205","SOMONINO","2205052"]
["2205","STĘŻYCA","2205062"]
["2205","SULĘCZYNO","2205072"]
["2205","ŻUKOWO","2205083"]
["2206","KOŚCIERZYNA-MIEJSKA","2206011"]
["2206","DZIEMIANY","2206022"]
["2206","KARSIN","2206032"]
["2206","KOŚCIERZYNA-WIEJSKA","2206042"]
["2206","LINIEWO","2206052"]
["2206","LIPUSZ","2206062"]
["2206","NOWA KARCZMA","2206072"]
["2206","STARA KISZEWA","2206082"]
["2207","KWIDZYN-MIEJSKA","2207011"]
["2207","GARDEJA","2207022"]
["2207","KWIDZYN-WIEJSKA","2207032"]
["2207","PRABUTY","2207043"]
["2207","RYJEWO","2207052"]
["2207","SADLINKI","2207062"]
["2208","LĘBORK","2208011"]
["2208","ŁEBA","2208021"]
["2208","CEWICE","2208032"]
["2208","NOWA WIEŚ LĘBORSKA","2208042"]
["2208","WICKO","2208052"]
["2209","MALBORK-MIEJSKA","2209011"]
["2209","LICHNOWY","2209032"]
["2209","MALBORK-WIEJSKA","2209042"]
["2209","MIŁORADZ","2209062"]
["2209","NOWY STAW","2209073"]
["2209","STARE POLE","2209082"]
["2210","KRYNICA MORSKA","2210011"]
["2210","NOWY DWÓR GDAŃSKI","2210023"]
["2210","OSTASZEWO","2210032"]
["2210","STEGNA","2210042"]
["2210","SZTUTOWO","2210052"]
["2211","HEL","2211011"]
["2211","JASTARNIA","2211023"]
["2211","PUCK-MIEJSKA","2211031"]
["2211","WŁADYSŁAWOWO","2211043"]
["2211","KOSAKOWO","2211052"]
["2211","KROKOWA","2211062"]
["2211","PUCK-WIEJSKA","2211072"]
["2212","USTKA-MIEJSKA","2212011"]
["2212","DAMNICA","2212022"]
["2212","DĘBNICA KASZUBSKA","2212032"]
["2212","GŁÓWCZYCE","2212042"]
["2212","KĘPICE","2212053"]
["2212","KOBYLNICA","2212062"]
["2212","POTĘGOWO","2212072"]
["2212","SŁUPSK","2212082"]
["2212","SMOŁDZINO","2212092"]
["2212","USTKA-WIEJSKA","2212102"]
["2213","CZARNA WODA","2213013"]
["2213","SKÓRCZ-MIEJSKA","2213021"]
["2213","STAROGARD GDAŃSKI-MIEJSKA","2213031"]
["2213","BOBOWO","2213042"]
["2213","KALISKA","2213052"]
["2213","LUBICHOWO","2213062"]
["2213","OSIECZNA","2213072"]
["2213","OSIEK","2213082"]
["2213","SKARSZEWY","2213093"]
["2213","SKÓRCZ-WIEJSKA","2213102"]
["2213","SMĘTOWO GRANICZNE","2213112"]
["2213","STAROGARD GDAŃSKI-WIEJSKA","2213122"]
["2213","ZBLEWO","2213132"]
["2214","TCZEW-MIEJSKA","2214011"]
["2214","GNIEW","2214023"]
["2214","MORZESZCZYN","2214032"]
["2214","PELPLIN","2214043"]
["2214","SUBKOWY","2214052"]
["2214","TCZEW-WIEJSKA","2214062"]
["2215","REDA","2215011"]
["2215","RUMIA","2215021"]
["2215","WEJHEROWO-MIEJSKA","2215031"]
["2215","CHOCZEWO","2215042"]
["2215","GNIEWINO","2215052"]
["2215","LINIA","2215062"]
["2215","LUZINO","2215072"]
["2215","ŁĘCZYCE","2215082"]
["2215","SZEMUD","2215092"]
["2215","WEJHEROWO-WIEJSKA","2215102"]
["2216","DZIERZGOŃ","2216013"]
["2216","MIKOŁAJKI POMORSKIE","2216022"]
["2216","STARY DZIERZGOŃ","2216032"]
["2216","STARY TARG","2216042"]
["2216","SZTUM","2216053"]
["2261","M.GDAŃSK","2261011"]
["2262","M.GDYNIA","2262011"]
["2263","M.SŁUPSK","2263011"]
["2264","M.SOPOT","2264011"]
["2401","BĘDZIN","2401011"]
["2401","CZELADŹ","2401021"]
["2401","WOJKOWICE","2401031"]
["2401","BOBROWNIKI","2401042"]
["2401","MIERZĘCICE","2401052"]
["2401","PSARY","2401062"]
["2401","SIEWIERZ","2401073"]
["2401","SŁAWKÓW","2401081"]
["2402","SZCZYRK","2402011"]
["2402","BESTWINA","2402022"]
["2402","BUCZKOWICE","2402032"]
["2402","CZECHOWICE-DZIEDZICE","2402043"]
["2402","JASIENICA","2402052"]
["2402","JAWORZE","2402062"]
["2402","KOZY","2402072"]
["2402","PORĄBKA","2402082"]
["2402","WILAMOWICE","2402093"]
["2402","WILKOWICE","2402102"]
["2403","CIESZYN","2403011"]
["2403","USTROŃ","2403021"]
["2403","WISŁA","2403031"]
["2403","BRENNA","2403042"]
["2403","CHYBIE","2403052"]
["2403","DĘBOWIEC","2403062"]
["2403","GOLESZÓW","2403072"]
["2403","HAŻLACH","2403082"]
["2403","ISTEBNA","2403092"]
["2403","SKOCZÓW","2403103"]
["2403","STRUMIEŃ","2403113"]
["2403","ZEBRZYDOWICE","2403122"]
["2404","BLACHOWNIA","2404013"]
["2404","DĄBROWA ZIELONA","2404022"]
["2404","JANÓW","2404032"]
["2404","KAMIENICA POLSKA","2404042"]
["2404","KŁOMNICE","2404052"]
["2404","KONIECPOL","2404063"]
["2404","KONOPISKA","2404072"]
["2404","KRUSZYNA","2404082"]
["2404","LELÓW","2404092"]
["2404","MSTÓW","2404102"]
["2404","MYKANÓW","2404112"]
["2404","OLSZTYN","2404122"]
["2404","POCZESNA","2404132"]
["2404","PRZYRÓW","2404142"]
["2404","RĘDZINY","2404152"]
["2404","STARCZA","2404162"]
["2405","KNURÓW","2405011"]
["2405","PYSKOWICE","2405021"]
["2405","GIERAŁTOWICE","2405032"]
["2405","PILCHOWICE","2405042"]
["2405","RUDZINIEC","2405052"]
["2405","SOŚNICOWICE","2405063"]
["2405","TOSZEK","2405073"]
["2405","WIELOWIEŚ","2405082"]
["2406","KŁOBUCK","2406013"]
["2406","KRZEPICE","2406023"]
["2406","LIPIE","2406032"]
["2406","MIEDŹNO","2406042"]
["2406","OPATÓW","2406052"]
["2406","PANKI","2406062"]
["2406","POPÓW","2406072"]
["2406","PRZYSTAJŃ","2406082"]
["2406","WRĘCZYCA WIELKA","2406092"]
["2407","LUBLINIEC","2407011"]
["2407","BORONÓW","2407022"]
["2407","CIASNA","2407032"]
["2407","HERBY","2407042"]
["2407","KOCHANOWICE","2407052"]
["2407","KOSZĘCIN","2407062"]
["2407","PAWONKÓW","2407072"]
["2407","WOŹNIKI","2407083"]
["2408","ŁAZISKA GÓRNE","2408011"]
["2408","MIKOŁÓW","2408021"]
["2408","ORZESZE","2408031"]
["2408","ORNONTOWICE","2408042"]
["2408","WYRY","2408052"]
["2409","MYSZKÓW","2409011"]
["2409","KOZIEGŁOWY","2409023"]
["2409","NIEGOWA","2409032"]
["2409","PORAJ","2409042"]
["2409","ŻARKI","2409053"]
["2410","GOCZAŁKOWICE-ZDRÓJ","2410012"]
["2410","KOBIÓR","2410022"]
["2410","MIEDŹNA","2410032"]
["2410","PAWŁOWICE","2410042"]
["2410","PSZCZYNA","2410053"]
["2410","SUSZEC","2410062"]
["2411","RACIBÓRZ","2411011"]
["2411","KORNOWAC","2411022"]
["2411","KRZANOWICE","2411033"]
["2411","KRZYŻANOWICE","2411042"]
["2411","KUŹNIA RACIBORSKA","2411053"]
["2411","NĘDZA","2411062"]
["2411","PIETROWICE WIELKIE","2411072"]
["2411","RUDNIK","2411082"]
["2412","CZERWIONKA-LESZCZYNY","2412013"]
["2412","GASZOWICE","2412022"]
["2412","JEJKOWICE","2412032"]
["2412","LYSKI","2412042"]
["2412","ŚWIERKLANY","2412052"]
["2413","KALETY","2413011"]
["2413","MIASTECZKO ŚLĄSKIE","2413021"]
["2413","RADZIONKÓW","2413031"]
["2413","TARNOWSKIE GÓRY","2413041"]
["2413","KRUPSKI MŁYN","2413052"]
["2413","OŻAROWICE","2413062"]
["2413","ŚWIERKLANIEC","2413072"]
["2413","TWORÓG","2413082"]
["2413","ZBROSŁAWICE","2413092"]
["2414","BIERUŃ","2414011"]
["2414","IMIELIN","2414021"]
["2414","LĘDZINY","2414031"]
["2414","BOJSZOWY","2414042"]
["2414","CHEŁM ŚLĄSKI","2414052"]
["2415","PSZÓW","2415011"]
["2415","RADLIN","2415021"]
["2415","RYDUŁTOWY","2415031"]
["2415","WODZISŁAW ŚLĄSKI","2415041"]
["2415","GODÓW","2415052"]
["2415","GORZYCE","2415062"]
["2415","LUBOMIA","2415072"]
["2415","MARKLOWICE","2415082"]
["2415","MSZANA","2415092"]
["2416","PORĘBA","2416011"]
["2416","ZAWIERCIE","2416021"]
["2416","IRZĄDZE","2416032"]
["2416","KROCZYCE","2416042"]
["2416","ŁAZY","2416053"]
["2416","OGRODZIENIEC","2416063"]
["2416","PILICA","2416073"]
["2416","SZCZEKOCINY","2416083"]
["2416","WŁODOWICE","2416092"]
["2416","ŻARNOWIEC","2416102"]
["2417","ŻYWIEC","2417011"]
["2417","CZERNICHÓW","2417022"]
["2417","GILOWICE","2417032"]
["2417","JELEŚNIA","2417042"]
["2417","KOSZARAWA","2417052"]
["2417","LIPOWA","2417062"]
["2417","ŁĘKAWICA","2417072"]
["2417","ŁODYGOWICE","2417082"]
["2417","MILÓWKA","2417092"]
["2417","RADZIECHOWY-WIEPRZ","2417102"]
["2417","RAJCZA","2417112"]
["2417","ŚLEMIEŃ","2417122"]
["2417","ŚWINNA","2417132"]
["2417","UJSOŁY","2417142"]
["2417","WĘGIERSKA GÓRKA","2417152"]
["2461","M.BIELSKO-BIAŁA","2461011"]
["2462","M.BYTOM","2462011"]
["2463","M.CHORZÓW","2463011"]
["2464","M.CZĘSTOCHOWA","2464011"]
["2465","M.DĄBROWA GÓRNICZA","2465011"]
["2466","M.GLIWICE","2466011"]
["2467","M.JASTRZĘBIE-ZDRÓJ","2467011"]
["2468","M.JAWORZNO","2468011"]
["2469","M.KATOWICE","2469011"]
["2470","M.MYSŁOWICE","2470011"]
["2471","M.PIEKARY ŚLĄSKIE","2471011"]
["2472","M.RUDA ŚLĄSKA","2472011"]
["2473","M.RYBNIK","2473011"]
["2474","M.SIEMIANOWICE ŚLĄSKIE","2474011"]
["2475","M.SOSNOWIEC","2475011"]
["2476","M.ŚWIĘTOCHŁOWICE","2476011"]
["2477","M.TYCHY","2477011"]
["2478","M.ZABRZE","2478011"]
["2479","M.ŻORY","2479011"]
["2601","BUSKO-ZDRÓJ","2601013"]
["2601","GNOJNO","2601022"]
["2601","NOWY KORCZYN","2601033"]
["2601","PACANÓW","2601043"]
["2601","SOLEC-ZDRÓJ","2601052"]
["2601","STOPNICA","2601063"]
["2601","TUCZĘPY","2601072"]
["2601","WIŚLICA","2601083"]
["2602","IMIELNO","2602012"]
["2602","JĘDRZEJÓW","2602023"]
["2602","MAŁOGOSZCZ","2602033"]
["2602","NAGŁOWICE","2602042"]
["2602","OKSA","2602052"]
["2602","SĘDZISZÓW","2602063"]
["2602","SŁUPIA/JĘDRZEJOWSKA/","2602072"]
["2602","SOBKÓW","2602082"]
["2602","WODZISŁAW","2602093"]
["2603","BEJSCE","2603012"]
["2603","CZARNOCIN","2603022"]
["2603","KAZIMIERZA WIELKA","2603033"]
["2603","OPATOWIEC","2603043"]
["2603","SKALBMIERZ","2603053"]
["2604","BIELINY","2604012"]
["2604","BODZENTYN","2604023"]
["2604","CHĘCINY","2604033"]
["2604","CHMIELNIK","2604043"]
["2604","DALESZYCE","2604053"]
["2604","GÓRNO","2604062"]
["2604","ŁAGÓW","2604073"]
["2604","ŁOPUSZNO","2604082"]
["2604","MASŁÓW","2604092"]
["2604","MIEDZIANA GÓRA","2604102"]
["2604","MNIÓW","2604112"]
["2604","MORAWICA","2604123"]
["2604","NOWA SŁUPIA","2604133"]
["2604","PIEKOSZÓW","2604142"]
["2604","PIERZCHNICA","2604153"]
["2604","RAKÓW","2604162"]
["2604","SITKÓWKA-NOWINY","2604172"]
["2604","STRAWCZYN","2604182"]
["2604","ZAGNAŃSK","2604192"]
["2605","FAŁKÓW","2605012"]
["2605","GOWARCZÓW","2605022"]
["2605","KOŃSKIE","2605033"]
["2605","RADOSZYCE","2605043"]
["2605","RUDA MALENIECKA","2605052"]
["2605","SŁUPIA (KONECKA)","2605062"]
["2605","SMYKÓW","2605072"]
["2605","STĄPORKÓW","2605083"]
["2606","BAĆKOWICE","2606012"]
["2606","IWANISKA","2606022"]
["2606","LIPNIK","2606032"]
["2606","OPATÓW","2606043"]
["2606","OŻARÓW","2606053"]
["2606","SADOWIE","2606062"]
["2606","TARŁÓW","2606072"]
["2606","WOJCIECHOWICE","2606082"]
["2607","OSTROWIEC ŚWIĘTOKRZYSKI","2607011"]
["2607","BAŁTÓW","2607022"]
["2607","BODZECHÓW","2607032"]
["2607","ĆMIELÓW","2607043"]
["2607","KUNÓW","2607053"]
["2607","WAŚNIÓW","2607062"]
["2608","DZIAŁOSZYCE","2608013"]
["2608","KIJE","2608022"]
["2608","MICHAŁÓW","2608032"]
["2608","PIŃCZÓW","2608043"]
["2608","ZŁOTA","2608052"]
["2609","SANDOMIERZ","2609011"]
["2609","DWIKOZY","2609022"]
["2609","KLIMONTÓW","2609033"]
["2609","KOPRZYWNICA","2609043"]
["2609","ŁONIÓW","2609052"]
["2609","OBRAZÓW","2609062"]
["2609","SAMBORZEC","2609072"]
["2609","WILCZYCE","2609082"]
["2609","ZAWICHOST","2609093"]
["2610","SKARŻYSKO-KAMIENNA","2610011"]
["2610","BLIŻYN","2610022"]
["2610","ŁĄCZNA","2610032"]
["2610","SKARŻYSKO KOŚCIELNE","2610042"]
["2610","SUCHEDNIÓW","2610053"]
["2611","STARACHOWICE","2611011"]
["2611","BRODY","2611022"]
["2611","MIRZEC","2611032"]
["2611","PAWŁÓW","2611042"]
["2611","WĄCHOCK","2611053"]
["2612","BOGORIA","2612012"]
["2612","ŁUBNICE","2612022"]
["2612","OLEŚNICA","2612033"]
["2612","OSIEK","2612043"]
["2612","POŁANIEC","2612053"]
["2612","RYTWIANY","2612062"]
["2612","STASZÓW","2612073"]
["2612","SZYDŁÓW","2612083"]
["2613","KLUCZEWSKO","2613012"]
["2613","KRASOCIN","2613022"]
["2613","MOSKORZEW","2613032"]
["2613","RADKÓW","2613042"]
["2613","SECEMIN","2613052"]
["2613","WŁOSZCZOWA","2613063"]
["2661","M.KIELCE","2661011"]
["2801","BARTOSZYCE-MIEJSKA","2801011"]
["2801","GÓROWO IŁAWECKIE-MIEJSKA","2801021"]
["2801","BARTOSZYCE-WIEJSKA","2801032"]
["2801","BISZTYNEK","2801043"]
["2801","GÓROWO IŁAWECKIE-WIEJSKA","2801052"]
["2801","SĘPOPOL","2801063"]
["2802","BRANIEWO-MIEJSKA","2802011"]
["2802","BRANIEWO-WIEJSKA","2802022"]
["2802","FROMBORK","2802033"]
["2802","LELKOWO","2802042"]
["2802","PIENIĘŻNO","2802053"]
["2802","PŁOSKINIA","2802062"]
["2802","WILCZĘTA","2802072"]
["2803","DZIAŁDOWO-MIEJSKA","2803011"]
["2803","DZIAŁDOWO-WIEJSKA","2803022"]
["2803","IŁOWO-OSADA","2803032"]
["2803","LIDZBARK","2803043"]
["2803","PŁOŚNICA","2803052"]
["2803","RYBNO","2803062"]
["2804","ELBLĄG","2804012"]
["2804","GODKOWO","2804022"]
["2804","GRONOWO ELBLĄSKIE","2804032"]
["2804","MARKUSY","2804042"]
["2804","MILEJEWO","2804052"]
["2804","MŁYNARY","2804063"]
["2804","PASŁĘK","2804073"]
["2804","RYCHLIKI","2804082"]
["2804","TOLKMICKO","2804093"]
["2805","EŁK-MIEJSKA","2805011"]
["2805","EŁK-WIEJSKA","2805022"]
["2805","KALINOWO","2805032"]
["2805","PROSTKI","2805042"]
["2805","STARE JUCHY","2805052"]
["2806","GIŻYCKO-MIEJSKA","2806011"]
["2806","GIŻYCKO-WIEJSKA","2806042"]
["2806","KRUKLANKI","2806052"]
["2806","MIŁKI","2806062"]
["2806","RYN","2806083"]
["2806","WYDMINY","2806102"]
["2807","IŁAWA-MIEJSKA","2807011"]
["2807","LUBAWA-MIEJSKA","2807021"]
["2807","IŁAWA-WIEJSKA","2807032"]
["2807","KISIELICE","2807043"]
["2807","LUBAWA-WIEJSKA","2807052"]
["2807","SUSZ","2807063"]
["2807","ZALEWO","2807073"]
["2808","KĘTRZYN-MIEJSKA","2808011"]
["2808","BARCIANY","2808022"]
["2808","KĘTRZYN-WIEJSKA","2808032"]
["2808","KORSZE","2808043"]
["2808","RESZEL","2808053"]
["2808","SROKOWO","2808062"]
["2809","LIDZBARK WARMIŃSKI-MIEJSKA","2809011"]
["2809","KIWITY","2809022"]
["2809","LIDZBARK WARMIŃSKI-WIEJSKA","2809032"]
["2809","LUBOMINO","2809042"]
["2809","ORNETA","2809053"]
["2810","MRĄGOWO-MIEJSKA","2810011"]
["2810","MIKOŁAJKI","2810023"]
["2810","MRĄGOWO-WIEJSKA","2810032"]
["2810","PIECKI","2810042"]
["2810","SORKWITY","2810052"]
["2811","JANOWIEC KOŚCIELNY","2811012"]
["2811","JANOWO","2811022"]
["2811","KOZŁOWO","2811032"]
["2811","NIDZICA","2811043"]
["2812","NOWE MIASTO LUBAWSKIE-MIEJSKA","2812011"]
["2812","BISKUPIEC","2812022"]
["2812","GRODZICZNO","2812032"]
["2812","KURZĘTNIK","2812042"]
["2812","NOWE MIASTO LUBAWSKIE-WIEJSKA","2812052"]
["2813","KOWALE OLECKIE","2813032"]
["2813","OLECKO","2813043"]
["2813","ŚWIĘTAJNO","2813052"]
["2813","WIELICZKI","2813062"]
["2814","BARCZEWO","2814013"]
["2814","BISKUPIEC","2814023"]
["2814","DOBRE MIASTO","2814033"]
["2814","DYWITY","2814042"]
["2814","GIETRZWAŁD","2814052"]
["2814","JEZIORANY","2814063"]
["2814","JONKOWO","2814072"]
["2814","KOLNO-WIEJSKA","2814082"]
["2814","OLSZTYNEK","2814093"]
["2814","PURDA","2814102"]
["2814","STAWIGUDA","2814112"]
["2814","ŚWIĄTKI","2814122"]
["2815","OSTRÓDA-MIEJSKA","2815011"]
["2815","DĄBRÓWNO","2815022"]
["2815","GRUNWALD","2815032"]
["2815","ŁUKTA","2815042"]
["2815","MAŁDYTY","2815052"]
["2815","MIŁAKOWO","2815063"]
["2815","MIŁOMŁYN","2815073"]
["2815","MORĄG","2815083"]
["2815","OSTRÓDA-WIEJSKA","2815092"]
["2816","BIAŁA PISKA","2816013"]
["2816","ORZYSZ","2816023"]
["2816","PISZ","2816033"]
["2816","RUCIANE-NIDA","2816043"]
["2817","SZCZYTNO-MIEJSKA","2817011"]
["2817","DŹWIERZUTY","2817022"]
["2817","JEDWABNO","2817032"]
["2817","PASYM","2817043"]
["2817","ROZOGI","2817052"]
["2817","SZCZYTNO-WIEJSKA","2817062"]
["2817","ŚWIĘTAJNO","2817072"]
["2817","WIELBARK","2817083"]
["2818","BANIE MAZURSKIE","2818012"]
["2818","DUBENINKI","2818022"]
["2818","GOŁDAP","2818033"]
["2819","BUDRY","2819012"]
["2819","POZEZDRZE","2819022"]
["2819","WĘGORZEWO","2819033"]
["2861","M.ELBLĄG","2861011"]
["2862","M.OLSZTYN","2862011"]
["3001","CHODZIEŻ-MIEJSKA","3001011"]
["3001","BUDZYŃ","3001023"]
["3001","CHODZIEŻ-WIEJSKA","3001032"]
["3001","MARGONIN","3001043"]
["3001","SZAMOCIN","3001053"]
["3002","CZARNKÓW-MIEJSKA","3002011"]
["3002","CZARNKÓW-WIEJSKA","3002022"]
["3002","DRAWSKO","3002032"]
["3002","KRZYŻ WIELKOPOLSKI","3002043"]
["3002","LUBASZ","3002052"]
["3002","POŁAJEWO","3002062"]
["3002","TRZCIANKA","3002073"]
["3002","WIELEŃ","3002083"]
["3003","GNIEZNO-MIEJSKA","3003011"]
["3003","CZERNIEJEWO","3003023"]
["3003","GNIEZNO-WIEJSKA","3003032"]
["3003","KISZKOWO","3003042"]
["3003","KŁECKO","3003053"]
["3003","ŁUBOWO","3003062"]
["3003","MIELESZYN","3003072"]
["3003","NIECHANOWO","3003082"]
["3003","TRZEMESZNO","3003093"]
["3003","WITKOWO","3003103"]
["3004","BOREK WIELKOPOLSKI","3004013"]
["3004","GOSTYŃ","3004023"]
["3004","KROBIA","3004033"]
["3004","PĘPOWO","3004042"]
["3004","PIASKI","3004052"]
["3004","POGORZELA","3004063"]
["3004","PONIEC","3004073"]
["3005","GRANOWO","3005012"]
["3005","GRODZISK WIELKOPOLSKI","3005023"]
["3005","KAMIENIEC","3005032"]
["3005","RAKONIEWICE","3005043"]
["3005","WIELICHOWO","3005053"]
["3006","JARACZEWO","3006013"]
["3006","JAROCIN","3006023"]
["3006","KOTLIN","3006032"]
["3006","ŻERKÓW","3006043"]
["3007","BLIZANÓW","3007012"]
["3007","BRZEZINY","3007022"]
["3007","CEKÓW-KOLONIA","3007032"]
["3007","GODZIESZE WIELKIE","3007042"]
["3007","KOŹMINEK","3007053"]
["3007","LISKÓW","3007062"]
["3007","MYCIELIN","3007072"]
["3007","OPATÓWEK","3007083"]
["3007","STAWISZYN","3007093"]
["3007","SZCZYTNIKI","3007102"]
["3007","ŻELAZKÓW","3007112"]
["3008","BARANÓW","3008012"]
["3008","BRALIN","3008022"]
["3008","KĘPNO","3008033"]
["3008","ŁĘKA OPATOWSKA","3008042"]
["3008","PERZÓW","3008052"]
["3008","RYCHTAL","3008062"]
["3008","TRZCINICA","3008072"]
["3009","KOŁO-MIEJSKA","3009011"]
["3009","BABIAK","3009022"]
["3009","CHODÓW","3009032"]
["3009","DĄBIE","3009043"]
["3009","GRZEGORZEW","3009052"]
["3009","KŁODAWA","3009063"]
["3009","KOŁO-WIEJSKA","3009072"]
["3009","KOŚCIELEC","3009082"]
["3009","OLSZÓWKA","3009092"]
["3009","OSIEK MAŁY","3009102"]
["3009","PRZEDECZ","3009113"]
["3010","GOLINA","3010013"]
["3010","GRODZIEC","3010022"]
["3010","KAZIMIERZ BISKUPI","3010032"]
["3010","KLECZEW","3010043"]
["3010","KRAMSK","3010052"]
["3010","KRZYMÓW","3010062"]
["3010","RYCHWAŁ","3010073"]
["3010","RZGÓW","3010082"]
["3010","SKULSK","3010092"]
["3010","SOMPOLNO","3010103"]
["3010","STARE MIASTO","3010112"]
["3010","ŚLESIN","3010123"]
["3010","WIERZBINEK","3010132"]
["3010","WILCZYN","3010142"]
["3011","KOŚCIAN-MIEJSKA","3011011"]
["3011","CZEMPIŃ","3011023"]
["3011","KOŚCIAN-WIEJSKA","3011032"]
["3011","KRZYWIŃ","3011043"]
["3011","ŚMIGIEL","3011053"]
["3012","SULMIERZYCE","3012011"]
["3012","KOBYLIN","3012023"]
["3012","KOŹMIN WIELKOPOLSKI","3012033"]
["3012","KROTOSZYN","3012043"]
["3012","ROZDRAŻEW","3012052"]
["3012","ZDUNY","3012063"]
["3013","KRZEMIENIEWO","3013012"]
["3013","LIPNO","3013022"]
["3013","OSIECZNA","3013033"]
["3013","RYDZYNA","3013043"]
["3013","ŚWIĘCIECHOWA","3013052"]
["3013","WIJEWO","3013062"]
["3013","WŁOSZAKOWICE","3013072"]
["3014","CHRZYPSKO WIELKIE","3014012"]
["3014","KWILCZ","3014022"]
["3014","MIĘDZYCHÓD","3014033"]
["3014","SIERAKÓW","3014043"]
["3015","KUŚLIN","3015012"]
["3015","LWÓWEK","3015023"]
["3015","MIEDZICHOWO","3015032"]
["3015","NOWY TOMYŚL","3015043"]
["3015","OPALENICA","3015053"]
["3015","ZBĄSZYŃ","3015063"]
["3016","OBORNIKI","3016013"]
["3016","ROGOŹNO","3016023"]
["3016","RYCZYWÓŁ","3016032"]
["3017","OSTRÓW WIELKOPOLSKI-MIEJSKA","3017011"]
["3017","NOWE SKALMIERZYCE","3017023"]
["3017","ODOLANÓW","3017033"]
["3017","OSTRÓW WIELKOPOLSKI-WIEJSKA","3017042"]
["3017","PRZYGODZICE","3017052"]
["3017","RASZKÓW","3017063"]
["3017","SIEROSZEWICE","3017072"]
["3017","SOŚNIE","3017082"]
["3018","CZAJKÓW","3018012"]
["3018","DORUCHÓW","3018022"]
["3018","GRABÓW NAD PROSNĄ","3018033"]
["3018","KOBYLA GÓRA","3018042"]
["3018","KRASZEWICE","3018052"]
["3018","MIKSTAT","3018063"]
["3018","OSTRZESZÓW","3018073"]
["3019","PIŁA","3019011"]
["3019","BIAŁOŚLIWIE","3019022"]
["3019","KACZORY","3019032"]
["3019","ŁOBŻENICA","3019043"]
["3019","MIASTECZKO KRAJEŃSKIE","3019052"]
["3019","SZYDŁOWO","3019062"]
["3019","UJŚCIE","3019073"]
["3019","WYRZYSK","3019083"]
["3019","WYSOKA","3019093"]
["3020","CHOCZ","3020013"]
["3020","CZERMIN","3020022"]
["3020","DOBRZYCA","3020033"]
["3020","GIZAŁKI","3020042"]
["3020","GOŁUCHÓW","3020052"]
["3020","PLESZEW","3020063"]
["3021","LUBOŃ","3021011"]
["3021","PUSZCZYKOWO","3021021"]
["3021","BUK","3021033"]
["3021","CZERWONAK","3021042"]
["3021","DOPIEWO","3021052"]
["3021","KLESZCZEWO","3021062"]
["3021","KOMORNIKI","3021072"]
["3021","KOSTRZYN","3021083"]
["3021","KÓRNIK","3021093"]
["3021","MOSINA","3021103"]
["3021","MUROWANA GOŚLINA","3021113"]
["3021","POBIEDZISKA","3021123"]
["3021","ROKIETNICA","3021132"]
["3021","STĘSZEW","3021143"]
["3021","SUCHY LAS","3021152"]
["3021","SWARZĘDZ","3021163"]
["3021","TARNOWO PODGÓRNE","3021172"]
["3022","BOJANOWO","3022013"]
["3022","JUTROSIN","3022023"]
["3022","MIEJSKA GÓRKA","3022033"]
["3022","PAKOSŁAW","3022042"]
["3022","RAWICZ","3022053"]
["3023","SŁUPCA-MIEJSKA","3023011"]
["3023","LĄDEK","3023022"]
["3023","ORCHOWO","3023032"]
["3023","OSTROWITE","3023042"]
["3023","POWIDZ","3023052"]
["3023","SŁUPCA-WIEJSKA","3023062"]
["3023","STRZAŁKOWO","3023072"]
["3023","ZAGÓRÓW","3023083"]
["3024","OBRZYCKO-MIEJSKA","3024011"]
["3024","DUSZNIKI","3024022"]
["3024","KAŹMIERZ","3024032"]
["3024","OBRZYCKO-WIEJSKA","3024042"]
["3024","OSTRORÓG","3024053"]
["3024","PNIEWY","3024063"]
["3024","SZAMOTUŁY","3024073"]
["3024","WRONKI","3024083"]
["3025","DOMINOWO","3025012"]
["3025","KRZYKOSY","3025022"]
["3025","NOWE MIASTO NAD WARTĄ","3025032"]
["3025","ŚRODA WIELKOPOLSKA","3025043"]
["3025","ZANIEMYŚL","3025052"]
["3026","BRODNICA-WIEJSKA","3026012"]
["3026","DOLSK","3026023"]
["3026","KSIĄŻ WIELKOPOLSKI","3026033"]
["3026","ŚREM","3026043"]
["3027","TUREK-MIEJSKA","3027011"]
["3027","BRUDZEW","3027022"]
["3027","DOBRA","3027033"]
["3027","KAWĘCZYN","3027042"]
["3027","MALANÓW","3027052"]
["3027","PRZYKONA","3027062"]
["3027","TULISZKÓW","3027073"]
["3027","TUREK-WIEJSKA","3027082"]
["3027","WŁADYSŁAWÓW","3027092"]
["3028","WĄGROWIEC-MIEJSKA","3028011"]
["3028","DAMASŁAWEK","3028022"]
["3028","GOŁAŃCZ","3028033"]
["3028","MIEŚCISKO","3028042"]
["3028","SKOKI","3028053"]
["3028","WAPNO","3028062"]
["3028","WĄGROWIEC-WIEJSKA","3028072"]
["3029","PRZEMĘT","3029012"]
["3029","SIEDLEC","3029022"]
["3029","WOLSZTYN","3029033"]
["3030","KOŁACZKOWO","3030012"]
["3030","MIŁOSŁAW","3030023"]
["3030","NEKLA","3030033"]
["3030","PYZDRY","3030043"]
["3030","WRZEŚNIA","3030053"]
["3031","ZŁOTÓW-MIEJSKA","3031011"]
["3031","JASTROWIE","3031023"]
["3031","KRAJENKA","3031033"]
["3031","LIPKA","3031042"]
["3031","OKONEK","3031053"]
["3031","TARNÓWKA","3031062"]
["3031","ZAKRZEWO","3031072"]
["3031","ZŁOTÓW-WIEJSKA","3031082"]
["3061","M.KALISZ","3061011"]
["3062","M.KONIN","3062011"]
["3063","M.LESZNO","3063011"]
["3064","M.POZNAŃ","3064011"]
["3201","BIAŁOGARD-MIEJSKA","3201011"]
["3201","BIAŁOGARD-WIEJSKA","3201022"]
["3201","KARLINO","3201033"]
["3201","TYCHOWO","3201043"]
["3202","BIERZWNIK","3202012"]
["3202","CHOSZCZNO","3202023"]
["3202","DRAWNO","3202033"]
["3202","KRZĘCIN","3202042"]
["3202","PEŁCZYCE","3202053"]
["3202","RECZ","3202063"]
["3203","CZAPLINEK","3203013"]
["3203","DRAWSKO POMORSKIE","3203023"]
["3203","KALISZ POMORSKI","3203033"]
["3203","WIERZCHOWO","3203052"]
["3203","ZŁOCIENIEC","3203063"]
["3204","GOLENIÓW","3204023"]
["3204","MASZEWO","3204033"]
["3204","NOWOGARD","3204043"]
["3204","OSINA","3204052"]
["3204","PRZYBIERNÓW","3204062"]
["3204","STEPNICA","3204073"]
["3205","BROJCE","3205012"]
["3205","GRYFICE","3205023"]
["3205","KARNICE","3205032"]
["3205","PŁOTY","3205043"]
["3205","REWAL","3205072"]
["3205","TRZEBIATÓW","3205083"]
["3206","BANIE","3206012"]
["3206","CEDYNIA","3206023"]
["3206","CHOJNA","3206033"]
["3206","GRYFINO","3206043"]
["3206","MIESZKOWICE","3206053"]
["3206","MORYŃ","3206063"]
["3206","STARE CZARNOWO","3206072"]
["3206","TRZCIŃSKO-ZDRÓJ","3206083"]
["3206","WIDUCHOWA","3206092"]
["3207","DZIWNÓW","3207013"]
["3207","GOLCZEWO","3207023"]
["3207","KAMIEŃ POMORSKI","3207033"]
["3207","MIĘDZYZDROJE","3207043"]
["3207","ŚWIERZNO","3207052"]
["3207","WOLIN","3207063"]
["3208","KOŁOBRZEG-MIEJSKA","3208011"]
["3208","DYGOWO","3208022"]
["3208","GOŚCINO","3208033"]
["3208","KOŁOBRZEG-WIEJSKA","3208042"]
["3208","RYMAŃ","3208052"]
["3208","SIEMYŚL","3208062"]
["3208","USTRONIE MORSKIE","3208072"]
["3209","BĘDZINO","3209012"]
["3209","BIESIEKIERZ","3209022"]
["3209","BOBOLICE","3209033"]
["3209","MANOWO","3209042"]
["3209","MIELNO","3209053"]
["3209","POLANÓW","3209063"]
["3209","SIANÓW","3209073"]
["3209","ŚWIESZYNO","3209082"]
["3210","BARLINEK","3210013"]
["3210","BOLESZKOWICE","3210022"]
["3210","DĘBNO","3210033"]
["3210","MYŚLIBÓRZ","3210043"]
["3210","NOWOGRÓDEK POMORSKI","3210052"]
["3211","DOBRA (SZCZECIŃSKA)","3211012"]
["3211","KOŁBASKOWO","3211022"]
["3211","NOWE WARPNO","3211033"]
["3211","POLICE","3211043"]
["3212","BIELICE","3212012"]
["3212","KOZIELICE","3212022"]
["3212","LIPIANY","3212033"]
["3212","PRZELEWICE","3212042"]
["3212","PYRZYCE","3212053"]
["3212","WARNICE","3212062"]
["3213","DARŁOWO-MIEJSKA","3213011"]
["3213","SŁAWNO-MIEJSKA","3213021"]
["3213","DARŁOWO-WIEJSKA","3213032"]
["3213","MALECHOWO","3213042"]
["3213","POSTOMINO","3213052"]
["3213","SŁAWNO-WIEJSKA","3213062"]
["3214","STARGARD SZCZECIŃSKI-MIEJSKA","3214011"]
["3214","CHOCIWEL","3214023"]
["3214","DOBRZANY","3214033"]
["3214","DOLICE","3214042"]
["3214","IŃSKO","3214053"]
["3214","KOBYLANKA","3214062"]
["3214","MARIANOWO","3214082"]
["3214","STARA DĄBROWA","3214092"]
["3214","STARGARD SZCZECIŃSKI-WIEJSKA","3214102"]
["3214","SUCHAŃ","3214113"]
["3215","SZCZECINEK-MIEJSKA","3215011"]
["3215","BARWICE","3215023"]
["3215","BIAŁY BÓR","3215033"]
["3215","BORNE SULINOWO","3215043"]
["3215","GRZMIĄCA","3215052"]
["3215","SZCZECINEK-WIEJSKA","3215062"]
["3216","ŚWIDWIN-MIEJSKA","3216011"]
["3216","BRZEŻNO","3216022"]
["3216","POŁCZYN-ZDRÓJ","3216033"]
["3216","RĄBINO","3216042"]
["3216","SŁAWOBORZE","3216052"]
["3216","ŚWIDWIN-WIEJSKA","3216062"]
["3217","WAŁCZ-MIEJSKA","3217011"]
["3217","CZŁOPA","3217023"]
["3217","MIROSŁAWIEC","3217033"]
["3217","TUCZNO","3217043"]
["3217","WAŁCZ-WIEJSKA","3217052"]
["3218","DOBRA","3218013"]
["3218","ŁOBEZ","3218023"]
["3218","RADOWO MAŁE","3218032"]
["3218","RESKO","3218043"]
["3218","WĘGORZYNO","3218053"]
["3261","M.KOSZALIN","3261011"]
["3262","M.SZCZECIN","3262011"]
["3263","M.ŚWINOUJŚCIE","3263011"]

{"sheet":"UPO","index":10,"n_rows":28,"n_cols":10,"rows_kept":28,"cut":false,"hidden":true,"merged":[[2,3,2,9],[3,3,3,9],[5,3,5,9],[9,3,9,5],[4,2,4,9],[6,2,6,9],[9,6,9,9],[7,2,7,9],[8,3,8,9],[17,3,17,5],[18,6,18,9],[19,7,19,9],[17,6,17,9],[19,4,19,5],[18,3,18,5],[10,3,10,5],[16,3,16,9],[10,6,10,9],[15,3,15,9],[13,3,13,9],[14,3,14,9],[12,3,12,9],[11,3,11,9],[27,2,27,7],[26,2,26,9],[20,3,20,9],[21,3,21,9],[22,3,22,9],[25,3,25,4],[25,5,25,9],[24,3,24,9],[23,3,23,9]]}
[]
[]
[null,null,null,"    URZĘDOWE POŚWIADCZENIE ODBIORU"]
[null,null,null,"        DOKUMENTU ELEKTRONICZNEGO"]
[null,null,"   A. NAZWA PEŁNA PODMIOTU, KTÓREMU DORĘCZONO DOKUMENT ELEKTRONICZNY"]
[null,null,null,"e-Deklaracje - system testowy"]
[]
[null,null,"   B. INFORMACJA O DOKUMENCIE"]
[null,null,null," Dokument został zarejestrowany w systemie teleinformatycznym Ministerstwa Finansów"]
[null,null,null," Identyfikator dokumentu:",null,null,"   Dnia (data, czas):"]
[]
[null,null,null," Skrót złożonego dokumentu - identyczny z wartością użytą do podpisu dokumentu:"]
[]
[null,null,null," Skrót dokumentu w postaci otrzymanej przez system (łącznie z podpisem elektronicznym):"]
[]
[null,null,null," Dokument zweryfikowano pod względem zgodności ze strukturą logiczną:"]
[]
[null,null,null," Identyfikator podatkowy podmiotu występującego jako",null,null," Identyfikator podatkowy podmiotu występującego jako"]
[null,null,null," pierwszy na dokumencie:",null,null," drugi na dokumencie:"]
[null,null,null," NIP",null,null,null,""]
[null,null,null," Urząd skarbowy, do którego został złożony dokument:"]
[]
[null,null,null," Stempel czasu:"]
[]
[null,null,null," Dokument wystawiony automatycznie przez system teleinformatyczny Ministerstwa Finansów"]
[null,null,null," Data i czas wystawienia dokumentu:"]
[]
[null,null,null,null,null,null,null,null,"UPO(6)","1/1"]

{"sheet":"A","index":11,"n_rows":653,"n_cols":434,"rows_kept":653,"cut":false,"hidden":true,"merged":[]}
[null,null,"URZĄD SKARBOWY W ALEKSANDROWIE KUJAWSKIM","0402",null,"1","paliwo",null,"AUSTRIA","AT","EUR","AUSTRIA","de","en",null,null,"AUSTRIA",null,null,"POLSKA","PL",null,"AFGANISTAN","AF",null,1,{"$f":"Tabela_F!A$3","v":"UnikNr"},1,{"$f":"Tabela_E!A$3","v":"UnikNr"}]
["Licencja dla tego programu wygasła. \nPobierz nowy plik ze strony iform.pl\ntel. 608 436 383",{"$f":"\"Ta wersja programu tworzy wniosek VAT-REF tylko dla \"&PR2&\" faktur/dokumentów celnych.\nZapis danych i wysyłka wniosku VAT-REF została zatrzymana.\"","v":"Ta wersja programu tworzy wniosek VAT-REF tylko dla 50 faktur/dokumentów celnych.\nZapis danych i wysyłka wniosku VAT-REF została zatrzymana."},"URZĄD SKARBOWY W AUGUSTOWIE","2002"," ","2","wynajem środków transportu",null,"BELGIA","BE","EUR","BELGIUM","fr","nl","de",null,"niemiecki","de",null,"AFGANISTAN","AF",null,"ALAND ISLANDS","AX",null,2,{"$f":"Tabela_F!B$3","v":"NrFaktury"},2,{"$f":"Tabela_E!B$3","v":"NrSAD"},null,null,null,null,null,null,null,null,null,null,null,null,null,null,null,null,null,null,null,null,null,null,null,null,null,null,null,null,null,null,null,null,null,null,null,null,null,null,null,null,null,null,null,null,null,null,null,null,null,null,null,null,null,null,null,null,null,null,null,null,null,null,null,null,null,null,null,null,null,null,null,null,null,null,null,null,null,null,null,null,null,null,null,null,null,null,null,null,null,null,null,null,null,null,null,null,null,null,null,null,null,null,null,null,null,null,null,null,null,null,null,null,null,null,null,null,null,null,null,null,null,null,null,null,null,null,null,null,null,null,null,null,null,null,null,null,null,null,null,null,null,null,null,null,null,null,null,null,null,null,null,null,null,null,null,null,null,null,null,null,null,null,null,null,null,null,null,null,null,null,null,null,null,null,null,null,null,null,null,null,null,null,null,null,null,null,null,null,null,null,null,null,null,null,null,null,null,null,null,null,null,null,null,null,null,null,null,null,null,null,null,null,null,null,null,null,null,null,null,null,null,null,null,null,null,null,null,null,null,null,null,null,null,null,null,null,null,null,null,null,null,null,null,null,null,null,null,null,null,null,null,null,null,null,null,null,null,null,null,null,null,null,null,null,null,null,null,null,null,null,null,null,null,null,null,null,null,null,null,null,null,null,null,null,null,null,null,null,null,null,null,null,null,null,null,null,null,null,null,null,null,null,null,null,null,null,null,null,null,null,null,null,null,null,null,null,null,null,null,null,null,null,null,null,null,null,null,null,null,null,null,null,null,null,null,null,null,null,null,null,null,null,null,null,null,null,null,null,null,null,null,null,null,null,null,null,null,null,null,null,null,null,null,null,null,null,null,null,null,null,null,null,null,null,null,null,null,null,null,null,null,null,null,null,null,null,null,null,null,null,null,null,null,null,null,null,null,null,null,null,null,null,null,{"$f":"COUNTIF(Tabela_E!B4:B1048576,\"*\")+COUNTIF(Tabela_F!B4:B1048576,\"*\")","v":0},50]
["0111 UPRAWA ZBÓŻ INNYCH NIŻ RYŻ, ROŚLIN STRĄCZKOWYCH I ROŚLIN OLEISTYCH NA NASIONA"," ","URZĄD SKARBOWY W BARTOSZYCACH","2802",null,"3","wydatki związane ze środkami transportu (inne niż towary i usługi, o których mowa w kodzie 1 i 2)"," ","BUŁGARIA","BG","BGN","BULGARIA","bg","en",null,null,"angielski","en",null,"ALAND ISLANDS","AX",null,"ALBANIA","AL",null,3,{"$f":"Tabela_F!C$3","v":"FakturaUpr"},3,{"$f":"Tabela_E!C$3","v":"NrSADPap"},null,null,null,null,null,null,null,null,null,null,null,null,null,null,null,null,null,null,null,null,null,null,null,null,null,null,null,null,null,null,null,null,null,null,null,null,null,null,null,null,null,null,null,null,null,null,null,null,null,null,null,null,null,null,null,null,null,null,null,null,null,null,null,null,null,null,null,null,null,null,null,null,null,null,null,null,null,null,null,null,null,null,null,null,null,null,null,null,null,null,null,null,null,null,null,null,null,null,null,null,null,null,null,null,null,null,null,null,null,null,null,null,null,null,null,null,null,null,null,null,null,null,null,null,null,null,null,null,null,null,null,null,null,null,null,null,null,null,null,null,null,null,null,null,null,null,null,null,null,null,null,null,null,null,null,null,null,null,null,null,null,null,null,null,null,null,null,null,null,null,null,null,null,null,null,null,null,null,null,null,null,null,null,null,null,null,null,null,null,null,null,null,null,null,null,null,null,null,null,null,null,null,null,null,null,null,null,null,null,null,null,null,null,null,null,null,null,null,null,null,null,null,null,null,null,null,null,null,null,null,null,null,null,null,null,null,null,null,null,null,null,null,null,null,null,null,null,null,null,null,null,null,null,null,null,null,null,null,null,null,null,null,null,null,null,null,null,null,null,null,null,null,null,null,null,null,null,null,null,null,null,null,null,null,null,null,null,null,null,null,null,null,null,null,null,null,null,null,null,null,null,null,null,null,null,null,null,null,null,null,null,null,null,null,null,null,null,null,null,null,null,null,null,null,null,null,null,null,null,null,null,null,null,null,null,null,null,null,null,null,null,null,null,null,null,null,null,null,null,null,null,null,null,null,null,null,null,null,null,null,null,null,null,null,null,null,null,null,null,null,null,null,null,null,null,null,null,null,null,null,null,null,null,null,null,null,null,null,null,null,null,null,null,null,null,null,null,null,null,null,null,null,null,null,"vre25"]
["0112 UPRAWA RYŻU"," ","URZĄD SKARBOWY W BEŁCHATOWIE","1002",null,"4","opłaty drogowe i inne opłaty dla użytkowników dróg",null,"CEUTA","XC","EUR","CEUTA","es","en",null,null,"BELGIA",null,null,"ALBANIA","AL",null,"ALGIERIA","DZ",null,4,{"$f":"Tabela_F!D$3","v":"Data"},4,{"$f":"Tabela_E!D$3","v":"Data"},null,null,null,null,null,null,null,null,null,null,null,null,null,null,null,null,null,null,null,null,null,null,null,null,null,null,null,null,null,null,null,null,null,null,null,null,null,null,null,null,null,null,null,null,null,null,null,null,null,null,null,null,null,null,null,null,null,null,null,null,null,null,null,null,null,null,null,null,null,null,null,null,null,null,null,null,null,null,null,null,null,null,null,null,null,null,null,null,null,null,null,null,null,null,null,null,null,null,null,null,null,null,null,null,null,null,null,null,null,null,null,null,null,null,null,null,null,null,null,null,null,null,null,null,null,null,null,null,null,null,null,null,null,null,null,null,null,null,null,null,null,null,null,null,null,null,null,null,null,null,null,null,null,null,null,null,null,null,null,null,null,null,null,null,null,null,null,null,null,null,null,null,null,null,null,null,null,null,null,null,null,null,null,null,null,null,null,null,null,null,null,null,null,null,null,null,null,null,null,null,null,null,null,null,null,null,null,null,null,null,null,null,null,null,null,null,null,null,null,null,null,null,null,null,null,null,null,null,null,null,null,null,null,null,null,null,null,null,null,null,null,null,null,null,null,null,null,null,null,null,null,null,null,null,null,null,null,null,null,null,null,null,null,null,null,null,null,null,null,null,null,null,null,null,null,null,null,null,null,null,null,null,null,null,null,null,null,null,null,null,null,null,null,null,null,null,null,null,null,null,null,null,null,null,null,null,null,null,null,null,null,null,null,null,null,null,null,null,null,null,null,null,null,null,null,null,null,null,null,null,null,null,null,null,null,null,null,null,null,null,null,null,null,null,null,null,null,null,null,null,null,null,null,null,null,null,null,null,null,null,null,null,null,null,null,null,null,null,null,null,null,null,null,null,null,null,null,null,null,null,null,null,null,null,null,null,null,null,null,null,null,null,null,null,null,null,null,null,null,null,null,null,null,null,{"$f":"PR3&PR2","v":"vre2550"}]
["0113 UPRAWA WARZYW, WŁĄCZAJĄC MELONY ORAZ UPRAWA ROŚLIN KORZENIOWYCH I ROŚLIN BULWIASTYCH"," ","URZĄD SKARBOWY W BĘDZINIE","2402",null,"5","koszty podróży, takie jak opłaty za taksówki, opłaty za transport publiczny"," ","CHORWACJA","HR","EUR","CROATIA","hr","en",null,null,"francuski","fr",null,"ALGIERIA","DZ",null,"ANDORA","AD",null,5,{"$f":"Tabela_F!E$3","v":"Nazwa"},5,{"$f":"Tabela_E!E$3","v":"Nazwa"}]
["0114 UPRAWA TRZCINY CUKROWEJ"," ","URZĄD SKARBOWY W BIAŁEJ PODLASKIEJ","0602",null,"6","zakwaterowanie",null,"CYPR","CY","EUR","CYPRUS","el","en","tr",null,"holenderski","nl",null,"ANDORA","AD",null,"ANGOLA","AO",null,6,{"$f":"Tabela_F!F$3","v":"Adres"},6,{"$f":"Tabela_E!F$3","v":"Adres"}]
["0115 UPRAWA TYTONIU"," ","URZĄD SKARBOWY W BIAŁOBRZEGACH","1402",null,"7","żywność, napoje i usługi restauracyjne",null,"CZECHY","CZ","CZK","CZECH REPUBLIC","cs",null,null,null,"niemiecki","de",null,"ANGOLA","AO",null,"ANGUILLA","AI",null,7,{"$f":"Tabela_F!G$3","v":"Telefon"},7,{"$f":"Tabela_E!G$3","v":"Telefon"}]
["0116 UPRAWA ROŚLIN WŁÓKNISTYCH"," ","URZĄD SKARBOWY W BIAŁOGARDZIE","3202",null,"8","opłaty za wstęp na targi i wystawy",null,"DANIA","DK","DKK","DENMARK","da","en","de",null,"BUŁGARIA",null,null,"ANGUILLA","AI",null,"ANTARKTYDA","AQ",null,8,{"$f":"Tabela_F!H$3","v":"Kraj"},8,{"$f":"Tabela_E!H$3","v":"Kraj"}]
["0119 POZOSTAŁE UPRAWY ROLNE INNE NIŻ WIELOLETNIE"," ","PIERWSZY URZĄD SKARBOWY W BIAŁYMSTOKU","2003",null,"9","wydatki na artykuły luksusowe, rozrywkowe i wydatki reprezentacyjne",null,"ESTONIA","EE","EUR","ESTONIA","et","en",null,null,"bułgarski","bg",null,"ANTARKTYDA","AQ",null,"ANTIGUA I BARBUDA","AG",null,9,{"$f":"Tabela_F!I$3","v":"NrVAT"},9,{"$f":"Tabela_E!I$3","v":"KodTow"}]
["0121 UPRAWA WINOGRON"," ","DRUGI URZĄD SKARBOWY W BIAŁYMSTOKU","2004",null,"10","inne",null,"FINLANDIA","FI","EUR","FINLAND","fi","sv","en",null,"angielski","en",null,"ANTIGUA I BARBUDA","AG",null,"ANTYLE HOLENDERSKIE","AN",null,10,{"$f":"Tabela_F!J$3","v":"KodKr"},10,{"$f":"Tabela_E!J$3","v":"Podkod"}]
["0122 UPRAWA DRZEW I KRZEWÓW OWOCOWYCH TROPIKALNYCH I PODZWROTNIKOWYCH"," ","URZĄD SKARBOWY W BIELSKU PODLASKIM","2005",null,"1.1","Paliwo do środków transportu o masie powyżej 3500 kg, innych niż środki transportu dla pasażerów uiszczających opłatę"," ","FRANCJA","FR","EUR","FRANCE","fr","en",null,null,"CEUTA",null,null,"ANTYLE HOLENDERSKIE","AN",null,"ARABIA SAUDYJSKA","SA",null,11,{"$f":"Tabela_F!K$3","v":"NrNiemcy"},11,{"$f":"Tabela_E!K$3","v":"Opis"}]
["0123 UPRAWA DRZEW I KRZEWÓW OWOCOWYCH CYTRUSOWYCH"," ","PIERWSZY URZĄD SKARBOWY W BIELSKU-BIAŁEJ","2403",null,"1.1.1","Benzyna",null,"GRECJA","EL","EUR","GREECE","el","en","fr",null,"hiszpański","es",null,"ARABIA SAUDYJSKA","SA",null,"ARGENTYNA","AR",null,12,{"$f":"Tabela_F!L$3","v":"KodTow"},12,{"$f":"Tabela_E!L$3","v":"Jezyk"}]
["0124 UPRAWA DRZEW I KRZEWÓW OWOCOWYCH ZIARNKOWYCH I PESTKOWYCH"," ","DRUGI URZĄD SKARBOWY W BIELSKU-BIAŁEJ","2404",null,"1.1.2","Olej napędowy",null,"HISZPANIA","ES","EUR","SPAIN","es","en",null,null,"angielski","en",null,"ARGENTYNA","AR",null,"ARMENIA","AM",null,13,{"$f":"Tabela_F!M$3","v":"Podkod"},13,{"$f":"Tabela_E!M$3","v":"Waluta"}]
["0125 UPRAWA POZOSTAŁYCH DRZEW I KRZEWÓW OWOCOWYCH ORAZ ORZECHOWYCH"," ","DRUGI ŚLĄSKI URZĄD SKARBOWY W BIELSKU-BIAŁEJ","2472",null,"1.1.3","LPG",null,"IRLANDIA","IE","EUR","IRELAND","en","ga",null,null,"CHORWACJA",null,null,"ARMENIA","AM",null,"ARUBA","AW",null,14,{"$f":"Tabela_F!N$3","v":"Opis"},14,{"$f":"Tabela_E!N$3","v":"Podstawa"}]
["0126 UPRAWA DRZEW OLEISTYCH"," ","URZĄD SKARBOWY W BIŁGORAJU","0603",null,"1.1.4","Gaz ziemny",null,"IRLANDIA PÓŁNOCNA","XI","GBP","NORTHERN IRELAND","en",null,null,null,"chorwacki","hr",null,"ARUBA","AW",null,"AUSTRALIA","AU",null,15,{"$f":"Tabela_F!O$3","v":"Jezyk"},15,{"$f":"Tabela_E!O$3","v":"VAT"}]
["0127 UPRAWA ROŚLIN WYKORZYSTYWANYCH DO PRODUKCJI NAPOJÓW"," ","URZĄD SKARBOWY W BOCHNI","1202",null,"1.1.5","Biopaliwo",null,"LITWA","LT","EUR","LITHUANIA","lt","en",null,null,"angielski","en",null,"AUSTRALIA","AU",null,"AZERBEJDŻAN","AZ",null,16,{"$f":"Tabela_F!P$3","v":"Waluta"},16,{"$f":"Tabela_E!P$3","v":"Proporcja"}]
["0128 UPRAWA ROŚLIN PRZYPRAWOWYCH I AROMATYCZNYCH ORAZ ROŚLIN WYKORZYSTYWANYCH DO PRODUKCJI LEKÓW I WYROBÓW FARMACEUTYCZNYCH"," ","URZĄD SKARBOWY W BOLESŁAWCU","0202",null,"1.2","Paliwo do środków transportu o masie nie większej niż 3500 kg innych niż środki transportu dla pasażerów uiszczających opłatę"," ","LUKSEMBURG","LU","EUR","LUXEMBOURG","fr","de","en",null,"CYPR",null,null,"AUSTRIA","AT",null,"BAHAMY","BS",null,17,{"$f":"Tabela_F!Q$3","v":"Podstawa"},17,{"$f":"Tabela_E!Q$3","v":"VATZwrot"}]
["0129 UPRAWA POZOSTAŁYCH ROŚLIN WIELOLETNICH"," ","URZĄD SKARBOWY W BRANIEWIE","2803",null,"1.2.1","Benzyna",null,"ŁOTWA","LV","EUR","LATVIA","lv","en",null,null,"grecki","el",null,"AZERBEJDŻAN","AZ",null,"BAHRAJN","BH",null,18,{"$f":"Tabela_F!R$3","v":"VAT"}]
["0130 ROZMNAŻANIE ROŚLIN"," ","URZĄD SKARBOWY W BRODNICY","0403",null,"1.2.2","Olej napędowy",null,"MALTA","MT","EUR","MALTA","mt","en",null,null,"angielski","en",null,"BAHAMY","BS",null,"BANGLADESZ","BD",null,19,{"$f":"Tabela_F!S$3","v":"Proporcja"}]
["0141 CHÓW I HODOWLA BYDŁA MLECZNEGO"," ","URZĄD SKARBOWY W BRZEGU","1602",null,"1.2.3","LPG",null,"MELILLA","XL","EUR","MELILLA","es","en",null,null,"turecki","tr",null,"BAHRAJN","BH",null,"BARBADOS","BB",null,20,{"$f":"Tabela_F!T$3","v":"VATZwrot"}]
["0142 CHÓW I HODOWLA POZOSTAŁEGO BYDŁA I BAWOŁÓW"," ","URZĄD SKARBOWY W BRZESKU","1203",null,"1.2.4","Gaz ziemny",null,"MONAKO","MC","EUR","MONACO","fr","en",null,null,"CZECHY",null,null,"BANGLADESZ","BD",null,"BELIZE","BZ"]
["0143 CHÓW I HODOWLA KONI I POZOSTAŁYCH ZWIERZĄT KONIOWATYCH"," ","URZĄD SKARBOWY W BRZEZINACH","1003",null,"1.2.5","Biopaliwo",null,"NIDERLANDY","NL","EUR","NETHERLANDS","nl","en","de",null,"czeski","cs",null,"BARBADOS","BB",null,"BENIN","BJ",null,1,"UnikNr",1,"UnikNr"]
["0144 CHÓW I HODOWLA WIELBŁĄDÓW I ZWIERZĄT WIELBŁĄDOWATYCH"," ","URZĄD SKARBOWY W BRZOZOWIE","1802",null,"1.2.6","PKW",null,"NIEMCY","DE","EUR","GERMANY","de","en",null,null,"DANIA",null,null,"BELGIA","BE",null,"BERMUDY","BM",null,2,"NrFaktury",2,"NrSAD"]
["0145 CHÓW I HODOWLA OWIEC I KÓZ"," ","URZĄD SKARBOWY W BUSKU-ZDROJU","2602",null,"1.2.7","LKW",null,"PORTUGALIA","PT","EUR","PORTUGAL","pt","en",null,null,"duński","da",null,"BELIZE","BZ",null,"BHUTAN","BT",null,3,"FakturaUpr",3,"NrSADPap"]
["0146 CHÓW I HODOWLA ŚWIŃ"," ","PIERWSZY URZĄD SKARBOWY W BYDGOSZCZY","0404",null,"1.3","Paliwo do środków transportu dla pasażerów uiszczających opłatę"," ","RUMUNIA","RO","RON","ROMANIA","ro",null,null,null,"angielski","en",null,"BENIN","BJ",null,"BIAŁORUŚ","BY",null,4,"Data",4,"Data"]
["0147 CHÓW I HODOWLA DROBIU"," ","DRUGI URZĄD SKARBOWY W BYDGOSZCZY","0405",null,"1.3.1","Benzyna",null,"SŁOWACJA","SK","EUR","SLOVAKIA","sk",null,null,null,"niemiecki","de",null,"BERMUDY","BM",null,"BOLIWIA","BO",null,5,"Nazwa",5,"Nazwa"]
["0148 CHÓW I HODOWLA POZOSTAŁYCH ZWIERZĄT"," ","TRZECI URZĄD SKARBOWY W BYDGOSZCZY","0406",null,"1.3.2","Olej napędowy",null,"SŁOWENIA","SI","EUR","SLOVENIA","sl","en",null,null,"ESTONIA",null,null,"BHUTAN","BT",null,"BONAIRE, SINT EUSTATIUS I SABA","BQ",null,6,"Adres",6,"Adres"]
["0150 UPRAWY ROLNE POŁĄCZONE Z CHOWEM I HODOWLĄ ZWIERZĄT (DZIAŁALNOŚĆ MIESZANA)"," ","KUJAWSKO-POMORSKI URZĄD SKARBOWY W BYDGOSZCZY","0471",null,"1.3.3","LPG",null,"SZWECJA","SE","SEK","SWEDEN","sv","en","de",null,"estoński","et",null,"BIAŁORUŚ","BY",null,"BOŚNIA I HERCEGOWINA","BA",null,7,"Telefon",7,"Telefon"]
["0161 DZIAŁALNOŚĆ USŁUGOWA WSPOMAGAJĄCA PRODUKCJĘ ROŚLINNĄ"," ","URZĄD SKARBOWY W BYSTRZYCY KŁODZKIEJ","0203",null,"1.3.4","Gaz ziemny",null,"WĘGRY","HU","HUF","HUNGARY","hu","en",null,null,"angielski","en",null,"BOLIWIA","BO",null,"BOTSWANA","BW",null,8,"Kraj",8,"Kraj"]
["0162 DZIAŁALNOŚĆ USŁUGOWA WSPOMAGAJĄCA CHÓW I HODOWLĘ ZWIERZĄT GOSPODARSKICH"," ","URZĄD SKARBOWY W BYTOMIU","2405",null,"1.3.5","Biopaliwo",null,"WŁOCHY","IT","EUR","ITALY","it","en","fr",null,"FINLANDIA",null,null,"BONAIRE, SINT EUSTATIUS I SABA","BQ",null,"BRAZYLIA","BR",null,9,"NrVAT",9,"KodTow"]
["0163 DZIAŁALNOŚĆ USŁUGOWA NASTĘPUJĄCA PO ZBIORACH ORAZ OBRÓBKA NASION DLA CELÓW ROZMNAŻANIA ROŚLIN"," ","URZĄD SKARBOWY W BYTOWIE","2202",null,"1.4","Paliwo specjalnie przeznaczone do pojazdów poddawanych badaniu"," ","WYSPY KANARYJSKIE","IC","EUR","CANARY ISLANDS","es","en",null,null,"fiński","fi",null,"BOŚNIA I HERCEGOWINA","BA",null,"BRUNEI DARUSSALAM","BN",null,10,"KodKr",10,"Podkod"]
["0170 ŁOWIECTWO I POZYSKIWANIE ZWIERZĄT ŁOWNYCH, WŁĄCZAJĄC DZIAŁALNOŚĆ USŁUGOWĄ"," ","URZĄD SKARBOWY W CHEŁMIE","0604",null,"1.5","Produkty ropopochodne używane do smarowania środków transportu lub silników"," ",null,null,null,null,null,null,null,null,"szwedzki","sv",null,"BOTSWANA","BW",null,"BRYTYJSKIE TERYTORIUM OCEANU INDYJSKIEGO","IO",null,11,"NrNiemcy",11,"Opis"]
["0210 GOSPODARKA LEŚNA I POZOSTAŁA DZIAŁALNOŚĆ LEŚNA, Z WYŁĄCZENIEM POZYSKIWANIA PRODUKTÓW LEŚNYCH"," ","URZĄD SKARBOWY W CHEŁMNIE","0407",null,"1.6","Paliwo zakupione w celu odsprzedaży",null,null,null,null,null,null,null,null,null,"angielski","en",null,"BRAZYLIA","BR",null,"BURKINA FASO","BF",null,12,"KodTow",12,"Jezyk"]
["0220 POZYSKIWANIE DREWNA"," ","URZĄD SKARBOWY W CHODZIEŻY","3037",null,"1.7","Paliwo do celów przewozu towarów",null,null,null,null,null,null,null,null,null,"FRANCJA",null,null,"BRUNEI DARUSSALAM","BN",null,"BURUNDI","BI",null,13,"Podkod",13,"Waluta"]
["0230 POZYSKIWANIE DZIKO ROSNĄCYCH PRODUKTÓW LEŚNYCH, Z WYŁĄCZENIEM DREWNA"," ","URZĄD SKARBOWY W CHOJNICACH","2203",null,"1.8","Paliwo do samochodów osobowych i kombivanów",null,null,null,null,null,null,null,null,null,"francuski","fr",null,"BRYTYJSKIE TERYTORIUM OCEANU INDYJSKIEGO","IO",null,"CHILE","CL",null,14,"Opis",14,"Podstawa"]
["0240 DZIAŁALNOŚĆ USŁUGOWA ZWIĄZANA Z LEŚNICTWEM"," ","URZĄD SKARBOWY W CHORZOWIE","2406",null,"1.8.1","Używanych wyłącznie do prowadzenia działalności gospodarczej"," ",null,null,null,null,null,null,null,null,"angielski","en",null,"BUŁGARIA","BG",null,"CHINY","CN",null,15,"Jezyk",15,"VAT"]
["0311 RYBOŁÓWSTWO W WODACH MORSKICH"," ","URZĄD SKARBOWY W CHOSZCZNIE","3203",null,"1.8.2","Używanych częściowo do zarobkowego przewozu osób, nauki jazdy lub przeznaczonych do wynajmu"," ",null,null,null,null,null,null,null,null,"GRECJA",null,null,"BURKINA FASO","BF",null,"CURAÇAO","CW",null,16,"Waluta",16,"Proporcja"]
["0312 RYBOŁÓWSTWO W WODACH ŚRÓDLĄDOWYCH"," ","URZĄD SKARBOWY W CHRZANOWIE","1204",null,"1.8.3","Używanych częściowo do innych celów niż określone w pkt 1.8.2"," ",null,null,null,null,null,null,null,null,"grecki","el",null,"BURUNDI","BI",null,"CZAD","TD",null,17,"Podstawa",17,"VATZwrot"]
["0321 AKWAKULTURA W WODACH MORSKICH"," ","URZĄD SKARBOWY W CIECHANOWIE","1403",null,"1.9","Paliwo do motocykli, przyczep kempingowych i łodzi rekreacyjno-sportowych oraz statków powietrznych o masie poniżej 1550 kg"," ",null,null,null,null,null,null,null,null,"angielski","en",null,"CEUTA","XC",null,"CZARNOGÓRA","ME",null,18,"VAT"]
["0322 AKWAKULTURA W WODACH ŚRÓDLĄDOWYCH"," ","URZĄD SKARBOWY W CIESZYNIE","2407",null,"1.9.1","Używanych do zarobkowego przewozu osób, nauki jazdy lub przeznaczonych do wynajmu"," ",null,null,null,null,null,null,null,null,"francuski","fr",null,"CHILE","CL",null,"DOMINIKA","DM",null,19,"Proporcja"]
["0330 DZIAŁALNOŚĆ USŁUGOWA WSPOMAGAJĄCA RYBOŁÓWSTWO I AKWAKULTURĘ"," ","URZĄD SKARBOWY W CZARNKOWIE","3002",null,"1.9.2","Używanych do prowadzenia działalności gospodarczej"," ",null,null,null,null,null,null,null,null,"HISZPANIA",null,null,"CHINY","CN",null,"DOMINIKANA","DO",null,20,"VATZwrot"]
["0510 WYDOBYWANIE WĘGLA KAMIENNEGO"," ","URZĄD SKARBOWY W CZECHOWICACH-DZIEDZICACH","2408",null,"1.10","Paliwo do maszyn i ciągników rolniczych"," ",null,null,null,null,null,null,null,null,"hiszpański","es",null,"CHORWACJA","HR",null,"DŻIBUTI","DJ"]
["0520 WYDOBYWANIE WĘGLA BRUNATNEGO (LIGNITU)"," ","PIERWSZY URZĄD SKARBOWY W CZĘSTOCHOWIE","2409",null,"1.10.1","Benzyna"," ",null,null,null,null,null,null,null,null,"angielski","en",null,"CURAÇAO","CW",null,"EGIPT","EG"]
["0610 GÓRNICTWO ROPY NAFTOWEJ"," ","DRUGI URZĄD SKARBOWY W CZĘSTOCHOWIE","2410",null,"1.10.2","Olej napędowy"," ",null,null,null,null,null,null,null,null,"NIDERLANDY",null,null,"CYPR","CY",null,"EKWADOR","EC"]
["0620 GÓRNICTWO GAZU ZIEMNEGO"," ","URZĄD SKARBOWY W CZŁUCHOWIE","2204",null,"1.10.3","LPG"," ",null,null,null,null,null,null,null,null,"holenderski","nl",null,"CZAD","TD",null,"ERYTREA","ER"]
["0710 GÓRNICTWO RUD ŻELAZA"," ","URZĄD SKARBOWY W DĄBROWIE GÓRNICZEJ","2411",null,"1.10.4","Gaz ziemny"," ",null,null,null,null,null,null,null,null,"angielski","en",null,"CZARNOGÓRA","ME",null,"ETIOPIA","ET"]
["0721 GÓRNICTWO RUD URANU I TORU"," ","URZĄD SKARBOWY W DĄBROWIE TARNOWSKIEJ","1205",null,"1.10.5","Biopaliwo"," ",null,null,null,null,null,null,null,null,"niemiecki","de",null,"CZECHY","CZ",null,"FALKLANDY","FK"]
["0729 GÓRNICTWO POZOSTAŁYCH RUD METALI NIEŻELAZNYCH"," ","URZĄD SKARBOWY W DĘBICY","1803",null,"1.11","Paliwo do środków transportu osób, z mniej niż 9 miejscami, lub do wypożyczonych samochodów"," ",null,null,null,null,null,null,null,null,"IRLANDIA",null,null,"DANIA","DK",null,"FIDŻI REPUBLIKA","FJ"]
["0811 WYDOBYWANIE KAMIENI OZDOBNYCH, WAPIENIA, GIPSU, ŁUPKÓW ORAZ POZOSTAŁYCH KAMIENI I SKAŁ"," ","URZĄD SKARBOWY W DRAWSKU POMORSKIM","3204",null,"1.11.1","Benzyna"," ",null,null,null,null,null,null,null,null,"angielski","en",null,"DOMINIKA","DM",null,"FILIPINY","PH"]
["0812 WYDOBYWANIE ŻWIRU, PIASKU, GLINY I KAOLINU"," ","URZĄD SKARBOWY W DREZDENKU","0812",null,"1.11.2","Olej napędowy"," ",null,null,null,null,null,null,null,null,"irlandzki","ga",null,"DOMINIKANA","DO",null,"FINLANDIA","FI"]
["0891 WYDOBYWANIE MINERAŁÓW DLA PRZEMYSŁU CHEMICZNEGO ORAZ DO PRODUKCJI NAWOZÓW"," ","URZĄD SKARBOWY W DZIAŁDOWIE","2804",null,"1.11.3","LPG"," ",null,null,null,null,null,null,null,null,"LITWA",null,null,"DŻIBUTI","DJ",null,"FRANCUSKIE TERYTORIUM POŁUDNIOWE","TF"]
["0892 WYDOBYWANIE TORFU"," ","URZĄD SKARBOWY W DZIERŻONIOWIE","0204",null,"1.11.4","Gaz ziemny"," ",null,null,null,null,null,null,null,null,"litewski","lt",null,"EGIPT","EG",null,"GABON","GA"]
["0893 WYDOBYWANIE SOLI"," ","URZĄD SKARBOWY W ELBLĄGU","2805",null,"1.11.5","Biopaliwo"," ",null,null,null,null,null,null,null,null,"angielski","en",null,"EKWADOR","EC",null,"GAMBIA","GM"]
["0899 POZOSTAŁE GÓRNICTWO I WYDOBYWANIE, GDZIE INDZIEJ NIESKLASYFIKOWANE"," ","URZĄD SKARBOWY W EŁKU","2806",null,"1.12","Paliwo do środków transportu osób innych niż wymienione w pkt 1.8 i 1.9"," ",null,null,null,null,null,null,null,null,"LUKSEMBURG",null,null,"ERYTREA","ER",null,"GHANA","GH"]
["0910 DZIAŁALNOŚĆ USŁUGOWA WSPOMAGAJĄCA EKSPLOATACJĘ ZŁÓŻ ROPY NAFTOWEJ I GAZU ZIEMNEGO"," ","URZĄD SKARBOWY W GARWOLINIE","1404",null,"1.13","Paliwo do środków transportu, w odniesieniu do których nie istnieją ograniczenia prawa do odliczenia"," ",null,null,null,null,null,null,null,null,"francuski","fr",null,"ESTONIA","EE",null,"GIBRALTAR","GI"]
["0990 DZIAŁALNOŚĆ USŁUGOWA WSPOMAGAJĄCA POZOSTAŁE GÓRNICTWO I WYDOBYWANIE"," ","PIERWSZY URZĄD SKARBOWY W GDAŃSKU","2205",null,"1.14","Paliwo do środków transportu, w odniesieniu do których istnieją ograniczenia prawa do odliczenia"," ",null,null,null,null,null,null,null,null,"niemiecki","de",null,"ETIOPIA","ET",null,"GRECJA","EL"]
["1011 PRZETWARZANIE I KONSERWOWANIE MIĘSA, Z WYŁĄCZENIEM MIĘSA Z DROBIU"," ","DRUGI URZĄD SKARBOWY W GDAŃSKU","2206",null,"2.1","Wynajem środków transportu o masie powyżej 3500 kg, innych niż środki transportu dla pasażerów uiszczających opłatę"," ",null,null,null,null,null,null,null,null,"angielski","en",null,"FALKLANDY","FK",null,"GRENADA","GD"]
["1012 PRZETWARZANIE I KONSERWOWANIE MIĘSA Z DROBIU"," ","TRZECI URZĄD SKARBOWY W GDAŃSKU","2207",null,"2.2","Wynajem środków transportu o masie nie większej niż 3500 kg, innych niż środki transportu dla pasażerów uiszczających opłatę"," ",null,null,null,null,null,null,null,null,"ŁOTWA",null,null,"FIDŻI REPUBLIKA","FJ",null,"GRENLANDIA","GL"]
["1013 PRODUKCJA WYROBÓW Z MIĘSA, WŁĄCZAJĄC WYROBY Z MIĘSA DROBIOWEGO"," ","POMORSKI URZĄD SKARBOWY W GDAŃSKU","2271",null,"2.2.1","Na nieprzerwany okres powyżej 6 miesięcy"," ",null,null,null,null,null,null,null,null,"łotewski","lv",null,"FILIPINY","PH",null,"GRUZJA","GE"]
["1020 PRZETWARZANIE I KONSERWOWANIE RYB, SKORUPIAKÓW I MIĘCZAKÓW"," ","PIERWSZY URZĄD SKARBOWY W GDYNI","2208",null,"2.2.2","Na nieprzerwany okres nieprzekraczający 6 miesięcy"," ",null,null,null,null,null,null,null,null,"angielski","en",null,"FINLANDIA","FI",null,"GUAM","GU"]
["1031 PRZETWARZANIE I KONSERWOWANIE ZIEMNIAKÓW"," ","DRUGI URZĄD SKARBOWY W GDYNI","2209",null,"2.2.3","PKW"," ",null,null,null,null,null,null,null,null,"MALTA",null,null,"FRANCJA","FR",null,"GUERNSEY","GG"]
["1032 PRODUKCJA SOKÓW Z OWOCÓW I WARZYW"," ","URZĄD SKARBOWY W GIŻYCKU","2807",null,"2.2.4","LKW"," ",null,null,null,null,null,null,null,null,"maltański","mt",null,"FRANCUSKIE TERYTORIUM POŁUDNIOWE","TF",null,"GUJANA","GY"]
["1039 POZOSTAŁE PRZETWARZANIE I KONSERWOWANIE OWOCÓW I WARZYW"," ","PIERWSZY URZĄD SKARBOWY W GLIWICACH","2412",null,"2.3","Paliwo do środków transportu dla pasażerów uiszczających opłatę"," ",null,null,null,null,null,null,null,null,"angielski","en",null,"GABON","GA",null,"GUJANA FRANCUSKA","GF"]
["1041 PRODUKCJA OLEJÓW I POZOSTAŁYCH TŁUSZCZÓW PŁYNNYCH"," ","DRUGI URZĄD SKARBOWY W GLIWICACH","2413",null,"2.3.1","Na nieprzerwany okres powyżej 6 miesięcy"," ",null,null,null,null,null,null,null,null,"MELILLA",null,null,"GAMBIA","GM",null,"GWADELUPA","GP"]
["1042 PRODUKCJA MARGARYNY I PODOBNYCH TŁUSZCZÓW JADALNYCH"," ","URZĄD SKARBOWY W GŁOGOWIE","0205",null,"2.3.2","Na nieprzerwany okres nieprzekraczający 6 miesięcy"," ",null,null,null,null,null,null,null,null,"hiszpański","es",null,"GHANA","GH",null,"GWATEMALA","GT"]
["1051 WYTWARZANIE WYROBÓW MLECZARSKICH"," ","URZĄD SKARBOWY W GŁOWNIE","1004",null,"2.4","Wynajem środków transportu przeznaczonych do przewozu towarów"," ",null,null,null,null,null,null,null,null,"angielski","en",null,"GIBRALTAR","GI",null,"GWINEA","GN"]
["1052 PRODUKCJA LODÓW ŚMIETANKOWYCH I POZOSTAŁYCH LODÓW JADALNYCH"," ","URZĄD SKARBOWY W GŁUBCZYCACH","1603",null,"2.5","Wynajem samochodów osobowych i kombivanów"," ",null,null,null,null,null,null,null,null,"MONAKO",null,null,"GRECJA","EL",null,"GWINEA RÓWNIKOWA","GQ"]
["1061 WYTWARZANIE PRODUKTÓW PRZEMIAŁU ZBÓŻ"," ","URZĄD SKARBOWY W GNIEŹNIE","3003",null,"2.5.1","Używanych wyłącznie do prowadzenia działalności gospodarczej"," ",null,null,null,null,null,null,null,null,"francuski","fr",null,"GRENADA","GD",null,"GWINEA-BISSAU","GW"]
["1062 WYTWARZANIE SKROBI I WYROBÓW SKROBIOWYCH"," ","URZĄD SKARBOWY W GOLENIOWIE","3205",null,"2.5.2","Używanych częściowo do zarobkowego przewozu osób lub nauki jazdy"," ",null,null,null,null,null,null,null,null,"angielski","en",null,"GRENLANDIA","GL",null,"HAITI","HT"]
["1071 PRODUKCJA PIECZYWA; PRODUKCJA ŚWIEŻYCH WYROBÓW CIASTKARSKICH I CIASTEK"," ","URZĄD SKARBOWY W GOLUBIU-DOBRZYNIU","0422",null,"2.5.3","Używanych częściowo do innych celów niż określone w pkt 2.5.2"," ",null,null,null,null,null,null,null,null,"NIEMCY",null,null,"GRUZJA","GE",null,"HONDURAS","HN"]
["1072 PRODUKCJA SUCHARÓW, HERBATNIKÓW, KONSERWOWANYCH WYROBÓW CIASTKARSKICH I CIASTEK"," ","URZĄD SKARBOWY W GORLICACH","1206",null,"2.6","Wynajem motocykli, przyczep kempingowych i łodzi rekreacyjno-sportowych oraz statków powietrznych o masie mniejszej niż 1550 kg"," ",null,null,null,null,null,null,null,null,"niemiecki","de",null,"GUAM","GU",null,"HONGKONG","HK"]
["1073 PRODUKCJA WYROBÓW MĄCZNYCH"," ","URZĄD SKARBOWY W GORZOWIE WIELKOPOLSKIM","0802",null,"2.6.1","Używanych do zarobkowego przewozu osób lub nauki jazdy"," ",null,null,null,null,null,null,null,null,"angielski","en",null,"GUERNSEY","GG",null,"INDIE","IN"]
["1081 PRODUKCJA CUKRU"," ","URZĄD SKARBOWY W GOSTYNINIE","1405",null,"2.6.2","Używanych wyłącznie do innego rodzaju działalności gospodarczej"," ",null,null,null,null,null,null,null,null,"PORTUGALIA",null,null,"GUJANA","GY",null,"INDONEZJA","ID"]
["1082 PRODUKCJA KAKAO, CZEKOLADY I WYROBÓW CUKIERNICZYCH"," ","URZĄD SKARBOWY W GOSTYNIU","3004",null,"2.7","Wynajem samochodów osobowych kategorii M1"," ",null,null,null,null,null,null,null,null,"portugalski","pt",null,"GUJANA FRANCUSKA","GF",null,"IRAK","IQ"]
["1083 PRZETWÓRSTWO HERBATY I KAWY"," ","URZĄD SKARBOWY W GÓRZE","0233",null,"2.8","Wynajem środków transportu osób z więcej niż 9 miejscami"," ",null,null,null,null,null,null,null,null,"angielski","en",null,"GWADELUPA","GP",null,"IRAN","IR"]
["1084 PRODUKCJA PRZYPRAW"," ","URZĄD SKARBOWY W GRAJEWIE","2006",null,"2.9","Wynajem środków transportu osób z mniej niż 9 miejscami"," ",null,null,null,null,null,null,null,null,"RUMUNIA",null,null,"GWATEMALA","GT",null,"ISLANDIA","IS"]
["1085 WYTWARZANIE GOTOWYCH POSIŁKÓW I DAŃ"," ","URZĄD SKARBOWY W GRODZISKU MAZOWIECKIM","1406",null,"2.9.1","Używanych do działalności handlowej"," ",null,null,null,null,null,null,null,null,"rumuński","ro",null,"GWINEA","GN",null,"IZRAEL","IL"]
["1086 PRODUKCJA ARTYKUŁÓW SPOŻYWCZYCH HOMOGENIZOWANYCH I ŻYWNOŚCI DIETETYCZNEJ"," ","URZĄD SKARBOWY W GRODZISKU WIELKOPOLSKIM","3005",null,"2.9.2","Używanych do celów innych niż działalność handlowa"," ",null,null,null,null,null,null,null,null,"SŁOWACJA",null,null,"GWINEA RÓWNIKOWA","GQ",null,"JAMAJKA","JM"]
["1089 PRODUKCJA POZOSTAŁYCH ARTYKUŁÓW SPOŻYWCZYCH, GDZIE INDZIEJ NIESKLASYFIKOWANA"," ","URZĄD SKARBOWY W GRÓJCU","1407",null,"2.10","Wynajem środków transportu, w odniesieniu do których nie istnieją ograniczenia prawa do odliczenia"," ",null,null,null,null,null,null,null,null,"słowacki","sk",null,"GWINEA-BISSAU","GW",null,"JAPONIA","JP"]
["1091 PRODUKCJA GOTOWEJ PASZY DLA ZWIERZĄT GOSPODARSKICH"," ","URZĄD SKARBOWY W GRUDZIĄDZU","0408",null,"2.11","Wynajem środków transportu, w odniesieniu do których istnieją ograniczenia prawa do odliczenia"," ",null,null,null,null,null,null,null,null,"SŁOWENIA",null,null,"HAITI","HT",null,"JEMEN","YE"]
["1092 PRODUKCJA GOTOWEJ KARMY DLA ZWIERZĄT DOMOWYCH"," ","URZĄD SKARBOWY W GRYFICACH","3206",null,"2.12","Wynajem środków transportu innych niż wymienione w pkt 2.5 i 2.6"," ",null,null,null,null,null,null,null,null,"słoweński","sl",null,"HISZPANIA","ES",null,"JERSEY","JE"]
["1101 DESTYLOWANIE, REKTYFIKOWANIE I MIESZANIE ALKOHOLI"," ","URZĄD SKARBOWY W GRYFINIE","3207",null,"3.1","Wydatki związane ze środkami transportu o masie powyżej 3500 kg, innymi niż środki transportu dla pasażerów uiszczających opłatę"," ",null,null,null,null,null,null,null,null,"angielski","en",null,"HONDURAS","HN",null,"JORDANIA","JO"]
["1102 PRODUKCJA WIN GRONOWYCH"," ","URZĄD SKARBOWY W HAJNÓWCE","2015",null,"3.1.1","Zakup środków transportu o masie powyżej 3500 kg, innych niż środki transportu dla pasażerów uiszczających opłatę"," ",null,null,null,null,null,null,null,null,"SZWECJA",null,null,"HONGKONG","HK",null,"KAJMANY","KY"]
["1103 PRODUKCJA CYDRU I POZOSTAŁYCH OWOCOWYCH NAPOJÓW FERMENTOWANYCH"," ","URZĄD SKARBOWY W HRUBIESZOWIE","0605",null,"3.1.2","Utrzymanie środków transportu o masie powyżej 3500 kg, innych niż środki transportu dla pasażerów uiszczających opłatę"," ",null,null,null,null,null,null,null,null,"szwedzki","sv",null,"INDIE","IN",null,"KAMBODŻA","KH"]
["1104 PRODUKCJA POZOSTAŁYCH NIEDESTYLOWANYCH NAPOJÓW FERMENTOWANYCH"," ","URZĄD SKARBOWY W IŁAWIE","2808",null,"3.1.3","Zakup i instalacja wyposażenia środków transportu o masie powyżej 3500 kg, innych niż środki transportu dla pasażerów uiszczających opłatę"," ",null,null,null,null,null,null,null,null,"angielski","en",null,"INDONEZJA","ID",null,"KAMERUN","CM"]
["1105 PRODUKCJA PIWA"," ","URZĄD SKARBOWY W INOWROCŁAWIU","0409",null,"3.1.4","Garażowanie lub parkowanie środków transportu o masie powyżej 3500 kg, innych niż środki transportu dla pasażerów uiszczających opłatę"," ",null,null,null,null,null,null,null,null,"niemiecki","de",null,"IRAK","IQ",null,"KANADA","CA"]
["1106 PRODUKCJA SŁODU"," ","URZĄD SKARBOWY W JANOWIE LUBELSKIM","0606",null,"3.1.5","Inne wydatki związane ze środkami transportu o masie powyżej 3500 kg, innymi niż środki transportu dla pasażerów uiszczających opłatę"," ",null,null,null,null,null,null,null,null,"WĘGRY",null,null,"IRAN","IR",null,"KATAR","QA"]
["1107 PRODUKCJA NAPOJÓW BEZALKOHOLOWYCH I WÓD BUTELKOWANYCH"," ","URZĄD SKARBOWY W JAROCINIE","3006",null,"3.2","Wydatki związane ze środkami transportu o masie nie większej niż 3500 kg, innymi niż środki transportu dla pasażerów uiszczających opłatę"," ",null,null,null,null,null,null,null,null,"węgierski","hu",null,"IRLANDIA","IE",null,"KAZACHSTAN","KZ"]
["1200 PRODUKCJA WYROBÓW TYTONIOWYCH"," ","URZĄD SKARBOWY W JAROSŁAWIU","1804",null,"3.2.1","Zakup środków transportu o masie nie większej niż 3500 kg, innych niż środki transportu dla pasażerów uiszczających opłatę"," ",null,null,null,null,null,null,null,null,"angielski","en",null,"IRLANDIA PÓŁNOCNA","XI",null,"KENIA","KE"]
["1310 PRZYGOTOWANIE I PRZĘDZENIE WŁÓKIEN TEKSTYLNYCH"," ","URZĄD SKARBOWY W JASTRZĘBIU-ZDROJU","2414",null,"3.2.2","Utrzymanie środków transportu o masie nie większej niż 3500 kg, innych niż środki transportu dla pasażerów uiszczających opłatę"," ",null,null,null,null,null,null,null,null,"WIELKA BRYTANIA",null,null,"ISLANDIA","IS",null,"KIRGISTAN","KG"]
["1320 PRODUKCJA TKANIN"," ","URZĄD SKARBOWY W JAŚLE","1805",null,"3.2.3","Zakup instalacji i wyposażenia środków transportu o masie nie większej niż 3500 kg, innych niż środki transportu dla pasażerów uiszczających opłatę"," ",null,null,null,null,null,null,null,null,"angielski","en",null,"IZRAEL","IL",null,"KIRIBATI","KI"]
["1330 WYKOŃCZANIE WYROBÓW TEKSTYLNYCH"," ","URZĄD SKARBOWY W JAWORZE","0206",null,"3.2.4","Garażowanie lub parkowanie środków transportu o masie nie większej niż 3500 kg, innych niż środki transportu dla pasażerów uiszczających opłatę"," ",null,null,null,null,null,null,null,null,"WŁOCHY",null,null,"JAMAJKA","JM",null,"KOLUMBIA","CO"]
["1391 PRODUKCJA DZIANIN METRAŻOWYCH"," ","URZĄD SKARBOWY W JAWORZNIE","2415",null,"3.2.5","Inne wydatki związane ze środkami transportu o masie nie większej niż 3500 kg, innych niż środki transportu dla pasażerów uiszczających opłatę"," ",null,null,null,null,null,null,null,null,"włoski","it",null,"JAPONIA","JP",null,"KOMORY","KM"]
["1392 PRODUKCJA WYROBÓW TEKSTYLNYCH DLA GOSPODARSTW DOMOWYCH I GOTOWYCH ARTYKUŁÓW WYPOSAŻENIA WNĘTRZ"," ","URZĄD SKARBOWY W JELENIEJ GÓRZE","0207",null,"3.2.6","PKW"," ",null,null,null,null,null,null,null,null,"angielski","en",null,"JEMEN","YE",null,"KONGO","CG"]
["1393 PRODUKCJA DYWANÓW I CHODNIKÓW"," ","URZĄD SKARBOWY W JĘDRZEJOWIE","2603",null,"3.2.7","LKW"," ",null,null,null,null,null,null,null,null,"WYSPY KANARYJSKIE",null," ","JERSEY","JE",null,"KONGO, REPUBLIKA DEMOKRATYCZNA","CD"]
["1394 PRODUKCJA WYROBÓW POWROŹNICZYCH, LIN, SZPAGATÓW I WYROBÓW SIECIOWYCH"," ","URZĄD SKARBOWY W WEJHEROWIE","2220",null,"3.3","Wydatki związane ze środkami transportu dla pasażerów uiszczających opłatę"," ",null,null,null,null,null,null,null,null,"hiszpański","es",null,"JORDANIA","JO",null,"KOREAŃSKA REPUBLIKA LUDOWO-DEMOKRATYCZNA","KP"]
["1395 PRODUKCJA WŁÓKNIN I WYROBÓW WYKONANYCH Z WŁÓKNINY"," ","PIERWSZY URZĄD SKARBOWY W KALISZU","3007",null,"3.3.1","Zakup środków transportu dla pasażerów uiszczających opłatę"," ",null,null,null,null,null,null,null,null,"angielski","en",null,"KAJMANY","KY",null,"KOSOWO","XK"]
["1396 PRODUKCJA POZOSTAŁYCH TECHNICZNYCH I PRZEMYSŁOWYCH WYROBÓW TEKSTYLNYCH"," ","DRUGI URZĄD SKARBOWY W KALISZU","3008",null,"3.3.2","Konserwacja środków transportu dla pasażerów uiszczających opłatę"," ",null,null,null,null,null,null,null,null,"IRLANDIA PÓŁNOCNA",null," ","KAMBODŻA","KH",null,"KOSTARYKA","CR"]
["1399 PRODUKCJA POZOSTAŁYCH WYROBÓW TEKSTYLNYCH, GDZIE INDZIEJ NIESKLASYFIKOWANA"," ","DRUGI WIELKOPOLSKI URZĄD SKARBOWY W KALISZU","3072",null,"3.3.3","Zakup i instalacja wyposażenia środków transportu dla pasażerów uiszczających opłatę"," ",null,null,null,null,null,null,null,null,"angielski","en",null,"KAMERUN","CM",null,"KUBA","CU"]
["1410 PRODUKCJA ODZIEŻY DZIANEJ"," ","URZĄD SKARBOWY W KAMIENIU POMORSKIM","3208",null,"3.3.4","Garażowanie lub parkowanie środków transportu dla pasażerów uiszczających opłatę"," ",null,null,null,null,null,null,null,null,null,null,null,"KANADA","CA",null,"KUWEJT","KW"]
["1421 PRODUKCJA ODZIEŻY WIERZCHNIEJ"," ","URZĄD SKARBOWY W KAMIENNEJ GÓRZE","0208",null,"3.3.5","Inne wydatki związane ze środkami transportu dla pasażerów uiszczających opłatę"," ",null,null,null,null,null,null,null,null,null,null,null,"KATAR","QA",null,"LAOS","LA"]
["1422 PRODUKCJA BIELIZNY"," ","URZĄD SKARBOWY W KARTUZACH","2210",null,"3.4","Wydatki związane ze środkami transportu przeznaczonymi do przewozu towarów"," ",null,null,null,null,null,null,null,null,null,null,null,"KAZACHSTAN","KZ",null,"LESOTHO","LS"]
["1423 PRODUKCJA ODZIEŻY ROBOCZEJ"," ","PIERWSZY URZĄD SKARBOWY W KATOWICACH","2416",null,"3.4.1","Zakup środków transportu przeznaczonych do przewozu towarów"," ",null,null,null,null,null,null,null,null,null,null,null,"KENIA","KE",null,"LIBAN","LB"]
["1424 PRODUKCJA ODZIEŻY SKÓRZANEJ I WYROBÓW FUTRZARSKICH"," ","DRUGI URZĄD SKARBOWY W KATOWICACH","2417",null,"3.4.2","Konserwacja środków transportu przeznaczonych do przewozu towarów"," ",null,null,null,null,null,null,null,null,null,null,null,"KIRGISTAN","KG",null,"LIBERIA","LR"]
["1429 PRODUKCJA POZOSTAŁEJ ODZIEŻY I DODATKÓW DO ODZIEŻY, GDZIE INDZIEJ NIESKLASYFIKOWANA"," ","URZĄD SKARBOWY W KAZIMIERZY WIELKIEJ","2614",null,"3.4.3","Garażowanie lub parkowanie środków transportu przeznaczonych do przewozu towarów"," ",null,null,null,null,null,null,null,null,null,null,null,"KIRIBATI","KI",null,"LIBIA","LY"]
["1511 GARBOWANIE, BARWIENIE, WYPRAWA SKÓR, W TYM FUTERKOWYCH"," ","URZĄD SKARBOWY W KĘDZIERZYNIE-KOŹLU","1604",null,"3.4.4","Wydatki związane ze środkami transportu przeznaczonymi do przewozu towarów, inne niż wymienione w pkt 3.4.1, 3.4.2 i 3.4.3"," ",null,null,null,null,null,null,null,null,null,null,null,"KOLUMBIA","CO",null,"LIECHTENSTEIN","LI"]
["1512 PRODUKCJA TOREB BAGAŻOWYCH, TOREB RĘCZNYCH I PODOBNYCH WYROBÓW KALETNICZYCH; PRODUKCJA WYROBÓW RYMARSKICH Z DOWOLNEGO MATERIAŁU"," ","URZĄD SKARBOWY W KĘPNIE","3009",null,"3.5","Konserwacja samochodów osobowych i kombivanów"," ",null,null,null,null,null,null,null,null,null,null,null,"KOMORY","KM",null,"MACEDONIA","MK"]
["1520 PRODUKCJA OBUWIA"," ","URZĄD SKARBOWY W KĘTRZYNIE","2809",null,"3.5.1","Używanych wyłącznie do prowadzenia działalności gospodarczej"," ",null,null,null,null,null,null,null,null,null,null,null,"KONGO","CG",null,"MADAGASKAR","MG"]
["1611 PRODUKCJA WYROBÓW TARTACZNYCH"," ","PIERWSZY URZĄD SKARBOWY W KIELCACH","2604",null,"3.5.2","Używanych częściowo do zarobkowego przewozu osób, nauki jazdy lub przeznaczonych do wynajmu"," ",null,null,null,null,null,null,null,null,null,null,null,"KONGO, REPUBLIKA DEMOKRATYCZNA","CD",null,"MAJOTTA","YT"]
["1612 OBRÓBKA I WYKOŃCZANIE WYROBÓW TARTACZNYCH"," ","DRUGI URZĄD SKARBOWY W KIELCACH","2605",null,"3.5.3","Używanych częściowo do prowadzenia działalności gospodarczej innej niż wymieniona w pkt 3.5.2"," ",null,null,null,null,null,null,null,null,null,null,null,"KOREAŃSKA REPUBLIKA LUDOWO-DEMOKRATYCZNA","KP",null,"MAKAU","MO"]
["1621 PRODUKCJA ARKUSZY FORNIROWYCH I PŁYT WYKONANYCH NA BAZIE DREWNA"," ","URZĄD SKARBOWY W KLUCZBORKU","1605",null,"3.6","Konserwacja motocykli, przyczep kempingowych i łodzi rekreacyjno-sportowych oraz statków powietrznych o masie powyżej 1550 kg"," ",null,null,null,null,null,null,null,null,null,null,null,"KOSOWO","XK",null,"MALAWI","MW"]
["1622 PRODUKCJA GOTOWYCH PARKIETÓW PODŁOGOWYCH"," ","URZĄD SKARBOWY W KŁOBUCKU","2418",null,"3.6.1","Używanych do zarobkowego przewozu osób, nauki jazdy lub przeznaczonych do wynajmu"," ",null,null,null,null,null,null,null,null,null,null,null,"KOSTARYKA","CR",null,"MALEDIWY","MV"]
["1623 PRODUKCJA POZOSTAŁYCH WYROBÓW STOLARSKICH I CIESIELSKICH DLA BUDOWNICTWA"," ","URZĄD SKARBOWY W KŁODZKU","0209",null,"3.6.2","Używanych do innego rodzaju działalności gospodarczej"," ",null,null,null,null,null,null,null,null,null,null,null,"KUBA","CU",null,"MALEZJA","MY"]
["1624 PRODUKCJA OPAKOWAŃ DREWNIANYCH"," ","URZĄD SKARBOWY W KOLBUSZOWEJ","1806",null,"3.7","Wydatki, inne niż na konserwację, garażowanie lub parkowanie samochodów osobowych i kombivanów"," ",null,null,null,null,null,null,null,null,null,null,null,"KUWEJT","KW",null,"MALI","ML"]
["1625 PRODUKCJA DRZWI I OKIEN Z DREWNA"," ","URZĄD SKARBOWY W KOLE","3010",null,"3.7.1","Używanych wyłącznie do prowadzenia działalności gospodarczej"," ",null,null,null,null,null,null,null,null,null,null,null,"LAOS","LA",null,"MARIANY PÓŁNOCNE","MP"]
["1626 PRODUKCJA PALIW STAŁYCH Z BIOMASY ROŚLINNEJ"," ","URZĄD SKARBOWY W KOLNIE","2007",null,"3.7.2","Używanych częściowo do zarobkowego przewozu osób, nauki jazdy lub przeznaczonych do wynajmu"," ",null,null,null,null,null,null,null,null,null,null,null,"LESOTHO","LS",null,"MAROKO","MA"]
["1627 WYKOŃCZANIE WYROBÓW DREWNIANYCH"," ","URZĄD SKARBOWY W KOŁOBRZEGU","3209",null,"3.7.3","Używanych częściowo w celach innych niż wymienione w pkt 3.7.2"," ",null,null,null,null,null,null,null,null,null,null,null,"LIBAN","LB",null,"MARTYNIKA","MQ"]
["1628 PRODUKCJA POZOSTAŁYCH WYROBÓW Z DREWNA ORAZ WYROBÓW Z KORKA, SŁOMY I MATERIAŁÓW UŻYWANYCH DO WYPLATANIA"," ","URZĄD SKARBOWY W KONINIE","3011",null,"3.8","Wydatki inne niż na konserwację, garażowanie i parkowanie motocykli, przyczep kempingowych i łodzi rekreacyjno-sportowych oraz statków powietrznych o masie powyżej 1550 kg"," ",null,null,null,null,null,null,null,null,null,null,null,"LIBERIA","LR",null,"MAURETANIA","MR"]
["1711 PRODUKCJA MASY WŁÓKNISTEJ"," ","URZĄD SKARBOWY W KOŃSKICH","2606",null,"3.8.1","Używanych do zarobkowego przewozu osób, nauki jazdy, przeznaczonych do wynajmu lub odsprzedaży"," ",null,null,null,null,null,null,null,null,null,null,null,"LIBIA","LY",null,"MAURITIUS","MU"]
["1712 PRODUKCJA PAPIERU I TEKTURY"," ","PIERWSZY URZĄD SKARBOWY W KOSZALINIE","3210",null,"3.8.2","Używanych do innego rodzaju działalności gospodarczej"," ",null,null,null,null,null,null,null,null,null,null,null,"LIECHTENSTEIN","LI",null,"MEKSYK","MX"]
["1721 PRODUKCJA PAPIERU FALISTEGO, TEKTURY FALISTEJ ORAZ OPAKOWAŃ Z PAPIERU I TEKTURY"," ","DRUGI URZĄD SKARBOWY W KOSZALINIE","3211",null,"3.9","Zakup samochodów osobowych kategorii M1"," ",null,null,null,null,null,null,null,null,null,null,null,"LITWA","LT",null,"MELILLA","XL"]
["1722 PRODUKCJA ARTYKUŁÓW GOSPODARSTWA DOMOWEGO, TOALETOWYCH I SANITARNYCH"," ","URZĄD SKARBOWY W KOŚCIANIE","3012",null,"3.10","Zakup akcesoriów do samochodów osobowych kategorii M1, włącznie z montażem i instalacją"," ",null,null,null,null,null,null,null,null,null,null,null,"ŁOTWA","LV",null,"MIKRONEZJA","FM"]
["1723 PRODUKCJA ARTYKUŁÓW PAPIERNICZYCH"," ","URZĄD SKARBOWY W KOŚCIERZYNIE","2211",null,"3.11","Wydatki związane ze środkami transportu osób z więcej niż 9 miejscami lub środkami transportu przeznaczonymi do przewozu towarów"," ",null,null,null,null,null,null,null,null,null,null,null,"LUKSEMBURG","LU",null,"MINOR","UM"]
["1724 PRODUKCJA TAPET"," ","URZĄD SKARBOWY W KOZIENICACH","1408",null,"3.12","Wydatki związane ze środkami transportu osób z mniej niż 9 miejscami używanymi do celów działalności handlowej"," ",null,null,null,null,null,null,null,null,null,null,null,"MACEDONIA","MK",null,"MOŁDOWA","MD"]
["1725 PRODUKCJA POZOSTAŁYCH WYROBÓW Z PAPIERU I TEKTURY"," ","PIERWSZY URZĄD SKARBOWY KRAKÓW","1207",null,"3.13","Wydatki związane ze środkami transportu, w odniesieniu do których nie istnieją ograniczenia prawa do odliczenia"," ",null,null,null,null,null,null,null,null,null,null,null,"MADAGASKAR","MG",null,"MONAKO","MC"]
["1811 DRUKOWANIE GAZET"," ","URZĄD SKARBOWY KRAKÓW-KROWODRZA","1208",null,"3.14","Wydatki związane ze środkami transportu, w odniesieniu do których istnieją ograniczenia prawa do odliczenia"," ",null,null,null,null,null,null,null,null,null,null,null,"MAJOTTA","YT",null,"MONGOLIA","MN"]
["1812 POZOSTAŁE DRUKOWANIE"," ","URZĄD SKARBOWY KRAKÓW-NOWA HUTA","1209",null,"3.15","Konserwacja środków transportu osób innych niż samochody osobowe i kombivany, motocykle, przyczepy kempingowe i łodzie rekreacyjno-sportowe oraz statki powietrzne o masie powyżej 1550 kg"," ",null,null,null,null,null,null,null,null,null,null,null,"MAKAU","MO",null,"MONTSERRAT","MS"]
["1813 DZIAŁALNOŚĆ USŁUGOWA ZWIĄZANA Z PRZYGOTOWYWANIEM DO DRUKU"," ","URZĄD SKARBOWY KRAKÓW-PODGÓRZE","1210",null,"3.16","Garażowanie lub parkowanie środków transportu osób"," ",null,null,null,null,null,null,null,null,null,null,null,"MALAWI","MW",null,"MOZAMBIK","MZ"]
["1814 INTROLIGATORSTWO I PODOBNE USŁUGI"," ","URZĄD SKARBOWY KRAKÓW-PRĄDNIK","1211",null,"3.17","Wydatki inne niż na konserwację, garażowanie lub parkowanie środków transportu innych niż samochody osobowe i kombivany, motocykle, przyczepy kempingowe i łodzie rekreacyjno-sportowe oraz statki powietrzne o masie powyżej 1550 kg"," ",null,null,null,null,null,null,null,null,null,null,null,"MALEDIWY","MV",null,"MYANMAR (BURMA)","MM"]
["1820 REPRODUKCJA ZAPISANYCH NOŚNIKÓW INFORMACJI"," ","URZĄD SKARBOWY KRAKÓW-STARE MIASTO","1212",null,"4.1","Opłaty drogowe za środki transportu o masie powyżej 3500 kg, inne niż środki transportu dla pasażerów uiszczających opłatę"," ",null,null,null,null,null,null,null,null,null,null,null,"MALEZJA","MY",null,"NAMIBIA","NA"]
["1910 WYTWARZANIE I PRZETWARZANIE KOKSU"," ","URZĄD SKARBOWY KRAKÓW-ŚRÓDMIEŚCIE","1213",null,"4.2","Opłaty drogowe za pojazdy o masie nie większej niż 3500 kg, inne niż środki transportu dla pasażerów uiszczających opłatę"," ",null,null,null,null,null,null,null,null,null,null,null,"MALI","ML",null,"NAURU","NR"]
["1920 WYTWARZANIE I PRZETWARZANIE PRODUKTÓW RAFINACJI ROPY NAFTOWEJ ORAZ PRODUKTÓW Z PALIW KOPALNYCH"," ","DRUGI URZĄD SKARBOWY KRAKÓW","1228",null,"4.2.1","PKW"," ",null,null,null,null,null,null,null,null,null,null,null,"MALTA","MT",null,"NEPAL","NP"]
["2011 PRODUKCJA GAZÓW TECHNICZNYCH"," ","URZĄD SKARBOWY W KRAPKOWICACH","1613",null,"4.2.2","LKW"," ",null,null,null,null,null,null,null,null,null,null,null,"MARIANY PÓŁNOCNE","MP",null,"NIGER","NE"]
["2012 PRODUKCJA BARWNIKÓW I PIGMENTÓW"," ","URZĄD SKARBOWY W KRASNYMSTAWIE","0607",null,"4.3","Opłaty drogowe za środki transportu dla pasażerów uiszczających opłatę"," ",null,null,null,null,null,null,null,null,null,null,null,"MAROKO","MA",null,"NIGERIA","NG"]
["2013 PRODUKCJA POZOSTAŁYCH PODSTAWOWYCH CHEMIKALIÓW NIEORGANICZNYCH"," ","URZĄD SKARBOWY W KRAŚNIKU","0608",null,"4.4","Opłaty drogowe za środki transportu przejeżdżające przez most nad Wielkim Bełtem"," ",null,null,null,null,null,null,null,null,null,null,null,"MARTYNIKA","MQ",null,"NIKARAGUA","NI"]
["2014 PRODUKCJA POZOSTAŁYCH PODSTAWOWYCH CHEMIKALIÓW ORGANICZNYCH"," ","URZĄD SKARBOWY W KROŚNIE","1807",null,"4.5","Opłaty drogowe za wszelkie środki transportu przejeżdżające przez most nad cieśniną Sund"," ",null,null,null,null,null,null,null,null,null,null,null,"MAURETANIA","MR",null,"NIUE","NU"]
["2015 PRODUKCJA NAWOZÓW I ZWIĄZKÓW AZOTOWYCH"," ","URZĄD SKARBOWY W KROŚNIE ODRZAŃSKIM","0803",null,"4.6","Opłaty drogowe za środki transportu dla pasażerów uiszczających opłatę, z więcej niż 9 miejscami"," ",null,null,null,null,null,null,null,null,null,null,null,"MAURITIUS","MU",null,"NORFOLK","NF"]
["2016 PRODUKCJA TWORZYW SZTUCZNYCH W FORMACH PODSTAWOWYCH"," ","URZĄD SKARBOWY W KROTOSZYNIE","3013",null,"4.7","Opłaty drogowe za środki transportu dla pasażerów uiszczających opłatę, z mniej niż 9 miejscami"," ",null,null,null,null,null,null,null,null,null,null,null,"MEKSYK","MX",null,"NORWEGIA","NO"]
["2017 PRODUKCJA KAUCZUKU SYNTETYCZNEGO W FORMACH PODSTAWOWYCH"," ","URZĄD SKARBOWY W KUTNIE","1005",null,"4.8","Opłaty drogowe za pojazdy używane w ramach konferencji, targów, wystaw lub kongresów"," ",null,null,null,null,null,null,null,null,null,null,null,"MELILLA","XL",null,"NOWA KALEDONIA","NC"]
["2020 PRODUKCJA PESTYCYDÓW, ŚRODKÓW DEZYNFEKUJĄCYCH I POZOSTAŁYCH ŚRODKÓW AGROCHEMICZNYCH"," ","URZĄD SKARBOWY W KWIDZYNIE","2212",null,"4.8.1","Uiszczane przez organizatora imprezy"," ",null,null,null,null,null,null,null,null,null,null,null,"MIKRONEZJA","FM",null,"NOWA ZELANDIA","NZ"]
["2030 PRODUKCJA FARB, LAKIERÓW I PODOBNYCH POWŁOK, FARB DRUKARSKICH I MAS USZCZELNIAJĄCYCH"," ","URZĄD SKARBOWY W LEGIONOWIE","1409",null,"4.8.2","Uiszczane przez uczestnika imprezy, w przypadku gdy opłata pobierana jest bezpośrednio przez organizatora"," ",null,null,null,null,null,null,null,null,null,null,null,"MINOR","UM",null,"OKUPOWANE TERYTORIUM PALESTYNY","PS"]
["2041 PRODUKCJA MYDŁA I DETERGENTÓW, ŚRODKÓW MYJĄCYCH I CZYSZCZĄCYCH"," ","URZĄD SKARBOWY W LEGNICY","0210",null,"5.1","Podatnika lub osoby zatrudnionej przez podatnika"," ",null,null,null,null,null,null,null,null,null,null,null,"MOŁDOWA","MD",null,"OMAN","OM"]
["2042 PRODUKCJA WYROBÓW KOSMETYCZNYCH I TOALETOWYCH"," ","URZĄD SKARBOWY W LESKU","1808",null,"5.2","Osoby niebędącej podatnikiem lub osobą zatrudnioną przez podatnika"," ",null,null,null,null,null,null,null,null,null,null,null,"MONAKO","MC",null,"PAKISTAN","PK"]
["2051 PRODUKCJA BIOPALIW PŁYNNYCH"," ","URZĄD SKARBOWY W LESZNIE","3014",null,"5.3","Podatnika lub osoby zatrudnionej przez podatnika w ramach konferencji, targów, wystaw lub kongresów"," ",null,null,null,null,null,null,null,null,null,null,null,"MONGOLIA","MN",null,"PALAU","PW"]
["2059 PRODUKCJA POZOSTAŁYCH WYROBÓW CHEMICZNYCH, GDZIE INDZIEJ NIESKLASYFIKOWANA"," ","URZĄD SKARBOWY W LEŻAJSKU","1809",null,"5.3.1","Ponoszone przez organizatora imprezy"," ",null,null,null,null,null,null,null,null,null,null,null,"MONTSERRAT","MS",null,"PANAMA","PA"]
["2060 PRODUKCJA WŁÓKIEN CHEMICZNYCH"," ","URZĄD SKARBOWY W LĘBORKU","2213",null,"5.3.2","Ponoszone przez uczestnika imprezy, w przypadku gdy opłata pobierana jest bezpośrednio przez organizatora"," ",null,null,null,null,null,null,null,null,null,null,null,"MOZAMBIK","MZ",null,"PAPUA NOWA GWINEA","PG"]
["2110 PRODUKCJA PODSTAWOWYCH SUBSTANCJI FARMACEUTYCZNYCH"," ","URZĄD SKARBOWY W LIMANOWEJ","1214",null,"6.1","Wydatki na zakwaterowanie podatnika lub osoby zatrudnionej przez podatnika"," ",null,null,null,null,null,null,null,null,null,null,null,"MYANMAR (BURMA)","MM",null,"PARAGWAJ","PY"]
["2120 PRODUKCJA LEKÓW I POZOSTAŁYCH WYROBÓW FARMACEUTYCZNYCH"," ","URZĄD SKARBOWY W LIPNIE","0410",null,"6.2","Wydatki na zakwaterowanie osoby niebędącej podatnikiem lub osobą zatrudnioną przez podatnika"," ",null,null,null,null,null,null,null,null,null,null,null,"NAMIBIA","NA",null,"PERU","PE"]
["2211 PRODUKCJA, BIEŻNIKOWANIE I REGENEROWANIE OPON Z GUMY ORAZ PRODUKCJA DĘTEK"," ","URZĄD SKARBOWY W LIPSKU","1447",null,"6.3","Wydatki na zakwaterowanie podatnika lub osoby zatrudnionej przez podatnika uczestniczącej w konferencjach związanych z prowadzeniem działalności gospodarczej"," ",null,null,null,null,null,null,null,null,null,null,null,"NAURU","NR",null,"PITCAIRN","PN"]
["2212 PRODUKCJA POZOSTAŁYCH WYROBÓW Z GUMY"," ","URZĄD SKARBOWY W LUBACZOWIE","1810",null,"6.4","Wydatki na zakwaterowanie podatnika lub osoby zatrudnionej przez podatnika w ramach konferencji, targów, wystaw lub kongresów"," ",null,null,null,null,null,null,null,null,null,null,null,"NEPAL","NP",null,"POLINEZJA FRANCUSKA","PF"]
["2221 PRODUKCJA PŁYT, ARKUSZY, RUR I KSZTAŁTOWNIKÓW Z TWORZYW SZTUCZNYCH"," ","URZĄD SKARBOWY W LUBANIU","0211",null,"6.4.1","Ponoszone przez organizatora imprezy"," ",null,null,null,null,null,null,null,null,null,null,null,"NIDERLANDY","NL",null,"POŁUDNIOWA GEORGIA I POŁUD.WYSPY SANDWICH","GS"]
["2222 PRODUKCJA OPAKOWAŃ Z TWORZYW SZTUCZNYCH"," ","URZĄD SKARBOWY W LUBARTOWIE","0609",null,"6.4.2","Ponoszone przez uczestnika imprezy, w przypadku gdy opłata pobierana jest bezpośrednio przez organizatora"," ",null,null,null,null,null,null,null,null,null,null,null,"NIEMCY","DE",null,"PORTORYKO","PR"]
["2223 PRODUKCJA DRZWI I OKIEN Z TWORZYW SZTUCZNYCH"," ","URZĄD SKARBOWY W LUBINIE","0212",null,"6.5","Wydatki na zakwaterowanie osoby zatrudnionej przez podatnika, dostarczającej towary lub świadczącej usługi"," ",null,null,null,null,null,null,null,null,null,null,null,"NIGER","NE",null,"REP.ŚRODKOWOAFRYKAŃSKA","CF"]
["2224 PRODUKCJA WYROBÓW DLA BUDOWNICTWA Z TWORZYW SZTUCZNYCH"," ","PIERWSZY URZĄD SKARBOWY W LUBLINIE","0610",null,"6.6","Wydatki na zakwaterowanie zakupione w celu dalszej odsprzedaży tej usługi"," ",null,null,null,null,null,null,null,null,null,null,null,"NIGERIA","NG",null,"REPUBLIKA KOREI","KR"]
["2225 OBRÓBKA I WYKOŃCZANIE WYROBÓW Z TWORZYW SZTUCZNYCH"," ","DRUGI URZĄD SKARBOWY W LUBLINIE","0611",null,"6.7","Wydatki na zakwaterowanie inne niż wymienione w pkt 6.5 lub 6.6"," ",null,null,null,null,null,null,null,null,null,null,null,"NIKARAGUA","NI",null,"REPUBLIKA POŁUDNIOWEJ AFRYKI","ZA"]
["2226 PRODUKCJA POZOSTAŁYCH WYROBÓW Z TWORZYW SZTUCZNYCH"," ","TRZECI URZĄD SKARBOWY W LUBLINIE","0612",null,"7.1","Żywność i napoje dostarczane w hotelach, barach, restauracjach, pensjonatach, w tym śniadania"," ",null,null,null,null,null,null,null,null,null,null,null,"NIUE","NU",null,"REUNION","RE"]
["2311 PRODUKCJA SZKŁA PŁASKIEGO"," ","LUBELSKI URZĄD SKARBOWY W LUBLINIE","0671",null,"7.1.1","Na rzecz podatnika lub osoby zatrudnionej przez podatnika"," ",null,null,null,null,null,null,null,null,null,null,null,"NORFOLK","NF",null,"ROSJA","RU"]
["2312 KSZTAŁTOWANIE I OBRÓBKA SZKŁA PŁASKIEGO"," ","URZĄD SKARBOWY W LUBLIŃCU","2419",null,"7.1.2","Na rzecz osoby niebędącej podatnikiem ani osobą zatrudnioną przez podatnika"," ",null,null,null,null,null,null,null,null,null,null,null,"NORWEGIA","NO",null,"RWANDA","RW"]
["2313 PRODUKCJA SZKŁA GOSPODARCZEGO"," ","URZĄD SKARBOWY W LWÓWKU ŚLĄSKIM","0213",null,"7.2","Żywność i napoje dostarczane w ramach konferencji, targów, wystaw lub kongresów"," ",null,null,null,null,null,null,null,null,null,null,null,"NOWA KALEDONIA","NC",null,"SAHARA ZACHODNIA","EH"]
["2314 PRODUKCJA WŁÓKIEN SZKLANYCH"," ","URZĄD SKARBOWY W ŁAŃCUCIE","1811",null,"7.2.1","Na rzecz organizatora imprezy"," ",null,null,null,null,null,null,null,null,null,null,null,"NOWA ZELANDIA","NZ",null,"SAINT BARTHELEMY","BL"]
["2315 PRODUKCJA I OBRÓBKA POZOSTAŁEGO SZKŁA, WŁĄCZAJĄC SZKŁO TECHNICZNE"," ","URZĄD SKARBOWY W ŁASKU","1006",null,"7.2.2","Na rzecz uczestnika imprezy, w przypadku gdy opłata pobierana jest bezpośrednio przez organizatora"," ",null,null,null,null,null,null,null,null,null,null,null,"OKUPOWANE TERYTORIUM PALESTYNY","PS",null,"SAINT KITTS I NEVIS","KN"]
["2320 PRODUKCJA WYROBÓW OGNIOTRWAŁYCH"," ","URZĄD SKARBOWY W ŁĘCZNEJ","0621",null,"7.3","Żywność i napoje przeznaczone dla osoby zatrudnionej przez podatnika, dostarczającej towary lub świadczącej usługi"," ",null,null,null,null,null,null,null,null,null,null,null,"OMAN","OM",null,"SAINT LUCIA","LC"]
["2331 PRODUKCJA CERAMICZNYCH KAFLI I PŁYTEK"," ","URZĄD SKARBOWY W ŁĘCZYCY","1028",null,"7.4","Usługi restauracyjne zakupione w celu ich dalszej odsprzedaży"," ",null,null,null,null,null,null,null,null,null,null,null,"PAKISTAN","PK",null,"SAINT MARTIN","MF"]
["2332 PRODUKCJA CEGIEŁ, DACHÓWEK I MATERIAŁÓW BUDOWLANYCH, Z WYPALANEJ GLINY"," ","URZĄD SKARBOWY W ŁOMŻY","2008",null,"7.5","Zakup żywności, napojów lub usług restauracyjnych innych niż wymienione w pkt 7.2, 7.3 i 7.4"," ",null,null,null,null,null,null,null,null,null,null,null,"PALAU","PW",null,"SAINT VINCENT I GRENADYNY","VC"]
["2341 PRODUKCJA CERAMICZNYCH WYROBÓW STOŁOWYCH I OZDOBNYCH"," ","URZĄD SKARBOWY W ŁOSICACH","1410",null,"8.1","Uiszczane przez podatnika lub osobę zatrudnioną przez podatnika"," ",null,null,null,null,null,null,null,null,null,null,null,"PANAMA","PA",null,"SALWADOR","SV"]
["2342 PRODUKCJA CERAMICZNYCH WYROBÓW SANITARNYCH"," ","URZĄD SKARBOWY W ŁOWICZU","1007",null,"8.2","Uiszczane przez osobę niebędącą podatnikiem ani osobą zatrudnioną przez podatnika"," ",null,null,null,null,null,null,null,null,null,null,null,"PAPUA NOWA GWINEA","PG",null,"SAMOA","WS"]
["2343 PRODUKCJA CERAMICZNYCH IZOLATORÓW I OSŁON IZOLACYJNYCH"," ","PIERWSZY URZĄD SKARBOWY ŁÓDŹ-BAŁUTY","1008",null,"9.1","Zakup alkoholu"," ",null,null,null,null,null,null,null,null,null,null,null,"PARAGWAJ","PY",null,"SAMOA AMERYKAŃSKIE","AS"]
["2344 PRODUKCJA POZOSTAŁYCH TECHNICZNYCH WYROBÓW CERAMICZNYCH"," ","DRUGI URZĄD SKARBOWY ŁÓDŹ-BAŁUTY","1009",null,"9.2","Zakup przetworzonego tytoniu"," ",null,null,null,null,null,null,null,null,null,null,null,"PERU","PE",null,"SAN MARINO","SM"]
["2345 PRODUKCJA POZOSTAŁYCH WYROBÓW CERAMICZNYCH"," ","PIERWSZY URZĄD SKARBOWY ŁÓDŹ-GÓRNA","1010",null,"9.3","Wydatki na przyjęcia i cele reprezentacyjne"," ",null,null,null,null,null,null,null,null,null,null,null,"PITCAIRN","PN",null,"SENEGAL","SN"]
["2351 PRODUKCJA CEMENTU"," ","DRUGI URZĄD SKARBOWY ŁÓDŹ-GÓRNA","1011",null,"9.3.1","Na cele reklamowe"," ",null,null,null,null,null,null,null,null,null,null,null,"POLINEZJA FRANCUSKA","PF",null,"SERBIA","RS"]
["2352 PRODUKCJA WAPNA I GIPSU"," ","URZĄD SKARBOWY ŁÓDŹ-POLESIE","1012",null,"9.3.2","Na cele inne niż reklamowe"," ",null,null,null,null,null,null,null,null,null,null,null,"POŁUDNIOWA GEORGIA I POŁUD.WYSPY SANDWICH","GS",null,"SESZELE","SC"]
["2361 PRODUKCJA WYROBÓW BUDOWLANYCH Z BETONU"," ","URZĄD SKARBOWY ŁÓDŹ-ŚRÓDMIEŚCIE","1013",null,"9.4","Wydatki na utrzymanie statków przeznaczonych do celów rekreacyjnych"," ",null,null,null,null,null,null,null,null,null,null,null,"PORTUGALIA","PT",null,"SIERRA LEONE","SL"]
["2362 PRODUKCJA WYROBÓW BUDOWLANYCH Z GIPSU"," ","URZĄD SKARBOWY ŁÓDŹ-WIDZEW","1014",null,"9.5","Wydatki na dzieła sztuki, przedmioty kolekcjonerskie i antyki"," ",null,null,null,null,null,null,null,null,null,null,null,"PORTORYKO","PR",null,"SINGAPUR","SG"]
["2363 PRODUKCJA MASY BETONOWEJ PREFABRYKOWANEJ"," ","ŁÓDZKI URZĄD SKARBOWY W ŁODZI","1071",null,"9.6","Wydatki na artykuły luksusowe, rozrywkowe i wydatki reprezentacyjne ponoszone w celach reklamowych"," ",null,null,null,null,null,null,null,null,null,null,null,"REP.ŚRODKOWOAFRYKAŃSKA","CF",null,"SOMALIA","SO"]
["2364 PRODUKCJA ZAPRAWY MURARSKIEJ"," ","URZĄD SKARBOWY W ŁUKOWIE","0613",null,"9.7","Wydatki na artykuły luksusowe, rozrywkowe i wydatki reprezentacyjne inne niż wymienione w pkt 9.1, 9.2 i 9.3"," ",null,null,null,null,null,null,null,null,null,null,null,"REPUBLIKA CZESKA","CZ",null,"SRI LANKA","LK"]
["2365 PRODUKCJA CEMENTU WZMOCNIONEGO WŁÓKNEM"," ","URZĄD SKARBOWY W MAKOWIE MAZOWIECKIM","1411",null,"10.1","Narzędzia"," ",null,null,null,null,null,null,null,null,null,null,null,"REPUBLIKA KOREI","KR",null,"SAINT PIERRE I MIQUELON","PM"]
["2366 PRODUKCJA POZOSTAŁYCH WYROBÓW Z BETONU, CEMENTU I GIPSU"," ","URZĄD SKARBOWY W MALBORKU","2214",null,"10.2","Naprawy w okresie objętym gwarancją"," ",null,null,null,null,null,null,null,null,null,null,null,"REPUBLIKA POŁUDNIOWEJ AFRYKI","ZA",null,"STANY ZJEDNOCZONE AMERYKI","US"]
["2370 CIĘCIE, FORMOWANIE I WYKOŃCZANIE KAMIENIA"," ","MAŁOPOLSKI URZĄD SKARBOWY W KRAKOWIE","1271",null,"10.3","Usługi związane z edukacją"," ",null,null,null,null,null,null,null,null,null,null,null,"REUNION","RE",null,"SUAZI","SZ"]
["2391 PRODUKCJA WYROBÓW ŚCIERNYCH"," ","URZĄD SKARBOWY W MIECHOWIE","1215",null,"10.4","Prace związane z mieniem"," ",null,null,null,null,null,null,null,null,null,null,null,"ROSJA","RU",null,"SUDAN","SD"]
["2399 PRODUKCJA POZOSTAŁYCH WYROBÓW Z MINERALNYCH SUROWCÓW NIEMETALICZNYCH, GDZIE INDZIEJ NIESKLASYFIKOWANA"," ","URZĄD SKARBOWY W MIELCU","1812",null,"10.4.1","Prace związane z nieruchomościami"," ",null,null,null,null,null,null,null,null,null,null,null,"RUMUNIA","RO",null,"SUDAN POŁUDNIOWY","SS"]
["2410 PRODUKCJA SURÓWKI, ŻELAZOSTOPÓW, ŻELIWA I STALI ORAZ WYROBÓW HUTNICZYCH"," ","URZĄD SKARBOWY W MIĘDZYCHODZIE","3015",null,"10.4.2","Prace związane z nieruchomościami wykorzystywanymi w celach mieszkalnych"," ",null,null,null,null,null,null,null,null,null,null,null,"RWANDA","RW",null,"SURINAM","SR"]
["2420 PRODUKCJA RUR, PRZEWODÓW, KSZTAŁTOWNIKÓW ZAMKNIĘTYCH I ŁĄCZNIKÓW, ZE STALI"," ","URZĄD SKARBOWY W MIĘDZYRZECZU","0804",null,"10.4.3","Prace związane z mieniem ruchomym innym niż objęte kodem 3"," ",null,null,null,null,null,null,null,null,null,null,null,"SAHARA ZACHODNIA","EH",null,"SVALBARD I JAN MAYEN","SJ"]
["2431 PRODUKCJA PRĘTÓW CIĄGNIONYCH NA ZIMNO"," ","URZĄD SKARBOWY W MIKOŁOWIE","2420",null,"10.5","Zakup lub wynajem mienia"," ",null,null,null,null,null,null,null,null,null,null,null,"SAINT BARTHELEMY","BL",null,"ŚWIĘTA HELENA","SH"]
["2432 PRODUKCJA WYROBÓW PŁASKICH WALCOWANYCH NA ZIMNO"," ","URZĄD SKARBOWY W MILICZU","0214",null,"10.5.1","Zakup lub wynajem nieruchomości"," ",null,null,null,null,null,null,null,null,null,null,null,"SAINT KITTS I NEVIS","KN",null,"SYRIA","SY"]
["2433 PRODUKCJA WYROBÓW FORMOWANYCH NA ZIMNO"," ","URZĄD SKARBOWY W MIŃSKU MAZOWIECKIM","1412",null,"10.5.2","Zakup lub wynajem nieruchomości wykorzystywanych w celach mieszkalnych albo rekreacyjnych lub wypoczynkowych"," ",null,null,null,null,null,null,null,null,null,null,null,"SAINT LUCIA","LC",null,"SZWAJCARIA","CH"]
["2434 PRODUKCJA DRUTU"," ","URZĄD SKARBOWY W MŁAWIE","1413",null,"10.5.3","Zakup lub wynajem mienia ruchomego związanego z nieruchomościami wykorzystywanymi w celach mieszkalnych albo rekreacyjnych lub wypoczynkowych lub wykorzystywanego w takich nieruchomościach"," ",null,null,null,null,null,null,null,null,null,null,null,"SAINT MARTIN","MF",null,"TADŻYKISTAN","TJ"]
["2441 PRODUKCJA METALI SZLACHETNYCH"," ","URZĄD SKARBOWY W MOGILNIE","0411",null,"10.5.4","Zakup lub wynajem mienia ruchomego innego niż objęte kodem 2"," ",null,null,null,null,null,null,null,null,null,null,null,"SAINT VINCENT I GRENADYNY","VC",null,"TAJLANDIA","TH"]
["2442 PRODUKCJA ALUMINIUM"," ","URZĄD SKARBOWY W MOŃKACH","2009",null,"10.6","Dostarczanie wody, gazu lub energii elektrycznej przez sieć dystrybucyjną"," ",null,null,null,null,null,null,null,null,null,null,null,"SALWADOR","SV",null,"TAJWAN","TW"]
["2443 PRODUKCJA OŁOWIU, CYNKU I CYNY"," ","URZĄD SKARBOWY W MYSŁOWICACH","2421",null,"10.7","Upominki o niewielkiej wartości"," ",null,null,null,null,null,null,null,null,null,null,null,"SAMOA","WS",null,"TANZANIA","TZ"]
["2444 PRODUKCJA MIEDZI"," ","URZĄD SKARBOWY W MYSZKOWIE","2422",null,"10.8","Wydatki związane z prowadzeniem biura"," ",null,null,null,null,null,null,null,null,null,null,null,"SAMOA AMERYKAŃSKIE","AS",null,"TOGO","TG"]
["2445 PRODUKCJA POZOSTAŁYCH METALI NIEŻELAZNYCH"," ","URZĄD SKARBOWY W MYŚLENICACH","1216",null,"10.9","Udział w targach i seminariach, kształcenie lub szkolenia"," ",null,null,null,null,null,null,null,null,null,null,null,"SAN MARINO","SM",null,"TOKELAU","TK"]
["2446 WYTWARZANIE PALIW JĄDROWYCH"," ","URZĄD SKARBOWY W MYŚLIBORZU","3212",null,"10.9.1","Targi"," ",null,null,null,null,null,null,null,null,null,null,null,"SENEGAL","SN",null,"TONGA","TO"]
["2451 ODLEWNICTWO ŻELIWA"," ","URZĄD SKARBOWY W NAKLE NAD NOTECIĄ","0412",null,"10.9.2","Seminaria"," ",null,null,null,null,null,null,null,null,null,null,null,"SERBIA","RS",null,"TRYNIDAD I TOBAGO","TT"]
["2452 ODLEWNICTWO STALIWA"," ","URZĄD SKARBOWY W NAMYSŁOWIE","1606",null,"10.9.3","Kształcenie"," ",null,null,null,null,null,null,null,null,null,null,null,"SESZELE","SC",null,"TUNEZJA","TN"]
["2453 ODLEWNICTWO METALI LEKKICH"," ","URZĄD SKARBOWY W NIDZICY","2810",null,"10.9.4","Szkolenia"," ",null,null,null,null,null,null,null,null,null,null,null,"SIERRA LEONE","SL",null,"TURCJA","TR"]
["2454 ODLEWNICTWO POZOSTAŁYCH METALI NIEŻELAZNYCH"," ","URZĄD SKARBOWY W NISKU","1823",null,"10.10","Ryczałtowy narzut na ceny zwierząt gospodarskich i produktów rolnych"," ",null,null,null,null,null,null,null,null,null,null,null,"SINGAPUR","SG",null,"TURKMENISTAN","TM"]
["2511 PRODUKCJA KONSTRUKCJI METALOWYCH I ICH CZĘŚCI"," ","URZĄD SKARBOWY W NOWEJ RUDZIE","0215",null,"10.11","Wydatki związane z wysyłką poczty do krajów spoza UE"," ",null,null,null,null,null,null,null,null,null,null,null,"SŁOWACJA","SK",null,"TUVALU","TV"]
["2512 PRODUKCJA DRZWI I OKIEN Z METALU"," ","URZĄD SKARBOWY W NOWEJ SOLI","0805",null,"10.12","Wydatki na faksy i telefony w sprawie zakwaterowania"," ",null,null,null,null,null,null,null,null,null,null,null,"SŁOWENIA","SI",null,"UGANDA","UG"]
["2521 PRODUKCJA GRZEJNIKÓW CENTRALNEGO OGRZEWANIA, WYTWORNIC PARY I KOTŁÓW"," ","URZĄD SKARBOWY W NOWYM DWORZE MAZOWIECKIM","1414",null,"10.13","Towary i usługi nabyte przez organizatora podróży dla bezpośredniej korzyści podróżnego"," ",null,null,null,null,null,null,null,null,null,null,null,"SOMALIA","SO",null,"UKRAINA","UA"]
["2522 PRODUKCJA POZOSTAŁYCH ZBIORNIKÓW, CYSTERN I POJEMNIKÓW METALOWYCH"," ","URZĄD SKARBOWY W NOWYM MIEŚCIE LUBAWSKIM","2811",null,"10.14","Towary nabyte w celu odsprzedaży inne niż wymienione w pkt 1.6"," ",null,null,null,null,null,null,null,null,null,null,null,"SRI LANKA","LK",null,"URUGWAJ","UY"]
["2530 PRODUKCJA BRONI I AMUNICJI"," ","URZĄD SKARBOWY W NOWYM SĄCZU","1217",null,"10.15","Usługi nabyte w celu odsprzedaży inne niż wymienione w pkt 6.6 i 7.4"," ",null,null,null,null,null,null,null,null,null,null,null,"SAINT PIERRE I MIQUELON","PM",null,"UZBEKISTAN","UZ"]
["2540 KUCIE I FORMOWANIE METALI ORAZ METALURGIA PROSZKÓW"," ","URZĄD SKARBOWY W NOWYM TARGU","1218",null,"10.16","Prace związane z mieniem"," ",null,null,null,null,null,null,null,null,null,null,null,"STANY ZJEDNOCZONE AMERYKI","US",null,"VANUATU","VU"]
["2551 NAKŁADANIE POWŁOK NA METALE"," ","URZĄD SKARBOWY W NOWYM TOMYŚLU","3016",null,"10.16.1","Prace związane z nieruchomościami wykorzystywanymi w celach mieszkalnych, rekreacyjnych lub wypoczynkowych"," ",null,null,null,null,null,null,null,null,null,null,null,"SUAZI","SZ",null,"WALLIS I FUTUNA","WF"]
["2552 OBRÓBKA CIEPLNA METALI"," ","URZĄD SKARBOWY W NYSIE","1607",null,"10.16.2","Prace związane z nieruchomościami innymi niż wymienione w pkt 10.16.1"," ",null,null,null,null,null,null,null,null,null,null,null,"SUDAN","SD",null,"WATYKAN","VA"]
["2553 OBRÓBKA MECHANICZNA ELEMENTÓW METALOWYCH"," ","URZĄD SKARBOWY W OBORNIKACH","3038",null,"10.16.3","Prace związane z mieniem ruchomym związanym z nieruchomościami, o których mowa w pkt 10.16.1 lub używane w tych nieruchomościach"," ",null,null,null,null,null,null,null,null,null,null,null,"SUDAN POŁUDNIOWY","SS",null,"WENEZUELA","VE"]
["2561 PRODUKCJA WYROBÓW NOŻOWNICZYCH I SZTUĆCÓW"," ","URZĄD SKARBOWY W OLECKU","2812",null,"10.16.4","Prace związane z mieniem ruchomym innym niż wymienione w pkt 10.16.3"," ",null,null,null,null,null,null,null,null,null,null,null,"SURINAM","SR",null,"WIELKA BRYTANIA","GB"]
["2562 PRODUKCJA ZAMKÓW I ZAWIASÓW"," ","URZĄD SKARBOWY W OLEŚNICY","0216",null,"10.17","Wydatki związane z mieniem"," ",null,null,null,null,null,null,null,null,null,null,null,"SVALBARD I JAN MAYEN","SJ",null,"WIETNAM","VN"]
["2563 PRODUKCJA NARZĘDZI"," ","URZĄD SKARBOWY W OLEŚNIE","1608",null,"10.17.1","Wydatki związane z nieruchomościami wykorzystywanymi w celach mieszkalnych albo rekreacyjnych lub wypoczynkowych"," ",null,null,null,null,null,null,null,null,null,null,null,"ŚWIĘTA HELENA","SH",null,"WSCHODNI TIMOR","TL"]
["2591 PRODUKCJA POJEMNIKÓW METALOWYCH"," ","URZĄD SKARBOWY W OLKUSZU","1219",null,"10.17.2","Wydatki związane z nieruchomościami innymi niż wymienione w pkt 10.17.1"," ",null,null,null,null,null,null,null,null,null,null,null,"SYRIA","SY",null,"WYBRZEŻE KOŚCI SŁONIOWEJ","CI"]
["2592 PRODUKCJA LEKKICH OPAKOWAŃ METALOWYCH"," ","URZĄD SKARBOWY W OLSZTYNIE","2813",null,null,null,null,null,null,null,null,null,null,null,null,null,null,null,"SZWAJCARIA","CH",null,"WYSPA BOUVETA","BV"]
["2593 PRODUKCJA WYROBÓW Z DRUTU, ŁAŃCUCHÓW I SPRĘŻYN"," ","WARMIŃSKO-MAZURSKI URZĄD SKARBOWY W OLSZTYNIE","2871",null,null,null,null,null,null,null,null,null,null,null,null,null,null,null,"SZWECJA","SE",null,"WYSPA BOŻEGO NARODZENIA","CX"]
["2594 PRODUKCJA ZŁĄCZY I ŚRUB"," ","URZĄD SKARBOWY W OŁAWIE","0217",null,null,null,null,null,null,null,null,null,null,null,null,null,null,null,"TADŻYKISTAN","TJ",null,"WYSPA MAN","IM"]
["2599 PRODUKCJA POZOSTAŁYCH GOTOWYCH WYROBÓW METALOWYCH, GDZIE INDZIEJ NIESKLASYFIKOWANA"," ","URZĄD SKARBOWY W OPATOWIE","2607",null,null,null,null,null,null,null,null,null,null,null,null,null,null,null,"TAJLANDIA","TH",null,"WYSPA SINT MAARTEN (CZĘŚĆ HOLENDERSKA WYSPY)","SX"]
["2611 PRODUKCJA ELEMENTÓW ELEKTRONICZNYCH"," ","URZĄD SKARBOWY W OPOCZNIE","1015",null,null,null,null,null,null,null,null,null,null,null,null,null,null,null,"TAJWAN","TW",null,"WYSPY COOKA","CK"]
["2612 PRODUKCJA ELEKTRONICZNYCH OBWODÓW DRUKOWANYCH"," ","PIERWSZY URZĄD SKARBOWY W OPOLU","1609",null,null,null,null,null,null,null,null,null,null,null,null,null,null,null,"TANZANIA","TZ",null,"WYSPY DZIEWICZE-USA","VI"]
["2620 PRODUKCJA KOMPUTERÓW I URZĄDZEŃ PERYFERYJNYCH"," ","DRUGI URZĄD SKARBOWY W OPOLU","1610",null,null,null,null,null,null,null,null,null,null,null,null,null,null,null,"TOGO","TG",null,"WYSPY DZIEWICZE-W.B.","VG"]
["2630 PRODUKCJA SPRZĘTU (TELE)KOMUNIKACYJNEGO"," ","OPOLSKI URZĄD SKARBOWY W OPOLU","1671",null,null,null,null,null,null,null,null,null,null,null,null,null,null,null,"TOKELAU","TK",null,"WYSPY HEARD I MCDONALD","HM"]
["2640 PRODUKCJA ELEKTRONICZNEGO SPRZĘTU POWSZECHNEGO UŻYTKU"," ","URZĄD SKARBOWY W OPOLU LUBELSKIM","0614",null,null,null,null,null,null,null,null,null,null,null,null,null,null,null,"TONGA","TO",null,"WYSPY KOKOSOWE (KEELINGA)","CC"]
["2651 PRODUKCJA INSTRUMENTÓW I PRZYRZĄDÓW POMIAROWYCH, KONTROLNYCH I NAWIGACYJNYCH"," ","URZĄD SKARBOWY W OSTROŁĘCE","1415",null,null,null,null,null,null,null,null,null,null,null,null,null,null,null,"TRYNIDAD I TOBAGO","TT",null,"WYSPY MARSHALLA","MH"]
["2652 PRODUKCJA ZEGARKÓW I ZEGARÓW"," ","URZĄD SKARBOWY W OSTROWCU ŚWIĘTOKRZYSKIM","2608",null,null,null,null,null,null,null,null,null,null,null,null,null,null,null,"TUNEZJA","TN",null,"WYSPY OWCZE","FO"]
["2660 PRODUKCJA URZĄDZEŃ NAPROMIENIOWUJĄCYCH, SPRZĘTU ELEKTROMEDYCZNEGO I ELEKTROTERAPEUTYCZNEGO"," ","URZĄD SKARBOWY W OSTROWI MAZOWIECKIEJ","1416",null,null,null,null,null,null,null,null,null,null,null,null,null,null,null,"TURCJA","TR",null,"WYSPY SALOMONA","SB"]
["2670 PRODUKCJA INSTRUMENTÓW OPTYCZNYCH, NIEZAPISANYCH MAGNETYCZNYCH I OPTYCZNYCH NOŚNIKÓW INFORMACJI ORAZ SPRZĘTU FOTOGRAFICZNEGO"," ","URZĄD SKARBOWY W OSTROWIE WIELKOPOLSKIM","3017",null,null,null,null,null,null,null,null,null,null,null,null,null,null,null,"TURKMENISTAN","TM",null,"WYSPY ŚWIĘTEGO TOMASZA I KSIĄŻĘCA","ST"]
["2711 PRODUKCJA ELEKTRYCZNYCH SILNIKÓW, PRĄDNIC I TRANSFORMATORÓW"," ","URZĄD SKARBOWY W OSTRÓDZIE","2814",null,null,null,null,null,null,null,null,null,null,null,null,null,null,null,"TUVALU","TV",null,"WYSPY TURKS I CAICOS","TC"]
["2712 PRODUKCJA APARATURY ROZDZIELCZEJ I STEROWNICZEJ ENERGII ELEKTRYCZNEJ"," ","URZĄD SKARBOWY W OSTRZESZOWIE","3018",null,null,null,null,null,null,null,null,null,null,null,null,null,null,null,"UGANDA","UG",null,"ZAMBIA","ZM"]
["2720 PRODUKCJA BATERII I AKUMULATORÓW"," ","URZĄD SKARBOWY W OŚWIĘCIMIU","1220",null,null,null,null,null,null,null,null,null,null,null,null,null,null,null,"UKRAINA","UA",null,"ZIELONY PRZYLĄDEK","CV"]
["2731 PRODUKCJA KABLI ŚWIATŁOWODOWYCH"," ","URZĄD SKARBOWY W OTWOCKU","1417",null,null,null,null,null,null,null,null,null,null,null,null,null,null,null,"URUGWAJ","UY",null,"ZIMBABWE","ZW"]
["2732 PRODUKCJA POZOSTAŁYCH ELEKTRONICZNYCH I ELEKTRYCZNYCH PRZEWODÓW I KABLI"," ","URZĄD SKARBOWY W PABIANICACH","1016",null,null,null,null,null,null,null,null,null,null,null,null,null,null,null,"UZBEKISTAN","UZ",null,"ZJEDNOCZONE EMIRATY ARABSKIE","AE"]
["2733 PRODUKCJA SPRZĘTU INSTALACYJNEGO"," ","URZĄD SKARBOWY W PAJĘCZNIE","1029",null,null,null,null,null,null,null,null,null,null,null,null,null,null,null,"VANUATU","VU",null,"ZJEDNOCZONE KRÓLESTWO (IRLANDIA PÓŁNOCNA)","XI"]
["2740 PRODUKCJA SPRZĘTU OŚWIETLENIOWEGO"," ","URZĄD SKARBOWY W PARCZEWIE","0615",null,null,null,null,null,null,null,null,null,null,null,null,null,null,null,"WALLIS I FUTUNA","WF"]
["2751 PRODUKCJA ELEKTRYCZNEGO SPRZĘTU GOSPODARSTWA DOMOWEGO"," ","URZĄD SKARBOWY W PIASECZNIE","1418",null,null,null,null,null,null,null,null,null,null,null,null,null,null,null,"WATYKAN","VA"]
["2752 PRODUKCJA NIEELEKTRYCZNEGO SPRZĘTU GOSPODARSTWA DOMOWEGO"," ","URZĄD SKARBOWY W PIEKARACH ŚLĄSKICH","2423",null,null,null,null,null,null,null,null,null,null,null,null,null,null,null,"WĘGRY","HU"]
["2790 PRODUKCJA POZOSTAŁEGO SPRZĘTU ELEKTRYCZNEGO"," ","URZĄD SKARBOWY W PILE","3019",null,null,null,null,null,null,null,null,null,null,null,null,null,null,null,"WENEZUELA","VE"]
["2811 PRODUKCJA SILNIKÓW I TURBIN, Z WYŁĄCZENIEM SILNIKÓW LOTNICZYCH, SAMOCHODOWYCH I MOTOCYKLOWYCH"," ","URZĄD SKARBOWY W PIŃCZOWIE","2609",null,null,null,null,null,null,null,null,null,null,null,null,null,null,null,"WIELKA BRYTANIA","GB"]
["2812 PRODUKCJA SPRZĘTU I WYPOSAŻENIA DO NAPĘDU HYDRAULICZNEGO I PNEUMATYCZNEGO"," ","URZĄD SKARBOWY W PIOTRKOWIE TRYBUNALSKIM","1017",null,null,null,null,null,null,null,null,null,null,null,null,null,null,null,"WIETNAM","VN"]
["2813 PRODUKCJA POZOSTAŁYCH POMP I SPRĘŻAREK"," ","URZĄD SKARBOWY W PISZU","2815",null,null,null,null,null,null,null,null,null,null,null,null,null,null,null,"WŁOCHY","IT"]
["2814 PRODUKCJA POZOSTAŁYCH KURKÓW I ZAWORÓW"," ","URZĄD SKARBOWY W PLESZEWIE","3039",null,null,null,null,null,null,null,null,null,null,null,null,null,null,null,"WSCHODNI TIMOR","TL"]
["2815 PRODUKCJA ŁOŻYSK, KÓŁ ZĘBATYCH, PRZEKŁADNI ZĘBATYCH I ELEMENTÓW NAPĘDOWYCH"," ","URZĄD SKARBOWY W PŁOCKU","1419",null,null,null,null,null,null,null,null,null,null,null,null,null,null,null,"WYBRZEŻE KOŚCI SŁONIOWEJ","CI"]
["2821 PRODUKCJA PIECÓW, PALENISK I STAŁYCH URZĄDZEŃ GRZEWCZYCH DLA GOSPODARSTW DOMOWYCH"," ","URZĄD SKARBOWY W PŁOŃSKU","1420",null,null,null,null,null,null,null,null,null,null,null,null,null,null,null,"WYSPA BOUVETA","BV"]
["2822 PRODUKCJA URZĄDZEŃ PODNOŚNIKOWYCH I PRZEŁADUNKOWYCH"," ","URZĄD SKARBOWY W PODDĘBICACH","1018",null,null,null,null,null,null,null,null,null,null,null,null,null,null,null,"WYSPA BOŻEGO NARODZENIA","CX"]
["2823 PRODUKCJA MASZYN I SPRZĘTU BIUROWEGO, Z WYŁĄCZENIEM KOMPUTERÓW I URZĄDZEŃ PERYFERYJNYCH"," ","PODLASKI URZĄD SKARBOWY W BIAŁYMSTOKU","2071",null,null,null,null,null,null,null,null,null,null,null,null,null,null,null,"WYSPA MAN","IM"]
["2824 PRODUKCJA NARZĘDZI RĘCZNYCH MECHANICZNYCH"," ","URZĄD SKARBOWY W POLKOWICACH","0234",null,null,null,null,null,null,null,null,null,null,null,null,null,null,null,"WYSPA SINT MAARTEN (CZĘŚĆ HOLENDERSKA WYSPY)","SX"]
["2825 PRODUKCJA PRZEMYSŁOWYCH URZĄDZEŃ CHŁODNICZYCH, WENTYLACYJNYCH I KLIMATYZACYJNYCH"," ","URZĄD SKARBOWY POZNAŃ-GRUNWALD","3020",null,null,null,null,null,null,null,null,null,null,null,null,null,null,null,"WYSPY COOKA","CK"]
["2829 PRODUKCJA POZOSTAŁYCH MASZYN OGÓLNEGO PRZEZNACZENIA, GDZIE INDZIEJ NIESKLASYFIKOWANA"," ","URZĄD SKARBOWY POZNAŃ-JEŻYCE","3021",null,null,null,null,null,null,null,null,null,null,null,null,null,null,null,"WYSPY DZIEWICZE-USA","VI"]
["2830 PRODUKCJA MASZYN DLA ROLNICTWA I LEŚNICTWA"," ","URZĄD SKARBOWY POZNAŃ-NOWE MIASTO","3022",null,null,null,null,null,null,null,null,null,null,null,null,null,null,null,"WYSPY DZIEWICZE-W.B.","VG"]
["2841 PRODUKCJA MASZYN DO FORMOWANIA METALU I OBRABIAREK DO METALU"," ","PIERWSZY URZĄD SKARBOWY W POZNANIU","3023",null,null,null,null,null,null,null,null,null,null,null,null,null,null,null,"WYSPY HEARD I MCDONALD","HM"]
["2842 PRODUKCJA POZOSTAŁYCH NARZĘDZI MECHANICZNYCH"," ","URZĄD SKARBOWY POZNAŃ-WINOGRADY","3025",null,null,null,null,null,null,null,null,null,null,null,null,null,null,null,"WYSPY KANARYJSKIE","IC"]
["2891 PRODUKCJA MASZYN DLA METALURGII"," ","URZĄD SKARBOWY POZNAŃ-WILDA","3026",null,null,null,null,null,null,null,null,null,null,null,null,null,null,null,"WYSPY KOKOSOWE (KEELINGA)","CC"]
["2892 PRODUKCJA MASZYN DLA GÓRNICTWA I DO WYDOBYWANIA ORAZ BUDOWNICTWA"," ","PIERWSZY WIELKOPOLSKI URZĄD SKARBOWY W POZNANIU","3071",null,null,null,null,null,null,null,null,null,null,null,null,null,null,null,"WYSPY MARSHALLA","MH"]
["2893 PRODUKCJA MASZYN STOSOWANYCH W PRZETWÓRSTWIE ŻYWNOŚCI, TYTONIU I PRODUKCJI NAPOJÓW"," ","URZĄD SKARBOWY W PROSZOWICACH","1221",null,null,null,null,null,null,null,null,null,null,null,null,null,null,null,"WYSPY OWCZE","FO"]
["2894 PRODUKCJA MASZYN DLA PRZEMYSŁU TEKSTYLNEGO, ODZIEŻOWEGO I SKÓRZANEGO"," ","URZĄD SKARBOWY W PRUDNIKU","1611",null,null,null,null,null,null,null,null,null,null,null,null,null,null,null,"WYSPY SALOMONA","SB"]
["2895 PRODUKCJA MASZYN DLA PRZEMYSŁU PAPIERNICZEGO"," ","URZĄD SKARBOWY W PRUSZCZU GDAŃSKIM","2221",null,null,null,null,null,null,null,null,null,null,null,null,null,null,null,"WYSPY ŚWIĘTEGO TOMASZA I KSIĄŻĘCA","ST"]
["2896 PRODUKCJA MASZYN DO OBRÓBKI GUMY LUB TWORZYW SZTUCZNYCH"," ","URZĄD SKARBOWY W PRUSZKOWIE","1421",null,null,null,null,null,null,null,null,null,null,null,null,null,null,null,"WYSPY TURKS I CAICOS","TC"]
["2897 PRODUKCJA MASZYN DO WYTWARZANIA PRZYROSTOWEGO"," ","URZĄD SKARBOWY W PRZASNYSZU","1422",null,null,null,null,null,null,null,null,null,null,null,null,null,null,null,"ZAMBIA","ZM"]
["2899 PRODUKCJA POZOSTAŁYCH MASZYN SPECJALNEGO PRZEZNACZENIA, GDZIE INDZIEJ NIESKLASYFIKOWANA"," ","URZĄD SKARBOWY W PRZEMYŚLU","1813",null,null,null,null,null,null,null,null,null,null,null,null,null,null,null,"ZIELONY PRZYLĄDEK","CV"]
["2910 PRODUKCJA POJAZDÓW SILNIKOWYCH, Z WYŁĄCZENIEM MOTOCYKLI"," ","URZĄD SKARBOWY W PRZEWORSKU","1814",null,null,null,null,null,null,null,null,null,null,null,null,null,null,null,"ZIMBABWE","ZW"]
["2920 PRODUKCJA NADWOZI DO POJAZDÓW SILNIKOWYCH, Z WYŁĄCZENIEM MOTOCYKLI; PRODUKCJA PRZYCZEP I NACZEP"," ","URZĄD SKARBOWY W PRZYSUSZE","1448",null,null,null,null,null,null,null,null,null,null,null,null,null,null,null,"ZJEDNOCZONE EMIRATY ARABSKIE","AE"]
["2931 PRODUKCJA WYPOSAŻENIA ELEKTRYCZNEGO I ELEKTRONICZNEGO DO POJAZDÓW SILNIKOWYCH"," ","URZĄD SKARBOWY W PSZCZYNIE","2424",null,null,null,null,null,null,null,null,null,null,null,null,null,null,null,"ZJEDNOCZONE KRÓLESTWO (IRLANDIA PÓŁNOCNA)","XI"]
["2932 PRODUKCJA POZOSTAŁYCH CZĘŚCI I AKCESORIÓW DO POJAZDÓW SILNIKOWYCH, Z WYŁĄCZENIEM MOTOCYKLI"," ","URZĄD SKARBOWY W PUCKU","2215"]
["3011 PRODUKCJA CYWILNYCH STATKÓW I KONSTRUKCJI PŁYWAJĄCYCH"," ","URZĄD SKARBOWY W PUŁAWACH","0616"]
["3012 PRODUKCJA ŁODZI WYPOCZYNKOWYCH I SPORTOWYCH"," ","URZĄD SKARBOWY W PUŁTUSKU","1423"]
["3013 PRODUKCJA WOJSKOWYCH OKRĘTÓW I JEDNOSTEK PŁYWAJĄCYCH"," ","URZĄD SKARBOWY W PYRZYCACH","3213"]
["3020 PRODUKCJA LOKOMOTYW KOLEJOWYCH ORAZ TABORU SZYNOWEGO"," ","URZĄD SKARBOWY W RACIBORZU","2425"]
["3031 PRODUKCJA CYWILNYCH STATKÓW POWIETRZNYCH, STATKÓW KOSMICZNYCH I PODOBNYCH MASZYN"," ","PIERWSZY URZĄD SKARBOWY W RADOMIU","1424"]
["3032 PRODUKCJA WOJSKOWYCH STATKÓW POWIETRZNYCH, STATKÓW KOSMICZNYCH I PODOBNYCH MASZYN"," ","DRUGI URZĄD SKARBOWY W RADOMIU","1425"]
["3040 PRODUKCJA WOJSKOWYCH POJAZDÓW BOJOWYCH"," ","TRZECI MAZOWIECKI URZĄD SKARBOWY W RADOMIU","1473"]
["3091 PRODUKCJA MOTOCYKLI"," ","URZĄD SKARBOWY W RADOMSKU","1019"]
["3092 PRODUKCJA ROWERÓW I WÓZKÓW INWALIDZKICH"," ","URZĄD SKARBOWY W RADZIEJOWIE","0413"]
["3099 PRODUKCJA POZOSTAŁEGO SPRZĘTU TRANSPORTOWEGO, GDZIE INDZIEJ NIESKLASYFIKOWANA"," ","URZĄD SKARBOWY W RADZYNIU PODLASKIM","0617"]
["3100 PRODUKCJA MEBLI"," ","URZĄD SKARBOWY W RAWICZU","3027"]
["3211 PRODUKCJA MONET"," ","URZĄD SKARBOWY W RAWIE MAZOWIECKIEJ","1020"]
["3212 PRODUKCJA WYROBÓW JUBILERSKICH I PODOBNYCH"," ","URZĄD SKARBOWY W ROPCZYCACH","1815"]
["3213 PRODUKCJA SZTUCZNEJ BIŻUTERII I WYROBÓW PODOBNYCH"," ","URZĄD SKARBOWY W RUDZIE ŚLĄSKIEJ","2426"]
["3220 PRODUKCJA INSTRUMENTÓW MUZYCZNYCH"," ","URZĄD SKARBOWY W RYBNIKU","2427"]
["3230 PRODUKCJA SPRZĘTU SPORTOWEGO"," ","URZĄD SKARBOWY W RYKACH","0622"]
["3240 PRODUKCJA GIER I ZABAWEK"," ","URZĄD SKARBOWY W RYPINIE","0414"]
["3250 PRODUKCJA URZĄDZEŃ, INSTRUMENTÓW ORAZ WYROBÓW MEDYCZNYCH, WŁĄCZAJĄC DENTYSTYCZNE"," ","PIERWSZY URZĄD SKARBOWY W RZESZOWIE","1816"]
["3291 PRODUKCJA MIOTEŁ, SZCZOTEK I PĘDZLI"," ","DRUGI URZĄD SKARBOWY W RZESZOWIE","1822"]
["3299 PRODUKCJA POZOSTAŁYCH WYROBÓW, GDZIE INDZIEJ NIESKLASYFIKOWANA"," ","PODKARPACKI URZĄD SKARBOWY W RZESZOWIE","1871"]
["3311 NAPRAWA I KONSERWACJA METALOWYCH WYROBÓW GOTOWYCH"," ","URZĄD SKARBOWY W SANDOMIERZU","2610"]
["3312 NAPRAWA I KONSERWACJA MASZYN"," ","URZĄD SKARBOWY W SANOKU","1817"]
["3313 NAPRAWA I KONSERWACJA URZĄDZEŃ ELEKTRONICZNYCH I OPTYCZNYCH"," ","URZĄD SKARBOWY W SĘPÓLNIE KRAJEŃSKIM","0423"]
["3314 NAPRAWA I KONSERWACJA URZĄDZEŃ ELEKTRYCZNYCH"," ","URZĄD SKARBOWY W SIEDLCACH","1426"]
["3315 NAPRAWA I KONSERWACJA CYWILNYCH STATKÓW I ŁODZI"," ","URZĄD SKARBOWY W SIEMIANOWICACH ŚLĄSKICH","2428"]
["3316 NAPRAWA I KONSERWACJA CYWILNYCH STATKÓW POWIETRZNYCH I STATKÓW KOSMICZNYCH"," ","URZĄD SKARBOWY W SIEMIATYCZACH","2010"]
["3317 NAPRAWA I KONSERWACJA POZOSTAŁEGO CYWILNEGO SPRZĘTU TRANSPORTOWEGO"," ","URZĄD SKARBOWY W SIERADZU","1021"]
["3318 NAPRAWA I KONSERWACJA WOJSKOWYCH POJAZDÓW BOJOWYCH, OKRĘTÓW, ŁODZI, STATKÓW POWIETRZNYCH I STATKÓW KOSMICZNYCH"," ","URZĄD SKARBOWY W SIERPCU","1427"]
["3319 NAPRAWA I KONSERWACJA POZOSTAŁEGO SPRZĘTU I WYPOSAŻENIA"," ","URZĄD SKARBOWY W SKARŻYSKU-KAMIENNEJ","2611"]
["3320 INSTALOWANIE MASZYN PRZEMYSŁOWYCH, SPRZĘTU I WYPOSAŻENIA"," ","URZĄD SKARBOWY W SKIERNIEWICACH","1022"]
["3511 WYTWARZANIE ENERGII ELEKTRYCZNEJ ZE ŹRÓDEŁ NIEODNAWIALNYCH"," ","URZĄD SKARBOWY W SŁUBICACH","0806"]
["3512 WYTWARZANIE ENERGII ELEKTRYCZNEJ ZE ŹRÓDEŁ ODNAWIALNYCH"," ","URZĄD SKARBOWY W SŁUPCY","3028"]
["3513 PRZESYŁANIE ENERGII ELEKTRYCZNEJ"," ","URZĄD SKARBOWY W SŁUPSKU","2216"]
["3514 DYSTRYBUCJA ENERGII ELEKTRYCZNEJ"," ","URZĄD SKARBOWY W SOCHACZEWIE","1428"]
["3515 HANDEL ENERGIĄ ELEKTRYCZNĄ"," ","URZĄD SKARBOWY W SOKOŁOWIE PODLASKIM","1429"]
["3516 MAGAZYNOWANIE ENERGII ELEKTRYCZNEJ"," ","URZĄD SKARBOWY W SOKÓŁCE","2011"]
["3521 WYTWARZANIE PALIW GAZOWYCH"," ","URZĄD SKARBOWY W SOPOCIE","2217"]
["3522 DYSTRYBUCJA PALIW GAZOWYCH W SYSTEMIE SIECIOWYM"," ","URZĄD SKARBOWY W SOSNOWCU","2429"]
["3523 HANDEL PALIWAMI GAZOWYMI W SYSTEMIE SIECIOWYM"," ","PIERWSZY ŚLĄSKI URZĄD SKARBOWY W SOSNOWCU","2471"]
["3524 MAGAZYNOWANIE PALIW GAZOWYCH W RAMACH USŁUG ZAOPATRZENIA SIECIOWEGO"," ","URZĄD SKARBOWY W STALOWEJ WOLI","1818"]
["3530 WYTWARZANIE I ZAOPATRYWANIE W PARĘ WODNĄ I POWIETRZE DO UKŁADÓW KLIMATYZACYJNYCH"," ","URZĄD SKARBOWY W STARACHOWICACH","2612"]
["3540 DZIAŁALNOŚĆ BROKERÓW I AGENTÓW W ZAKRESIE ENERGII ELEKTRYCZNEJ I GAZU ZIEMNEGO"," ","URZĄD SKARBOWY W STARGARDZIE","3214"]
["3600 POBÓR, UZDATNIANIE I DOSTARCZANIE WODY"," ","URZĄD SKARBOWY W STAROGARDZIE GDAŃSKIM","2218"]
["3700 ODPROWADZANIE I OCZYSZCZANIE ŚCIEKÓW"," ","URZĄD SKARBOWY W STASZOWIE","2613"]
["3811 ZBIERANIE ODPADÓW INNYCH NIŻ NIEBEZPIECZNE"," ","URZĄD SKARBOWY W STRZELCACH OPOLSKICH","1612"]
["3812 ZBIERANIE ODPADÓW NIEBEZPIECZNYCH"," ","URZĄD SKARBOWY W STRZELINIE","0218"]
["3821 ODZYSK SUROWCÓW"," ","URZĄD SKARBOWY W STRZYŻOWIE","1819"]
["3822 ODZYSK ENERGII"," ","URZĄD SKARBOWY W SUCHEJ BESKIDZKIEJ","1222"]
["3823 POZOSTAŁY ODZYSK ZWIĄZANY Z ODPADAMI"," ","URZĄD SKARBOWY W SULĘCINIE","0813"]
["3831 SPALANIE ODPADÓW BEZ ODZYSKU ENERGII"," ","URZĄD SKARBOWY W SUWAŁKACH","2012"]
["3832 SKŁADOWANIE ODPADÓW"," ","URZĄD SKARBOWY W SZAMOTUŁACH","3029"]
["3833 POZOSTAŁE UNIESZKODLIWIANIE ODPADÓW"," ","PIERWSZY URZĄD SKARBOWY W SZCZECINIE","3215"]
["3900 DZIAŁALNOŚĆ ZWIĄZANA Z REKULTYWACJĄ I POZOSTAŁA DZIAŁALNOŚĆ USŁUGOWA ZWIĄZANA Z GOSPODARKĄ ODPADAMI"," ","DRUGI URZĄD SKARBOWY W SZCZECINIE","3216"]
["4100 ROBOTY BUDOWLANE ZWIĄZANE ZE WZNOSZENIEM BUDYNKÓW MIESZKALNYCH I NIEMIESZKALNYCH"," ","TRZECI URZĄD SKARBOWY W SZCZECINIE","3217"]
["4211 ROBOTY ZWIĄZANE Z BUDOWĄ DRÓG I AUTOSTRAD"," ","ZACHODNIOPOMORSKI URZĄD SKARBOWY W SZCZECINIE","3271"]
["4212 ROBOTY ZWIĄZANE Z BUDOWĄ DRÓG SZYNOWYCH I KOLEI PODZIEMNEJ"," ","URZĄD SKARBOWY W SZCZECINKU","3218"]
["4213 ROBOTY ZWIĄZANE Z BUDOWĄ MOSTÓW I TUNELI"," ","URZĄD SKARBOWY W SZCZYTNIE","2816"]
["4221 ROBOTY ZWIĄZANE Z BUDOWĄ RUROCIĄGÓW PRZESYŁOWYCH I SIECI ROZDZIELCZYCH"," ","URZĄD SKARBOWY W SZYDŁOWCU","1430"]
["4222 ROBOTY ZWIĄZANE Z BUDOWĄ LINII TELEKOMUNIKACYJNYCH I ELEKTROENERGETYCZNYCH"," ","URZĄD SKARBOWY W ŚREMIE","3030"]
["4291 ROBOTY ZWIĄZANE Z BUDOWĄ OBIEKTÓW INŻYNIERII WODNEJ"," ","URZĄD SKARBOWY W ŚRODZIE ŚLĄSKIEJ","0219"]
["4299 ROBOTY ZWIĄZANE Z BUDOWĄ POZOSTAŁYCH OBIEKTÓW INŻYNIERII LĄDOWEJ I WODNEJ, GDZIE INDZIEJ NIESKLASYFIKOWANE"," ","URZĄD SKARBOWY W ŚRODZIE WIELKOPOLSKIEJ","3031"]
["4311 ROZBIÓRKA I BURZENIE OBIEKTÓW BUDOWLANYCH"," ","URZĄD SKARBOWY W ŚWIDNICY","0220"]
["4312 PRZYGOTOWANIE TERENU POD BUDOWĘ"," ","URZĄD SKARBOWY W ŚWIEBODZINIE","0807"]
["4313 WYKONYWANIE WYKOPÓW I WIERCEŃ GEOLOGICZNO-INŻYNIERSKICH"," ","URZĄD SKARBOWY W ŚWIECIU","0415"]
["4321 WYKONYWANIE INSTALACJI ELEKTRYCZNYCH"," ","ŚWIĘTOKRZYSKI URZĄD SKARBOWY W KIELCACH","2671"]
["4322 WYKONYWANIE INSTALACJI WODNO-KANALIZACYJNYCH, CIEPLNYCH I KLIMATYZACYJNYCH"," ","URZĄD SKARBOWY W ŚWINOUJŚCIU","3219"]
["4323 MONTAŻ IZOLACJI"," ","URZĄD SKARBOWY W TARNOBRZEGU","1820"]
["4324 WYKONYWANIE POZOSTAŁYCH INSTALACJI BUDOWLANYCH"," ","PIERWSZY URZĄD SKARBOWY W TARNOWIE","1223"]
["4331 TYNKOWANIE"," ","DRUGI URZĄD SKARBOWY W TARNOWIE","1224"]
["4332 ZAKŁADANIE STOLARKI BUDOWLANEJ"," ","URZĄD SKARBOWY W TARNOWSKICH GÓRACH","2430"]
["4333 POSADZKARSTWO; TAPETOWANIE I OBLICOWYWANIE ŚCIAN"," ","URZĄD SKARBOWY W TCZEWIE","2219"]
["4334 MALOWANIE I SZKLENIE"," ","URZĄD SKARBOWY W TOMASZOWIE LUBELSKIM","0618"]
["4335 WYKONYWANIE POZOSTAŁYCH ROBÓT BUDOWLANYCH WYKOŃCZENIOWYCH"," ","URZĄD SKARBOWY W TOMASZOWIE MAZOWIECKIM","1023"]
["4341 WYKONYWANIE KONSTRUKCJI I POKRYĆ DACHOWYCH"," ","PIERWSZY URZĄD SKARBOWY W TORUNIU","0416"]
["4342 WYKONYWANIE POZOSTAŁYCH SPECJALISTYCZNYCH ROBÓT BUDOWLANYCH W ZAKRESIE BUDOWY BUDYNKÓW"," ","DRUGI URZĄD SKARBOWY W TORUNIU","0417"]
["4350 ROBOTY BUDOWLANE SPECJALISTYCZNE W ZAKRESIE INŻYNIERII LĄDOWEJ I WODNEJ"," ","URZĄD SKARBOWY W TRZEBNICY","0221"]
["4360 POŚREDNICTWO W ZAKRESIE SPECJALISTYCZNYCH USŁUG BUDOWLANYCH"," ","URZĄD SKARBOWY W TUCHOLI","0418"]
["4391 ROBOTY MURARSKIE"," ","URZĄD SKARBOWY W TURKU","3032"]
["4399 POZOSTAŁE SPECJALISTYCZNE ROBOTY BUDOWLANE, GDZIE INDZIEJ NIESKLASYFIKOWANE"," ","URZĄD SKARBOWY W TYCHACH","2431"]
["4611 DZIAŁALNOŚĆ AGENTÓW ZAJMUJĄCYCH SIĘ SPRZEDAŻĄ HURTOWĄ PŁODÓW ROLNYCH, ŻYWYCH ZWIERZĄT, SUROWCÓW DLA PRZEMYSŁU TEKSTYLNEGO I PÓŁPRODUKTÓW"," ","URZĄD SKARBOWY W USTRZYKACH DOLNYCH","1821"]
["4612 DZIAŁALNOŚĆ AGENTÓW ZAJMUJĄCYCH SIĘ SPRZEDAŻĄ HURTOWĄ PALIW, RUD, METALI I CHEMIKALIÓW PRZEMYSŁOWYCH"," ","URZĄD SKARBOWY W WADOWICACH","1225"]
["4613 DZIAŁALNOŚĆ AGENTÓW ZAJMUJĄCYCH SIĘ SPRZEDAŻĄ HURTOWĄ DREWNA I MATERIAŁÓW BUDOWLANYCH"," ","URZĄD SKARBOWY W WAŁBRZYCHU","0222"]
["4614 DZIAŁALNOŚĆ AGENTÓW ZAJMUJĄCYCH SIĘ SPRZEDAŻĄ HURTOWĄ MASZYN, URZĄDZEŃ PRZEMYSŁOWYCH, STATKÓW I SAMOLOTÓW"," ","URZĄD SKARBOWY W WAŁCZU","3220"]
["4615 DZIAŁALNOŚĆ AGENTÓW ZAJMUJĄCYCH SIĘ SPRZEDAŻĄ HURTOWĄ MEBLI, ARTYKUŁÓW GOSPODARSTWA DOMOWEGO I DROBNYCH WYROBÓW METALOWYCH"," ","URZĄD SKARBOWY WARSZAWA-BEMOWO","1431"]
["4616 DZIAŁALNOŚĆ AGENTÓW ZAJMUJĄCYCH SIĘ SPRZEDAŻĄ HURTOWĄ WYROBÓW TEKSTYLNYCH, ODZIEŻY, WYROBÓW FUTRZARSKICH, OBUWIA I ARTYKUŁÓW SKÓRZANYCH"," ","URZĄD SKARBOWY WARSZAWA-BIELANY","1432"]
["4617 DZIAŁALNOŚĆ AGENTÓW ZAJMUJĄCYCH SIĘ SPRZEDAŻĄ HURTOWĄ ŻYWNOŚCI, NAPOJÓW I WYROBÓW TYTONIOWYCH"," ","URZĄD SKARBOWY WARSZAWA-MOKOTÓW","1433"]
["4618 DZIAŁALNOŚĆ AGENTÓW ZAJMUJĄCYCH SIĘ SPRZEDAŻĄ HURTOWĄ WYSPECJALIZOWANĄ POZOSTAŁYCH TOWARÓW"," ","URZĄD SKARBOWY WARSZAWA-PRAGA","1434"]
["4619 DZIAŁALNOŚĆ AGENTÓW ZAJMUJĄCYCH SIĘ SPRZEDAŻĄ HURTOWĄ NIEWYSPECJALIZOWANĄ"," ","PIERWSZY URZĄD SKARBOWY WARSZAWA-ŚRÓDMIEŚCIE","1435"]
["4621 SPRZEDAŻ HURTOWA ZBOŻA, NIEPRZETWORZONEGO TYTONIU, NASION I PASZ DLA ZWIERZĄT"," ","DRUGI URZĄD SKARBOWY WARSZAWA-ŚRÓDMIEŚCIE","1436"]
["4622 SPRZEDAŻ HURTOWA KWIATÓW I ROŚLIN"," ","TRZECI URZĄD SKARBOWY WARSZAWA-ŚRÓDMIEŚCIE","1449"]
["4623 SPRZEDAŻ HURTOWA ŻYWYCH ZWIERZĄT"," ","URZĄD SKARBOWY WARSZAWA-TARGÓWEK","1437"]
["4624 SPRZEDAŻ HURTOWA SKÓR"," ","URZĄD SKARBOWY WARSZAWA-URSYNÓW","1438"]
["4631 SPRZEDAŻ HURTOWA OWOCÓW I WARZYW"," ","URZĄD SKARBOWY WARSZAWA-WAWER","1439"]
["4632 SPRZEDAŻ HURTOWA MIĘSA I WYROBÓW Z MIĘSA ORAZ RYB I WYROBÓW Z RYB"," ","URZĄD SKARBOWY WARSZAWA-WOLA","1440"]
["4633 SPRZEDAŻ HURTOWA MLEKA, WYROBÓW MLECZARSKICH, JAJ, OLEJÓW I TŁUSZCZÓW JADALNYCH"," ","PIERWSZY MAZOWIECKI URZĄD SKARBOWY W WARSZAWIE","1471"]
["4634 SPRZEDAŻ HURTOWA NAPOJÓW ALKOHOLOWYCH I BEZALKOHOLOWYCH"," ","DRUGI MAZOWIECKI URZĄD SKARBOWY W WARSZAWIE","1472"]
["4635 SPRZEDAŻ HURTOWA WYROBÓW TYTONIOWYCH"," ","URZĄD SKARBOWY W WĄBRZEŹNIE","0419"]
["4636 SPRZEDAŻ HURTOWA CUKRU, CZEKOLADY I WYROBÓW CUKIERNICZYCH"," ","URZĄD SKARBOWY W WĄGROWCU","3033"]
["4637 SPRZEDAŻ HURTOWA HERBATY, KAWY, KAKAO I PRZYPRAW"," ","URZĄD SKARBOWY W WĘGROWIE","1441"]
["4638 SPRZEDAŻ HURTOWA POZOSTAŁEJ ŻYWNOŚCI"," ","URZĄD SKARBOWY W WIELICZCE","1226"]
["4639 SPRZEDAŻ HURTOWA NIEWYSPECJALIZOWANA ŻYWNOŚCI, NAPOJÓW I WYROBÓW TYTONIOWYCH"," ","URZĄD SKARBOWY W WIELUNIU","1024"]
["4641 SPRZEDAŻ HURTOWA WYROBÓW TEKSTYLNYCH"," ","URZĄD SKARBOWY W WIERUSZOWIE","1027"]
["4642 SPRZEDAŻ HURTOWA ODZIEŻY I OBUWIA"," ","URZĄD SKARBOWY WE WŁOCŁAWKU","0420"]
["4643 SPRZEDAŻ HURTOWA ELEKTRYCZNYCH ARTYKUŁÓW UŻYTKU DOMOWEGO"," ","URZĄD SKARBOWY WE WŁODAWIE","0619"]
["4644 SPRZEDAŻ HURTOWA WYROBÓW PORCELANOWYCH, CERAMICZNYCH I SZKLANYCH ORAZ ŚRODKÓW CZYSZCZĄCYCH"," ","URZĄD SKARBOWY WE WŁOSZCZOWIE","2615"]
["4645 SPRZEDAŻ HURTOWA PERFUM I KOSMETYKÓW"," ","URZĄD SKARBOWY W WODZISŁAWIU ŚLĄSKIM","2432"]
["4646 SPRZEDAŻ HURTOWA WYROBÓW FARMACEUTYCZNYCH I MEDYCZNYCH"," ","URZĄD SKARBOWY W WOLSZTYNIE","3034"]
["4647 SPRZEDAŻ HURTOWA MEBLI DO UŻYTKU DOMOWEGO, BIUROWEGO I SKLEPOWEGO, DYWANÓW I SPRZĘTU OŚWIETLENIOWEGO"," ","URZĄD SKARBOWY W WOŁOMINIE","1442"]
["4648 SPRZEDAŻ HURTOWA ZEGARKÓW I BIŻUTERII"," ","URZĄD SKARBOWY W WOŁOWIE","0223"]
["4649 SPRZEDAŻ HURTOWA POZOSTAŁYCH ARTYKUŁÓW UŻYTKU DOMOWEGO"," ","PIERWSZY URZĄD SKARBOWY WE WROCŁAWIU","0229"]
["4650 SPRZEDAŻ HURTOWA URZĄDZEŃ TECHNOLOGII INFORMACYJNEJ I KOMUNIKACYJNEJ"," ","URZĄD SKARBOWY WROCŁAW-FABRYCZNA","0224"]
["4661 SPRZEDAŻ HURTOWA MASZYN I URZĄDZEŃ ROLNICZYCH ORAZ DODATKOWEGO WYPOSAŻENIA"," ","URZĄD SKARBOWY WROCŁAW-KRZYKI","0225"]
["4662 SPRZEDAŻ HURTOWA OBRABIAREK"," ","URZĄD SKARBOWY WROCŁAW-PSIE POLE","0226"]
["4663 SPRZEDAŻ HURTOWA MASZYN WYKORZYSTYWANYCH W GÓRNICTWIE, BUDOWNICTWIE ORAZ INŻYNIERII LĄDOWEJ I WODNEJ"," ","URZĄD SKARBOWY WROCŁAW-STARE MIASTO","0227"]
["4664 SPRZEDAŻ HURTOWA POZOSTAŁYCH MASZYN I URZĄDZEŃ"," ","URZĄD SKARBOWY WROCŁAW-ŚRÓDMIEŚCIE","0228"]
["4671 SPRZEDAŻ HURTOWA POJAZDÓW SILNIKOWYCH, Z WYŁĄCZENIEM MOTOCYKLI"," ","DOLNOŚLĄSKI URZĄD SKARBOWY WE WROCŁAWIU","0271"]
["4672 SPRZEDAŻ HURTOWA CZĘŚCI I AKCESORIÓW DO POJAZDÓW SILNIKOWYCH, Z WYŁĄCZENIEM MOTOCYKLI"," ","URZĄD SKARBOWY WE WRZEŚNI","3035"]
["4673 SPRZEDAŻ HURTOWA MOTOCYKLI ORAZ CZĘŚCI I AKCESORIÓW DO NICH"," ","URZĄD SKARBOWY WE WSCHOWIE","0814"]
["4681 SPRZEDAŻ HURTOWA PALIW STAŁYCH, CIEKŁYCH, GAZOWYCH ORAZ PRODUKTÓW POCHODNYCH"," ","URZĄD SKARBOWY W WYSOKIEM MAZOWIECKIEM","2013"]
["4682 SPRZEDAŻ HURTOWA METALI I RUD METALI"," ","URZĄD SKARBOWY W WYSZKOWIE","1443"]
["4683 SPRZEDAŻ HURTOWA DREWNA, MATERIAŁÓW BUDOWLANYCH I WYPOSAŻENIA SANITARNEGO"," ","URZĄD SKARBOWY W ZABRZU","2433"]
["4684 SPRZEDAŻ HURTOWA WYROBÓW METALOWYCH ORAZ SPRZĘTU I DODATKOWEGO WYPOSAŻENIA HYDRAULICZNEGO I GRZEJNEGO"," ","URZĄD SKARBOWY W ZAKOPANEM","1227"]
["4685 SPRZEDAŻ HURTOWA WYROBÓW CHEMICZNYCH"," ","URZĄD SKARBOWY W ZAMBROWIE","2014"]
["4686 SPRZEDAŻ HURTOWA POZOSTAŁYCH PÓŁPRODUKTÓW"," ","URZĄD SKARBOWY W ZAMOŚCIU","0620"]
["4687 SPRZEDAŻ HURTOWA ODPADÓW I ZŁOMU"," ","URZĄD SKARBOWY W ZAWIERCIU","2434"]
["4689 POZOSTAŁA SPRZEDAŻ HURTOWA WYSPECJALIZOWANA, GDZIE INDZIEJ NIESKLASYFIKOWANA"," ","URZĄD SKARBOWY W ZĄBKOWICACH ŚLĄSKICH","0230"]
["4690 SPRZEDAŻ HURTOWA NIEWYSPECJALIZOWANA"," ","URZĄD SKARBOWY W ZDUŃSKIEJ WOLI","1025"]
["4711 SPRZEDAŻ DETALICZNA NIEWYSPECJALIZOWANA Z PRZEWAGĄ ŻYWNOŚCI, NAPOJÓW LUB WYROBÓW TYTONIOWYCH"," ","URZĄD SKARBOWY W ZGIERZU","1026"]
["4712 POZOSTAŁA SPRZEDAŻ DETALICZNA NIEWYSPECJALIZOWANA"," ","URZĄD SKARBOWY W ZGORZELCU","0231"]
["4721 SPRZEDAŻ DETALICZNA OWOCÓW I WARZYW"," ","PIERWSZY URZĄD SKARBOWY W ZIELONEJ GÓRZE","0808"]
["4722 SPRZEDAŻ DETALICZNA MIĘSA I WYROBÓW Z MIĘSA"," ","DRUGI URZĄD SKARBOWY W ZIELONEJ GÓRZE","0809"]
["4723 SPRZEDAŻ DETALICZNA RYB, SKORUPIAKÓW I MIĘCZAKÓW"," ","LUBUSKI URZĄD SKARBOWY W ZIELONEJ GÓRZE","0871"]
["4724 SPRZEDAŻ DETALICZNA PIECZYWA, CIAST, WYROBÓW CIASTKARSKICH I CUKIERNICZYCH"," ","URZĄD SKARBOWY W ZŁOTORYI","0232"]
["4725 SPRZEDAŻ DETALICZNA NAPOJÓW ALKOHOLOWYCH I BEZALKOHOLOWYCH"," ","URZĄD SKARBOWY W ZŁOTOWIE","3036"]
["4726 SPRZEDAŻ DETALICZNA WYROBÓW TYTONIOWYCH"," ","URZĄD SKARBOWY W ZWOLENIU","1444"]
["4727 SPRZEDAŻ DETALICZNA POZOSTAŁEJ ŻYWNOŚCI"," ","URZĄD SKARBOWY W ŻAGANIU","0810"]
["4730 SPRZEDAŻ DETALICZNA PALIW DO POJAZDÓW SILNIKOWYCH"," ","URZĄD SKARBOWY W ŻARACH","0811"]
["4740 SPRZEDAŻ DETALICZNA NARZĘDZI TECHNOLOGII INFORMACYJNEJ I KOMUNIKACYJNEJ"," ","URZĄD SKARBOWY W ŻNINIE","0421"]
["4751 SPRZEDAŻ DETALICZNA WYROBÓW TEKSTYLNYCH"," ","URZĄD SKARBOWY W ŻORACH","2435"]
["4752 SPRZEDAŻ DETALICZNA DROBNYCH WYROBÓW METALOWYCH, MATERIAŁÓW BUDOWLANYCH, FARB I SZKŁA"," ","URZĄD SKARBOWY W ŻUROMINIE","1445"]
["4753 SPRZEDAŻ DETALICZNA DYWANÓW, CHODNIKÓW I INNYCH POKRYĆ PODŁOGOWYCH ORAZ POKRYĆ ŚCIENNYCH"," ","URZĄD SKARBOWY W ŻYRARDOWIE","1446"]
["4754 SPRZEDAŻ DETALICZNA ELEKTRYCZNEGO SPRZĘTU GOSPODARSTWA DOMOWEGO"," ","URZĄD SKARBOWY W ŻYWCU","2436"]
["4755 SPRZEDAŻ DETALICZNA MEBLI, SPRZĘTU OŚWIETLENIOWEGO, ARTYKUŁÓW STOŁOWYCH ORAZ POZOSTAŁYCH ARTYKUŁÓW UŻYTKU DOMOWEGO"," "]
["4761 SPRZEDAŻ DETALICZNA KSIĄŻEK"," "]
["4762 SPRZEDAŻ DETALICZNA GAZET I POZOSTAŁYCH PERIODYKÓW ORAZ ARTYKUŁÓW PAPIERNICZYCH"," "]
["4763 SPRZEDAŻ DETALICZNA SPRZĘTU SPORTOWEGO"," "]
["4764 SPRZEDAŻ DETALICZNA GIER I ZABAWEK"," "]
["4769 SPRZEDAŻ DETALICZNA WYROBÓW ZWIĄZANYCH Z KULTURĄ I REKREACJĄ, GDZIE INDZIEJ NIESKLASYFIKOWANA"," "]
["4771 SPRZEDAŻ DETALICZNA ODZIEŻY"," "]
["4772 SPRZEDAŻ DETALICZNA OBUWIA I WYROBÓW SKÓRZANYCH"," "]
["4773 SPRZEDAŻ DETALICZNA WYROBÓW FARMACEUTYCZNYCH"," "]
["4774 SPRZEDAŻ DETALICZNA WYROBÓW MEDYCZNYCH I ORTOPEDYCZNYCH"," "]
["4775 SPRZEDAŻ DETALICZNA KOSMETYKÓW I ARTYKUŁÓW TOALETOWYCH"," "]
["4776 SPRZEDAŻ DETALICZNA KWIATÓW, ROŚLIN, NAWOZÓW, ŻYWYCH ZWIERZĄT DOMOWYCH I KARMY DLA ZWIERZĄT DOMOWYCH"," "]
["4777 SPRZEDAŻ DETALICZNA ZEGARKÓW I BIŻUTERII"," "]
["4778 SPRZEDAŻ DETALICZNA POZOSTAŁYCH NOWYCH WYROBÓW"," "]
["4779 SPRZEDAŻ DETALICZNA ARTYKUŁÓW UŻYWANYCH"," "]
["4781 SPRZEDAŻ DETALICZNA POJAZDÓW SILNIKOWYCH, Z WYŁĄCZENIEM MOTOCYKLI"," "]
["4782 SPRZEDAŻ DETALICZNA CZĘŚCI I AKCESORIÓW DO POJAZDÓW SILNIKOWYCH, Z WYŁĄCZENIEM MOTOCYKLI"," "]
["4783 SPRZEDAŻ DETALICZNA MOTOCYKLI ORAZ CZĘŚCI I AKCESORIÓW DO NICH"," "]
["4791 POŚREDNICTWO W SPRZEDAŻY DETALICZNEJ NIEWYSPECJALIZOWANEJ"," "]
["4792 POŚREDNICTWO W SPRZEDAŻY DETALICZNEJ WYSPECJALIZOWANEJ"," "]
["4911 TRANSPORT KOLEJOWY PASAŻERSKI CIĘŻKI"," "]
["4912 POZOSTAŁY SZYNOWY TRANSPORT PASAŻERSKI"," "]
["4920 TRANSPORT KOLEJOWY TOWARÓW"," "]
["4931 TRANSPORT DROGOWY PASAŻERSKI ROZKŁADOWY"," "]
["4932 TRANSPORT DROGOWY PASAŻERSKI INNY NIŻ ROZKŁADOWY"," "]
["4933 TRANSPORT PASAŻERSKI NA ŻĄDANIE POJAZDEM Z KIEROWCĄ"," "]
["4934 TRANSPORT PASAŻERSKI KOLEJAMI LINOWYMI I WYCIĄGAMI NARCIARSKIMI"," "]
["4939 POZOSTAŁY TRANSPORT LĄDOWY PASAŻERSKI, GDZIE INDZIEJ NIESKLASYFIKOWANY"," "]
["4941 TRANSPORT DROGOWY TOWARÓW"," "]
["4942 DZIAŁALNOŚĆ USŁUGOWA ZWIĄZANA Z PRZEPROWADZKAMI"," "]
["4950 TRANSPORT RUROCIĄGOWY"," "]
["5010 TRANSPORT MORSKI I PRZYBRZEŻNY PASAŻERSKI"," "]
["5020 TRANSPORT MORSKI I PRZYBRZEŻNY TOWARÓW"," "]
["5030 TRANSPORT WODNY ŚRÓDLĄDOWY PASAŻERSKI"," "]
["5040 TRANSPORT WODNY ŚRÓDLĄDOWY TOWARÓW"," "]
["5110 TRANSPORT LOTNICZY PASAŻERSKI"," "]
["5121 TRANSPORT LOTNICZY TOWARÓW"," "]
["5122 TRANSPORT KOSMICZNY"," "]
["5210 MAGAZYNOWANIE I PRZECHOWYWANIE TOWARÓW"," "]
["5221 DZIAŁALNOŚĆ USŁUGOWA WSPOMAGAJĄCA TRANSPORT LĄDOWY"," "]
["5222 DZIAŁALNOŚĆ USŁUGOWA WSPOMAGAJĄCA TRANSPORT WODNY"," "]
["5223 DZIAŁALNOŚĆ USŁUGOWA WSPOMAGAJĄCA TRANSPORT LOTNICZY"," "]
["5224 PRZEŁADUNEK TOWARÓW"," "]
["5225 DZIAŁALNOŚĆ LOGISTYCZNA"," "]
["5226 POZOSTAŁA DZIAŁALNOŚĆ USŁUGOWA WSPOMAGAJĄCA TRANSPORT"," "]
["5231 POŚREDNICTWO W TRANSPORCIE TOWARÓW"," "]
["5232 POŚREDNICTWO W TRANSPORCIE PASAŻERSKIM"," "]
["5310 DZIAŁALNOŚĆ POCZTOWA OBJĘTA OBOWIĄZKIEM ŚWIADCZENIA USŁUG POWSZECHNYCH (OPERATORA PUBLICZNEGO)"," "]
["5320 POZOSTAŁA DZIAŁALNOŚĆ POCZTOWA I KURIERSKA"," "]
["5330 POŚREDNICTWO W ZAKRESIE DZIAŁALNOŚCI POCZTOWEJ I KURIERSKIEJ"," "]
["5510 HOTELE I PODOBNE OBIEKTY ZAKWATEROWANIA"," "]
["5520 OBIEKTY NOCLEGOWE TURYSTYCZNE I MIEJSCA KRÓTKOTRWAŁEGO ZAKWATEROWANIA"," "]
["5530 POLA KEMPINGOWE"," "]
["5540 POŚREDNICTWO W ZAKWATEROWANIU"," "]
["5590 POZOSTAŁE ZAKWATEROWANIE"," "]
["5611 RESTAURACJE"," "]
["5612 RUCHOME PLACÓWKI GASTRONOMICZNE"," "]
["5621 OKAZJONALNE PRZYGOTOWYWANIE I DOSTARCZANIE ŻYWNOŚCI DLA ODBIORCÓW ZEWNĘTRZNYCH (KATERING OKAZJONALNY)"," "]
["5622 REGULARNE PRZYGOTOWYWANIE I DOSTARCZANIE ŻYWNOŚCI DLA ODBIORCÓW ZEWNĘTRZNYCH (KATERING REGULARNY) I POZOSTAŁA GASTRONOMICZNA DZIAŁALNOŚĆ USŁUGOWA"," "]
["5630 PODAWANIE NAPOJÓW"," "]
["5640 POŚREDNICTWO W ZAKRESIE DZIAŁALNOŚCI USŁUGOWEJ ZWIĄZANEJ Z WYŻYWIENIEM"," "]
["5811 WYDAWANIE KSIĄŻEK"," "]
["5812 WYDAWANIE GAZET"," "]
["5813 WYDAWANIE CZASOPISM I POZOSTAŁYCH PERIODYKÓW"," "]
["5819 POZOSTAŁA DZIAŁALNOŚĆ WYDAWNICZA, Z WYŁĄCZENIEM W ZAKRESIE OPROGRAMOWANIA"," "]
["5821 DZIAŁALNOŚĆ WYDAWNICZA W ZAKRESIE GIER KOMPUTEROWYCH"," "]
["5829 DZIAŁALNOŚĆ WYDAWNICZA W ZAKRESIE POZOSTAŁEGO OPROGRAMOWANIA"," "]
["5911 DZIAŁALNOŚĆ ZWIĄZANA Z PRODUKCJĄ FILMÓW, NAGRAŃ WIDEO I PROGRAMÓW TELEWIZYJNYCH"," "]
["5912 DZIAŁALNOŚĆ POSTPRODUKCYJNA ZWIĄZANA Z FILMAMI, NAGRANIAMI WIDEO I PROGRAMAMI TELEWIZYJNYMI"," "]
["5913 DZIAŁALNOŚĆ ZWIĄZANA Z DYSTRYBUCJĄ FILMÓW I NAGRAŃ WIDEO"," "]
["5914 DZIAŁALNOŚĆ ZWIĄZANA Z PROJEKCJĄ FILMÓW"," "]
["5920 DZIAŁALNOŚĆ W ZAKRESIE NAGRAŃ DŹWIĘKOWYCH I MUZYCZNYCH"," "]
["6010 NADAWANIE PROGRAMÓW RADIOFONICZNYCH I DYSTRYBUCJA NAGRAŃ DŹWIĘKOWYCH"," "]
["6020 NADAWANIE PROGRAMÓW TELEWIZYJNYCH OGÓLNODOSTĘPNYCH I ABONAMENTOWYCH ORAZ DYSTRYBUCJA NAGRAŃ WIDEO"," "]
["6031 DZIAŁALNOŚĆ AGENCJI INFORMACYJNYCH"," "]
["6039 POZOSTAŁA DZIAŁALNOŚĆ ZWIĄZANA Z DYSTRYBUCJĄ TREŚCI"," "]
["6110 DZIAŁALNOŚĆ W ZAKRESIE TELEKOMUNIKACJI PRZEWODOWEJ, BEZPRZEWODOWEJ I SATELITARNEJ"," "]
["6120 DZIAŁALNOŚĆ W ZAKRESIE ODSPRZEDAŻY USŁUG TELEKOMUNIKACYJNYCH ORAZ POŚREDNICTWO W TELEKOMUNIKACJI"," "]
["6190 DZIAŁALNOŚĆ W ZAKRESIE POZOSTAŁEJ TELEKOMUNIKACJI"," "]
["6210 DZIAŁALNOŚĆ W ZAKRESIE PROGRAMOWANIA"," "]
["6220 DZIAŁALNOŚĆ ZWIĄZANA Z DORADZTWEM W ZAKRESIE INFORMATYKI ORAZ ZARZĄDZANIEM URZĄDZENIAMI INFORMATYCZNYMI"," "]
["6290 POZOSTAŁA DZIAŁALNOŚĆ USŁUGOWA W ZAKRESIE TECHNOLOGII INFORMATYCZNYCH I KOMPUTEROWYCH"," "]
["6310 DZIAŁALNOŚĆ USŁUGOWA W ZAKRESIE INFRASTRUKTURY OBLICZENIOWEJ, PRZETWARZANIA DANYCH, ZARZĄDZANIA STRONAMI INTERNETOWYMI (HOSTING) I DZIAŁALNOŚCI POWIĄZANE"," "]
["6391 DZIAŁALNOŚĆ WYSZUKIWAREK INTERNETOWYCH"," "]
["6392 POZOSTAŁA DZIAŁALNOŚĆ USŁUGOWA W ZAKRESIE INFORMACJI"," "]
["6411 DZIAŁALNOŚĆ BANKU CENTRALNEGO"," "]
["6419 POZOSTAŁE POŚREDNICTWO PIENIĘŻNE"," "]
["6421 DZIAŁALNOŚĆ SPÓŁEK HOLDINGOWYCH"," "]
["6422 DZIAŁALNOŚĆ SPÓŁEK POZYSKUJĄCYCH FINANSOWANIE NA RZECZ INNYCH PODMIOTÓW"," "]
["6431 DZIAŁALNOŚĆ FUNDUSZY RYNKU PIENIĘŻNEGO I FUNDUSZY INWESTYCYJNYCH NIEBĘDĄCYCH FUNDUSZAMI RYNKU PIENIĘŻNEGO"," "]
["6432 DZIAŁALNOŚĆ INSTYTUCJI POWIERNICZYCH"," "]
["6491 LEASING FINANSOWY"," "]
["6492 POZOSTAŁE FORMY UDZIELANIA KREDYTÓW"," "]
["6499 POZOSTAŁA FINANSOWA DZIAŁALNOŚĆ USŁUGOWA, Z WYŁĄCZENIEM UBEZPIECZEŃ I FUNDUSZY EMERYTALNYCH, GDZIE INDZIEJ NIESKLASYFIKOWANA"," "]
["6511 DZIAŁALNOŚĆ W ZAKRESIE UBEZPIECZEŃ NA ŻYCIE"," "]
["6512 DZIAŁALNOŚĆ W ZAKRESIE POZOSTAŁYCH UBEZPIECZEŃ OSOBOWYCH ORAZ UBEZPIECZEŃ MAJĄTKOWYCH"," "]
["6520 DZIAŁALNOŚĆ W ZAKRESIE REASEKURACJI"," "]
["6530 DZIAŁALNOŚĆ W ZAKRESIE FUNDUSZY EMERYTALNYCH"," "]
["6611 ZARZĄDZANIE RYNKAMI FINANSOWYMI"," "]
["6612 DZIAŁALNOŚĆ MAKLERSKA ZWIĄZANA Z RYNKIEM PAPIERÓW WARTOŚCIOWYCH I TOWARÓW GIEŁDOWYCH"," "]
["6619 POZOSTAŁA DZIAŁALNOŚĆ WSPOMAGAJĄCA USŁUGI FINANSOWE, Z WYŁĄCZENIEM UBEZPIECZEŃ I FUNDUSZY EMERYTALNYCH"," "]
["6621 DZIAŁALNOŚĆ ZWIĄZANA Z OCENĄ RYZYKA I SZACOWANIEM PONIESIONYCH STRAT"," "]
["6622 DZIAŁALNOŚĆ AGENTÓW I BROKERÓW UBEZPIECZENIOWYCH"," "]
["6629 DZIAŁALNOŚĆ WSPOMAGAJĄCA UBEZPIECZENIA I FUNDUSZE EMERYTALNE, GDZIE INDZIEJ NIESKLASYFIKOWANA"," "]
["6630 DZIAŁALNOŚĆ ZWIĄZANA Z ZARZĄDZANIEM FUNDUSZAMI"," "]
["6811 KUPNO I SPRZEDAŻ NIERUCHOMOŚCI NA WŁASNY RACHUNEK"," "]
["6812 REALIZACJA PROJEKTÓW BUDOWLANYCH"," "]
["6820 WYNAJEM I ZARZĄDZANIE NIERUCHOMOŚCIAMI WŁASNYMI LUB DZIERŻAWIONYMI"," "]
["6831 POŚREDNICTWO W OBROCIE NIERUCHOMOŚCIAMI"," "]
["6832 POZOSTAŁA DZIAŁALNOŚĆ ZWIĄZANA Z OBSŁUGĄ RYNKU NIERUCHOMOŚCI WYKONYWANA NA ZLECENIE"," "]
["6910 DZIAŁALNOŚĆ PRAWNICZA"," "]
["6920 DZIAŁALNOŚĆ RACHUNKOWO-KSIĘGOWA; DORADZTWO PODATKOWE"," "]
["7010 DZIAŁALNOŚĆ CENTRAL (HEAD OFFICES)"," "]
["7020 DORADZTWO W ZAKRESIE PROWADZENIA DZIAŁALNOŚCI GOSPODARCZEJ I POZOSTAŁE DORADZTWO W ZAKRESIE ZARZĄDZANIA"," "]
["7111 DZIAŁALNOŚĆ W ZAKRESIE ARCHITEKTURY"," "]
["7112 DZIAŁALNOŚĆ W ZAKRESIE INŻYNIERII I ZWIĄZANE Z NIĄ DORADZTWO TECHNICZNE"," "]
["7120 BADANIA I ANALIZY TECHNICZNE"," "]
["7210 BADANIA NAUKOWE I PRACE ROZWOJOWE W DZIEDZINIE NAUK PRZYRODNICZYCH I TECHNICZNYCH"," "]
["7220 BADANIA NAUKOWE I PRACE ROZWOJOWE W DZIEDZINIE NAUK SPOŁECZNYCH I HUMANISTYCZNYCH"," "]
["7311 DZIAŁALNOŚĆ AGENCJI REKLAMOWYCH"," "]
["7312 REKLAMA POPRZEZ ŚRODKI MASOWEGO PRZEKAZU"," "]
["7320 BADANIE RYNKU I OPINII PUBLICZNEJ"," "]
["7330 DZIAŁALNOŚĆ W ZAKRESIE PUBLIC RELATIONS I KOMUNIKACJI"," "]
["7411 DZIAŁALNOŚĆ W ZAKRESIE WZORNICTWA PRZEMYSŁOWEGO I PROJEKTOWANIA MODY"," "]
["7412 DZIAŁALNOŚĆ W ZAKRESIE PROJEKTOWANIA GRAFICZNEGO I KOMUNIKACJI WIZUALNEJ"," "]
["7413 DZIAŁALNOŚĆ W ZAKRESIE PROJEKTOWANIA WNĘTRZ"," "]
["7414 POZOSTAŁA DZIAŁALNOŚĆ W ZAKRESIE SPECJALISTYCZNEGO PROJEKTOWANIA"," "]
["7420 DZIAŁALNOŚĆ FOTOGRAFICZNA"," "]
["7430 DZIAŁALNOŚĆ ZWIĄZANA Z TŁUMACZENIAMI"," "]
["7491 POŚREDNICTWO W OBROCIE PATENTAMI I DZIAŁALNOŚĆ MARKETINGOWA W TYM ZAKRESIE"," "]
["7499 WSZELKA POZOSTAŁA DZIAŁALNOŚĆ PROFESJONALNA, NAUKOWA I TECHNICZNA, GDZIE INDZIEJ NIESKLASYFIKOWANA"," "]
["7500 DZIAŁALNOŚĆ WETERYNARYJNA"," "]
["7711 WYNAJEM I DZIERŻAWA SAMOCHODÓW OSOBOWYCH I LEKKICH POJAZDÓW SILNIKOWYCH"," "]
["7712 WYNAJEM I DZIERŻAWA SAMOCHODÓW CIĘŻAROWYCH"," "]
["7721 WYPOŻYCZANIE I DZIERŻAWA SPRZĘTU REKREACYJNEGO I SPORTOWEGO"," "]
["7722 WYPOŻYCZANIE I DZIERŻAWA POZOSTAŁYCH ARTYKUŁÓW UŻYTKU OSOBISTEGO I DOMOWEGO"," "]
["7731 WYNAJEM I DZIERŻAWA MASZYN I URZĄDZEŃ ROLNICZYCH"," "]
["7732 WYNAJEM I DZIERŻAWA MASZYN I URZĄDZEŃ BUDOWLANYCH"," "]
["7733 WYNAJEM I DZIERŻAWA MASZYN I URZĄDZEŃ BIUROWYCH ORAZ KOMPUTERÓW"," "]
["7734 WYNAJEM I DZIERŻAWA ŚRODKÓW TRANSPORTU WODNEGO"," "]
["7735 WYNAJEM I DZIERŻAWA ŚRODKÓW TRANSPORTU LOTNICZEGO"," "]
["7739 WYNAJEM I DZIERŻAWA POZOSTAŁYCH MASZYN, URZĄDZEŃ ORAZ DÓBR MATERIALNYCH, GDZIE INDZIEJ NIESKLASYFIKOWANE"," "]
["7740 DZIERŻAWA WŁASNOŚCI INTELEKTUALNEJ I PODOBNYCH PRODUKTÓW, Z WYŁĄCZENIEM PRAC CHRONIONYCH PRAWEM AUTORSKIM"," "]
["7751 POŚREDNICTWO W WYNAJMIE I DZIERŻAWIE SAMOCHODÓW OSOBOWYCH, SAMOCHODÓW KEMPINGOWYCH I PRZYCZEP"," "]
["7752 POŚREDNICTWO W WYNAJMIE I DZIERŻAWIE POZOSTAŁYCH DÓBR MATERIALNYCH ORAZ NIEFINANSOWYCH WARTOŚCI NIEMATERIALNYCH I PRAWNYCH"," "]
["7810 DZIAŁALNOŚĆ ZWIĄZANA Z WYSZUKIWANIEM MIEJSC PRACY I POZYSKIWANIEM PRACOWNIKÓW"," "]
["7820 DZIAŁALNOŚĆ AGENCJI PRACY TYMCZASOWEJ I POZOSTAŁA DZIAŁALNOŚĆ ZWIĄZANA Z UDOSTĘPNIANIEM PRACOWNIKÓW"," "]
["7911 DZIAŁALNOŚĆ AGENTÓW TURYSTYCZNYCH"," "]
["7912 DZIAŁALNOŚĆ ORGANIZATORÓW TURYSTYKI"," "]
["7990 POZOSTAŁA DZIAŁALNOŚĆ USŁUGOWA W ZAKRESIE REZERWACJI ORAZ DZIAŁALNOŚCI Z NIĄ ZWIĄZANE"," "]
["8001 DZIAŁALNOŚĆ DETEKTYWISTYCZNA I DZIAŁALNOŚĆ OCHRONIARSKA W ZAKRESIE OCHRONY OSOBISTEJ"," "]
["8009 DZIAŁALNOŚĆ OCHRONIARSKA, GDZIE INDZIEJ NIESKLASYFIKOWANA"," "]
["8110 DZIAŁALNOŚĆ POMOCNICZA ZWIĄZANA Z UTRZYMANIEM PORZĄDKU W BUDYNKACH"," "]
["8121 NIESPECJALISTYCZNE SPRZĄTANIE BUDYNKÓW"," "]
["8122 POZOSTAŁE SPRZĄTANIE BUDYNKÓW I OBIEKTÓW PRZEMYSŁOWYCH"," "]
["8123 POZOSTAŁE SPRZĄTANIE"," "]
["8130 DZIAŁALNOŚĆ USŁUGOWA ZWIĄZANA Z ZAGOSPODAROWANIEM TERENÓW ZIELENI"," "]
["8210 DZIAŁALNOŚĆ ZWIĄZANA Z ADMINISTRACYJNĄ OBSŁUGĄ BIURA, WŁĄCZAJĄC DZIAŁALNOŚĆ WSPOMAGAJĄCĄ"," "]
["8220 DZIAŁALNOŚĆ CENTRÓW TELEFONICZNYCH (CALL CENTER)"," "]
["8230 DZIAŁALNOŚĆ ZWIĄZANA Z ORGANIZACJĄ TARGÓW, WYSTAW I KONGRESÓW"," "]
["8240 POŚREDNICTWO W ZAKRESIE DZIAŁALNOŚCI WSPOMAGAJĄCEJ PROWADZENIE DZIAŁALNOŚCI GOSPODARCZEJ, GDZIE INDZIEJ NIESKLASYFIKOWANE"," "]
["8291 DZIAŁALNOŚĆ ŚWIADCZONA PRZEZ AGENCJE INKASA I BIURA KREDYTOWE"," "]
["8292 DZIAŁALNOŚĆ ZWIĄZANA Z PAKOWANIEM"," "]
["8299 POZOSTAŁA DZIAŁALNOŚĆ WSPOMAGAJĄCA PROWADZENIE DZIAŁALNOŚCI GOSPODARCZEJ, GDZIE INDZIEJ NIESKLASYFIKOWANA"," "]
["8411 KIEROWANIE PODSTAWOWYMI RODZAJAMI DZIAŁALNOŚCI PUBLICZNEJ"," "]
["8412 KIEROWANIE DZIAŁALNOŚCIĄ USŁUGOWĄ W ZAKRESIE OCHRONY ZDROWIA, EDUKACJI, KULTURY ORAZ POZOSTAŁYCH USŁUG SPOŁECZNYCH"," "]
["8413 KIEROWANIE W ZAKRESIE EFEKTYWNOŚCI GOSPODAROWANIA"," "]
["8421 SPRAWY ZAGRANICZNE"," "]
["8422 OBRONA NARODOWA"," "]
["8423 WYMIAR SPRAWIEDLIWOŚCI"," "]
["8424 BEZPIECZEŃSTWO PAŃSTWA, PORZĄDEK I BEZPIECZEŃSTWO PUBLICZNE"," "]
["8425 OCHRONA PRZECIWPOŻAROWA"," "]
["8430 OBOWIĄZKOWE UBEZPIECZENIA SPOŁECZNE"," "]
["8510 PLACÓWKI WYCHOWANIA PRZEDSZKOLNEGO"," "]
["8520 SZKOŁY PODSTAWOWE"," "]
["8531 SZKOŁY ŚREDNIE OGÓLNOKSZTAŁCĄCE"," "]
["8532 SZKOŁY PROWADZĄCE KSZTAŁCENIE ZAWODOWE, Z WYŁĄCZENIEM PLACÓWEK KSZTAŁCENIA POLICEALNEGO"," "]
["8533 PLACÓWKI KSZTAŁCENIA POLICEALNEGO"," "]
["8540 SZKOŁY WYŻSZE"," "]
["8551 POZOSTAŁE FORMY EDUKACJI SPORTOWEJ ORAZ ZAJĘĆ SPORTOWYCH I REKREACYJNYCH"," "]
["8552 POZOSTAŁE FORMY EDUKACJI ARTYSTYCZNEJ"," "]
["8553 POZOSTAŁE FORMY EDUKACJI Z ZAKRESU NAUKI JAZDY I PILOTAŻU"," "]
["8559 POZOSTAŁE FORMY EDUKACJI, GDZIE INDZIEJ NIESKLASYFIKOWANE"," "]
["8561 POŚREDNICTWO W ZAKRESIE PROWADZENIA KURSÓW I KOREPETYCJI"," "]
["8569 DZIAŁALNOŚĆ WSPOMAGAJĄCA EDUKACJĘ, GDZIE INDZIEJ NIESKLASYFIKOWANA"," "]
["8610 DZIAŁALNOŚĆ SZPITALI"," "]
["8621 PRAKTYKA LEKARSKA OGÓLNA"," "]
["8622 PRAKTYKA LEKARSKA SPECJALISTYCZNA"," "]
["8623 PRAKTYKA DENTYSTYCZNA"," "]
["8691 DZIAŁALNOŚĆ W ZAKRESIE DIAGNOSTYKI OBRAZOWEJ I DZIAŁALNOŚĆ LABORATORIÓW MEDYCZNYCH"," "]
["8692 TRANSPORT PACJENTÓW KARETKĄ"," "]
["8693 DZIAŁALNOŚĆ PSYCHOLOGICZNA I PSYCHOTERAPEUTYCZNA, Z WYŁĄCZENIEM LEKARSKIEJ"," "]
["8694 DZIAŁALNOŚĆ PIELĘGNIARSKA I POŁOŻNICZA"," "]
["8695 DZIAŁALNOŚĆ W ZAKRESIE FIZJOTERAPII"," "]
["8696 DZIAŁALNOŚĆ W ZAKRESIE MEDYCYNY TRADYCYJNEJ, UZUPEŁNIAJĄCEJ I ALTERNATYWNEJ"," "]
["8697 POŚREDNICTWO ZWIĄZANE Z DZIAŁALNOŚCIĄ LEKARSKĄ, DENTYSTYCZNĄ I POZOSTAŁĄ DZIAŁALNOŚCIĄ W ZAKRESIE OPIEKI ZDROWOTNEJ"," "]
["8699 POZOSTAŁA DZIAŁALNOŚĆ W ZAKRESIE OPIEKI ZDROWOTNEJ, GDZIE INDZIEJ NIESKLASYFIKOWANA"," "]
["8710 POMOC SPOŁECZNA Z ZAKWATEROWANIEM ZAPEWNIAJĄCA OPIEKĘ PIELĘGNIARSKĄ"," "]
["8720 POMOC SPOŁECZNA Z ZAKWATEROWANIEM DLA OSÓB Z ZABURZENIAMI PSYCHICZNYMI LUB UZALEŻNIENIAMI"," "]
["8730 POMOC SPOŁECZNA Z ZAKWATEROWANIEM DLA OSÓB STARSZYCH LUB OSÓB Z NIEPEŁNOSPRAWNOŚCIAMI RUCHOWYMI"," "]
["8791 POŚREDNICTWO W ZAKRESIE POMOCY SPOŁECZNEJ Z ZAKWATEROWANIEM"," "]
["8799 POZOSTAŁA POMOC SPOŁECZNA Z ZAKWATEROWANIEM, GDZIE INDZIEJ NIESKLASYFIKOWANA"," "]
["8810 POMOC SPOŁECZNA BEZ ZAKWATEROWANIA DLA OSÓB STARSZYCH LUB OSÓB Z NIEPEŁNOSPRAWNOŚCIAMI"," "]
["8891 OPIEKA DZIENNA NAD DZIEĆMI"," "]
["8899 POZOSTAŁA POMOC SPOŁECZNA BEZ ZAKWATEROWANIA, GDZIE INDZIEJ NIESKLASYFIKOWANA"," "]
["9011 DZIAŁALNOŚĆ LITERACKA I DZIAŁALNOŚĆ ZWIĄZANA Z KOMPONOWANIEM MUZYKI"," "]
["9012 DZIAŁALNOŚĆ TWÓRCZA W ZAKRESIE SZTUK WIZUALNYCH"," "]
["9013 POZOSTAŁA DZIAŁALNOŚĆ TWÓRCZA"," "]
["9020 DZIAŁALNOŚĆ ZWIĄZANA Z WYSTAWIANIEM PRZEDSTAWIEŃ ARTYSTYCZNYCH"," "]
["9031 DZIAŁALNOŚĆ OBIEKTÓW KULTURALNYCH"," "]
["9039 POZOSTAŁA DZIAŁALNOŚĆ WSPOMAGAJĄCA DZIAŁALNOŚĆ TWÓRCZĄ I DZIAŁALNOŚĆ ZWIĄZANĄ Z WYSTAWIANIEM PRZEDSTAWIEŃ ARTYSTYCZNYCH"," "]
["9111 DZIAŁALNOŚĆ BIBLIOTEK"," "]
["9112 DZIAŁALNOŚĆ ARCHIWÓW"," "]
["9121 DZIAŁALNOŚĆ MUZEÓW ORAZ DZIAŁALNOŚĆ ZWIĄZANA Z OPIEKĄ NAD ZBIORAMI MUZEALNYMI"," "]
["9122 DZIAŁALNOŚĆ ZWIĄZANA Z MIEJSCAMI HISTORYCZNYMI I POMNIKAMI"," "]
["9130 DZIAŁALNOŚĆ W ZAKRESIE KONSERWACJI I RENOWACJI ORAZ POZOSTAŁA DZIAŁALNOŚĆ WSPOMAGAJĄCA NA RZECZ DZIEDZICTWA KULTUROWEGO"," "]
["9141 DZIAŁALNOŚĆ OGRODÓW BOTANICZNYCH I ZOOLOGICZNYCH"]
["9142 DZIAŁALNOŚĆ OBSZARÓW I OBIEKTÓW OCHRONY PRZYRODY"]
["9200 DZIAŁALNOŚĆ ZWIĄZANA Z GRAMI HAZARDOWYMI"]
["9311 DZIAŁALNOŚĆ OBIEKTÓW SPORTOWYCH"]
["9312 DZIAŁALNOŚĆ KLUBÓW SPORTOWYCH"]
["9313 DZIAŁALNOŚĆ KLUBÓW FITNESS"]
["9319 DZIAŁALNOŚĆ SPORTOWA, GDZIE INDZIEJ NIESKLASYFIKOWANA"]
["9321 DZIAŁALNOŚĆ WESOŁYCH MIASTECZEK I PARKÓW ROZRYWKI"]
["9329 DZIAŁALNOŚĆ ROZRYWKOWA I REKREACYJNA, GDZIE INDZIEJ NIESKLASYFIKOWANA"]
["9411 DZIAŁALNOŚĆ ORGANIZACJI KOMERCYJNYCH I PRACODAWCÓW"]
["9412 DZIAŁALNOŚĆ CZŁONKOWSKICH ORGANIZACJI ZAWODOWYCH"]
["9420 DZIAŁALNOŚĆ ZWIĄZKÓW ZAWODOWYCH"]
["9491 DZIAŁALNOŚĆ ORGANIZACJI RELIGIJNYCH"]
["9492 DZIAŁALNOŚĆ ORGANIZACJI POLITYCZNYCH"]
["9499 DZIAŁALNOŚĆ POZOSTAŁYCH ORGANIZACJI CZŁONKOWSKICH, GDZIE INDZIEJ NIESKLASYFIKOWANA"]
["9510 NAPRAWA I KONSERWACJA KOMPUTERÓW I SPRZĘTU (TELE)KOMUNIKACYJNEGO"]
["9521 NAPRAWA I KONSERWACJA ELEKTRONICZNEGO SPRZĘTU POWSZECHNEGO UŻYTKU"]
["9522 NAPRAWA I KONSERWACJA URZĄDZEŃ GOSPODARSTWA DOMOWEGO ORAZ SPRZĘTU DO UŻYTKU DOMOWEGO I OGRODNICZEGO"]
["9523 NAPRAWA I KONSERWACJA OBUWIA I WYROBÓW SKÓRZANYCH"]
["9524 NAPRAWA I KONSERWACJA MEBLI I WYPOSAŻENIA DOMOWEGO"]
["9525 NAPRAWA I KONSERWACJA ZEGARÓW, ZEGARKÓW ORAZ BIŻUTERII"]
["9529 NAPRAWA I KONSERWACJA ARTYKUŁÓW UŻYTKU OSOBISTEGO I DOMOWEGO, GDZIE INDZIEJ NIESKLASYFIKOWANA"]
["9531 NAPRAWA I KONSERWACJA POJAZDÓW SILNIKOWYCH, Z WYŁĄCZENIEM MOTOCYKLI"]
["9532 NAPRAWA I KONSERWACJA MOTOCYKLI"]
["9540 POŚREDNICTWO W NAPRAWIE I KONSERWACJI KOMPUTERÓW, ARTYKUŁÓW UŻYTKU OSOBISTEGO I DOMOWEGO ORAZ POJAZDÓW SILNIKOWYCH, W TYM MOTOCYKLI"]
["9610 PRANIE I CZYSZCZENIE WYROBÓW TEKSTYLNYCH I FUTRZARSKICH"]
["9621 DZIAŁALNOŚĆ FRYZJERSKA"]
["9622 DZIAŁALNOŚĆ W ZAKRESIE PIELĘGNACJI URODY I POZOSTAŁA DZIAŁALNOŚĆ KOSMETYCZNA"]
["9623 DZIAŁALNOŚĆ SPA, SAUN I ŁAŹNI PAROWYCH"]
["9630 POGRZEBY I DZIAŁALNOŚĆ POKREWNA"]
["9640 POŚREDNICTWO W ZAKRESIE USŁUG INDYWIDUALNYCH"]
["9691 DZIAŁALNOŚĆ USŁUGOWA NA RZECZ OSÓB W MIEJSCU ZAMIESZKANIA"]
["9699 POZOSTAŁA DZIAŁALNOŚĆ USŁUGOWA, GDZIE INDZIEJ NIESKLASYFIKOWANA"]
["9700 GOSPODARSTWA DOMOWE ZATRUDNIAJĄCE PRACOWNIKÓW"]
["9810 GOSPODARSTWA DOMOWE PRODUKUJĄCE WYROBY NA WŁASNE POTRZEBY"]
["9820 GOSPODARSTWA DOMOWE ŚWIADCZĄCE USŁUGI NA WŁASNE POTRZEBY"]
["9900 ORGANIZACJE I ZESPOŁY EKSTERYTORIALNE"]